Council Name,Date,TransNo,Amount � (Excl VAT),Supplier name,Supplier Category,Expense Area,Expense Type,Expense Code
London Borough of Sutton,13/09/2023,20058035,"3,200.00",2U GetSmarter (US) LLC,SUNDRY SUPPLIER - ENV SERVICES,Development Growth and Regeneration,Fees,A44040
London Borough of Sutton,19/09/2023,20058636,600.00,A K Gulati  & Co,LEGAL & PROFESSIONAL SERVICES,People's Services,Legal Services,A44025
London Borough of Sutton,01/08/2023,50397763,"30,070.00",A Wilderness Way Ltd,CHILDREN'S SERVICES - FOSTERING & ADOPTION SERVICES,People's Services,Residential Care-Children,A56115
London Borough of Sutton,01/09/2023,50395355,"3,848.24",Abbey Care Centre,SOCIAL SERVICES RESIDENTIAL,People's Services,Nursing Care Short Term,A56026
London Borough of Sutton,01/09/2023,50395355,-750.40,Abbey Care Centre,SOCIAL SERVICES RESIDENTIAL,People's Services,Nursing Care - 3rd party top up payment,A56023
London Borough of Sutton,01/09/2023,50395448,"4,096.12",Abbey Care Centre,SOCIAL SERVICES RESIDENTIAL,People's Services,Nursing Care - Ext Provider,A56025
London Borough of Sutton,01/09/2023,50395448,-878.84,Abbey Care Centre,SOCIAL SERVICES RESIDENTIAL,People's Services,Nursing Care - 3rd party top up payment,A56023
London Borough of Sutton,01/09/2023,50395615,"-14,493.36",Abbey Care Centre,SOCIAL SERVICES RESIDENTIAL,People's Services,Nursing Care - Ext Provider,A56025
London Borough of Sutton,01/09/2023,50395615,"3,232.88",Abbey Care Centre,SOCIAL SERVICES RESIDENTIAL,People's Services,Nursing Care - 3rd party top up payment,A56023
London Borough of Sutton,01/09/2023,50395693,"-73,627.36",Abbey Care Centre,SOCIAL SERVICES RESIDENTIAL,People's Services,Nursing Care Short Term,A56026
London Borough of Sutton,01/09/2023,50395693,-750.40,Abbey Care Centre,SOCIAL SERVICES RESIDENTIAL,People's Services,Nursing Care - 3rd party top up payment,A56023
London Borough of Sutton,01/09/2023,50395693,"77,475.60",Abbey Care Centre,SOCIAL SERVICES RESIDENTIAL,People's Services,Nursing Care - Ext Provider,A56025
London Borough of Sutton,01/09/2023,50395693,"-1,492.80",Abbey Care Centre,SOCIAL SERVICES RESIDENTIAL,People's Services,Nursing Care - 3rd party top up payment,A56023
London Borough of Sutton,12/09/2023,50397173,"1,419.60",ABC Pre-School Beddington LLP,ACADEMIC INSTNS - OTHER,People's Services,Payment - Nursery Funding,A51056
London Borough of Sutton,12/09/2023,50397234,"2,532.60",ABC Pre-School Beddington LLP,ACADEMIC INSTNS - OTHER,People's Services,Payment - Nursery Funding,A51056
London Borough of Sutton,12/09/2023,50399094,651.00,ABC Pre-School Beddington LLP,ACADEMIC INSTNS - OTHER,People's Services,Payment - school supplementary grant,A51062
London Borough of Sutton,14/08/2023,20055826,"5,926.51",Absolute Care Services Ltd,SOCIAL SERVICES DAY CARE,People's Services,Homecare Core Services,A56020
London Borough of Sutton,21/08/2023,20056348,"5,715.81",Absolute Care Services Ltd,SOCIAL SERVICES DAY CARE,People's Services,Homecare Core Services,A56020
London Borough of Sutton,21/08/2023,20056349,"6,794.87",Absolute Care Services Ltd,SOCIAL SERVICES DAY CARE,People's Services,Homecare Core Services,A56020
London Borough of Sutton,04/09/2023,20057158,"5,926.51",Absolute Care Services Ltd,SOCIAL SERVICES DAY CARE,People's Services,Homecare Core Services,A56020
London Borough of Sutton,04/09/2023,20057159,"5,715.81",Absolute Care Services Ltd,SOCIAL SERVICES DAY CARE,People's Services,Homecare Core Services,A56020
London Borough of Sutton,04/09/2023,20057160,"6,794.87",Absolute Care Services Ltd,SOCIAL SERVICES DAY CARE,People's Services,Homecare Core Services,A56020
London Borough of Sutton,11/09/2023,20057606,"5,926.51",Absolute Care Services Ltd,SOCIAL SERVICES DAY CARE,People's Services,Homecare Core Services,A56020
London Borough of Sutton,11/09/2023,20057607,"5,715.81",Absolute Care Services Ltd,SOCIAL SERVICES DAY CARE,People's Services,Homecare Core Services,A56020
London Borough of Sutton,11/09/2023,20057642,"6,794.87",Absolute Care Services Ltd,SOCIAL SERVICES DAY CARE,People's Services,Homecare Core Services,A56020
London Borough of Sutton,18/09/2023,20058127,"5,715.81",Absolute Care Services Ltd,SOCIAL SERVICES DAY CARE,People's Services,Homecare Core Services,A56020
London Borough of Sutton,18/09/2023,20058128,"6,794.87",Absolute Care Services Ltd,SOCIAL SERVICES DAY CARE,People's Services,Homecare Core Services,A56020
London Borough of Sutton,18/09/2023,20058129,"5,926.51",Absolute Care Services Ltd,SOCIAL SERVICES DAY CARE,People's Services,Homecare Core Services,A56020
London Borough of Sutton,27/08/2023,50395834,620.62,Absolute Care Services Ltd,SOCIAL SERVICES DAY CARE,People's Services,Home Care Services,A56019
London Borough of Sutton,27/08/2023,50395852,59.10,Absolute Care Services Ltd,SOCIAL SERVICES DAY CARE,People's Services,Home Care Services,A56019
London Borough of Sutton,27/08/2023,50395852,758.52,Absolute Care Services Ltd,SOCIAL SERVICES DAY CARE,People's Services,Home Care Services,A56019
London Borough of Sutton,27/08/2023,50395865,685.56,Absolute Care Services Ltd,SOCIAL SERVICES DAY CARE,People's Services,Home Care Services,A56019
London Borough of Sutton,27/08/2023,50396063,506.52,Absolute Care Services Ltd,SOCIAL SERVICES DAY CARE,People's Services,Home Care Services,A56019
London Borough of Sutton,27/08/2023,50396063,16.08,Absolute Care Services Ltd,SOCIAL SERVICES DAY CARE,People's Services,Home Care Services,A56019
London Borough of Sutton,27/08/2023,50396114,16.08,Absolute Care Services Ltd,SOCIAL SERVICES DAY CARE,People's Services,Home Care Services,A56019
London Borough of Sutton,27/08/2023,50396114,506.52,Absolute Care Services Ltd,SOCIAL SERVICES DAY CARE,People's Services,Home Care Services,A56019
London Borough of Sutton,27/08/2023,50396220,506.52,Absolute Care Services Ltd,SOCIAL SERVICES DAY CARE,People's Services,Home Care Services,A56019
London Borough of Sutton,27/08/2023,50396220,24.12,Absolute Care Services Ltd,SOCIAL SERVICES DAY CARE,People's Services,Home Care Services,A56019
London Borough of Sutton,03/09/2023,50398614,620.62,Absolute Care Services Ltd,SOCIAL SERVICES DAY CARE,People's Services,Home Care Services,A56019
London Borough of Sutton,03/09/2023,50398654,59.10,Absolute Care Services Ltd,SOCIAL SERVICES DAY CARE,People's Services,Home Care Services,A56019
London Borough of Sutton,03/09/2023,50398654,758.52,Absolute Care Services Ltd,SOCIAL SERVICES DAY CARE,People's Services,Home Care Services,A56019
London Borough of Sutton,03/09/2023,50398672,689.50,Absolute Care Services Ltd,SOCIAL SERVICES DAY CARE,People's Services,Home Care Services,A56019
London Borough of Sutton,03/09/2023,50398789,506.52,Absolute Care Services Ltd,SOCIAL SERVICES DAY CARE,People's Services,Home Care Services,A56019
London Borough of Sutton,03/09/2023,50398789,24.12,Absolute Care Services Ltd,SOCIAL SERVICES DAY CARE,People's Services,Home Care Services,A56019
London Borough of Sutton,03/09/2023,50398799,506.52,Absolute Care Services Ltd,SOCIAL SERVICES DAY CARE,People's Services,Home Care Services,A56019
London Borough of Sutton,03/09/2023,50398799,16.08,Absolute Care Services Ltd,SOCIAL SERVICES DAY CARE,People's Services,Home Care Services,A56019
London Borough of Sutton,03/09/2023,50398830,16.08,Absolute Care Services Ltd,SOCIAL SERVICES DAY CARE,People's Services,Home Care Services,A56019
London Borough of Sutton,03/09/2023,50398830,506.52,Absolute Care Services Ltd,SOCIAL SERVICES DAY CARE,People's Services,Home Care Services,A56019
London Borough of Sutton,10/09/2023,50402563,62.73,Absolute Care Services Ltd,SOCIAL SERVICES DAY CARE,People's Services,Home Care Services,A56019
London Borough of Sutton,10/09/2023,50402563,805.30,Absolute Care Services Ltd,SOCIAL SERVICES DAY CARE,People's Services,Home Care Services,A56019
London Borough of Sutton,10/09/2023,50402568,660.59,Absolute Care Services Ltd,SOCIAL SERVICES DAY CARE,People's Services,Home Care Services,A56019
London Borough of Sutton,10/09/2023,50402587,752.83,Absolute Care Services Ltd,SOCIAL SERVICES DAY CARE,People's Services,Home Care Services,A56019
London Borough of Sutton,10/09/2023,50402787,506.52,Absolute Care Services Ltd,SOCIAL SERVICES DAY CARE,People's Services,Home Care Services,A56019
London Borough of Sutton,10/09/2023,50402787,16.08,Absolute Care Services Ltd,SOCIAL SERVICES DAY CARE,People's Services,Home Care Services,A56019
London Borough of Sutton,10/09/2023,50402840,16.08,Absolute Care Services Ltd,SOCIAL SERVICES DAY CARE,People's Services,Home Care Services,A56019
London Borough of Sutton,10/09/2023,50402840,506.52,Absolute Care Services Ltd,SOCIAL SERVICES DAY CARE,People's Services,Home Care Services,A56019
London Borough of Sutton,10/09/2023,50402924,506.52,Absolute Care Services Ltd,SOCIAL SERVICES DAY CARE,People's Services,Home Care Services,A56019
London Borough of Sutton,10/09/2023,50402924,24.12,Absolute Care Services Ltd,SOCIAL SERVICES DAY CARE,People's Services,Home Care Services,A56019
London Borough of Sutton,10/09/2023,50402933,402.00,Absolute Care Services Ltd,SOCIAL SERVICES DAY CARE,People's Services,Home Care Services,A56019
London Borough of Sutton,10/09/2023,50402933,201.00,Absolute Care Services Ltd,SOCIAL SERVICES DAY CARE,People's Services,Home Care Services,A56019
London Borough of Sutton,17/09/2023,50405677,732.93,Absolute Care Services Ltd,SOCIAL SERVICES DAY CARE,People's Services,Home Care Services,A56019
London Borough of Sutton,17/09/2023,50405820,659.91,Absolute Care Services Ltd,SOCIAL SERVICES DAY CARE,People's Services,Home Care Services,A56019
London Borough of Sutton,17/09/2023,50405854,62.73,Absolute Care Services Ltd,SOCIAL SERVICES DAY CARE,People's Services,Home Care Services,A56019
London Borough of Sutton,17/09/2023,50405854,805.14,Absolute Care Services Ltd,SOCIAL SERVICES DAY CARE,People's Services,Home Care Services,A56019
London Borough of Sutton,17/09/2023,50405894,16.08,Absolute Care Services Ltd,SOCIAL SERVICES DAY CARE,People's Services,Home Care Services,A56019
London Borough of Sutton,17/09/2023,50405894,506.52,Absolute Care Services Ltd,SOCIAL SERVICES DAY CARE,People's Services,Home Care Services,A56019
London Borough of Sutton,17/09/2023,50405976,506.52,Absolute Care Services Ltd,SOCIAL SERVICES DAY CARE,People's Services,Home Care Services,A56019
London Borough of Sutton,17/09/2023,50405976,24.12,Absolute Care Services Ltd,SOCIAL SERVICES DAY CARE,People's Services,Home Care Services,A56019
London Borough of Sutton,17/09/2023,50406005,450.24,Absolute Care Services Ltd,SOCIAL SERVICES DAY CARE,People's Services,Home Care Services,A56019
London Borough of Sutton,17/09/2023,50406005,225.12,Absolute Care Services Ltd,SOCIAL SERVICES DAY CARE,People's Services,Home Care Services,A56019
London Borough of Sutton,17/09/2023,50406035,506.52,Absolute Care Services Ltd,SOCIAL SERVICES DAY CARE,People's Services,Home Care Services,A56019
London Borough of Sutton,17/09/2023,50406035,16.08,Absolute Care Services Ltd,SOCIAL SERVICES DAY CARE,People's Services,Home Care Services,A56019
London Borough of Sutton,24/09/2023,50406260,659.04,Absolute Care Services Ltd,SOCIAL SERVICES DAY CARE,People's Services,Home Care Services,A56019
London Borough of Sutton,24/09/2023,50406281,62.73,Absolute Care Services Ltd,SOCIAL SERVICES DAY CARE,People's Services,Home Care Services,A56019
London Borough of Sutton,24/09/2023,50406281,794.72,Absolute Care Services Ltd,SOCIAL SERVICES DAY CARE,People's Services,Home Care Services,A56019
London Borough of Sutton,24/09/2023,50406292,732.49,Absolute Care Services Ltd,SOCIAL SERVICES DAY CARE,People's Services,Home Care Services,A56019
London Borough of Sutton,24/09/2023,50406397,450.24,Absolute Care Services Ltd,SOCIAL SERVICES DAY CARE,People's Services,Home Care Services,A56019
London Borough of Sutton,24/09/2023,50406397,225.12,Absolute Care Services Ltd,SOCIAL SERVICES DAY CARE,People's Services,Home Care Services,A56019
London Borough of Sutton,24/09/2023,50406423,506.52,Absolute Care Services Ltd,SOCIAL SERVICES DAY CARE,People's Services,Home Care Services,A56019
London Borough of Sutton,24/09/2023,50406423,16.08,Absolute Care Services Ltd,SOCIAL SERVICES DAY CARE,People's Services,Home Care Services,A56019
London Borough of Sutton,24/09/2023,50406460,16.08,Absolute Care Services Ltd,SOCIAL SERVICES DAY CARE,People's Services,Home Care Services,A56019
London Borough of Sutton,24/09/2023,50406460,506.52,Absolute Care Services Ltd,SOCIAL SERVICES DAY CARE,People's Services,Home Care Services,A56019
London Borough of Sutton,06/09/2023,20057367,"6,014.80",Access UK Limited,TAXI AND COACH HIRE,People's Services,Childrens Social Care Transport,A32009
London Borough of Sutton,13/09/2023,20057904,"98,945.29",Access UK Limited,TAXI AND COACH HIRE,People's Services,Childrens Social Care Transport,A32009
London Borough of Sutton,20/09/2023,20058352,"160,233.58",Access UK Limited,TAXI AND COACH HIRE,People's Services,Childrens Social Care Transport,A32009
London Borough of Sutton,27/09/2023,20058884,"244,559.43",Access UK Limited,TAXI AND COACH HIRE,People's Services,Childrens Social Care Transport,A32009
London Borough of Sutton,29/08/2023,20056878,"1,745.20",Accomadata Ltd,SUNDRY SUPPLIER - HOUSING,Environment Housing and Neighbourhoods,Rent Deposit Scheme,B32179
London Borough of Sutton,01/09/2023,50395149,"-3,753.18",Achieve Together Limited,SOCIAL SERVICES RESIDENTIAL,People's Services,Residential Care - Client Cont ( Net Paymt ),A56113
London Borough of Sutton,01/09/2023,50395149,"4,682.44",Achieve Together Limited,SOCIAL SERVICES RESIDENTIAL,People's Services,Residential Care - Ext Provider,A56114
London Borough of Sutton,01/09/2023,50395187,-438.80,Achieve Together Limited,SOCIAL SERVICES RESIDENTIAL,People's Services,Residential Care - Client Cont ( Net Paymt ),A56113
London Borough of Sutton,01/09/2023,50395187,"6,845.04",Achieve Together Limited,SOCIAL SERVICES RESIDENTIAL,People's Services,Residential Care - Ext Provider,A56114
London Borough of Sutton,01/09/2023,50395284,"8,103.64",Achieve Together Limited,SOCIAL SERVICES RESIDENTIAL,People's Services,Residential Care - Ext Provider,A56114
London Borough of Sutton,01/09/2023,50395284,-740.90,Achieve Together Limited,SOCIAL SERVICES RESIDENTIAL,People's Services,Residential Care - Client Cont ( Net Paymt ),A56113
London Borough of Sutton,01/09/2023,50395334,"5,100.00",Achieve Together Limited,SOCIAL SERVICES RESIDENTIAL,People's Services,Residential Care - Ext Provider,A56114
London Borough of Sutton,01/09/2023,50395433,-549.00,Achieve Together Limited,SOCIAL SERVICES RESIDENTIAL,People's Services,Residential Care - Client Cont ( Net Paymt ),A56113
London Borough of Sutton,01/09/2023,50395433,390.00,Achieve Together Limited,SOCIAL SERVICES RESIDENTIAL,People's Services,One to One Care,A56108
London Borough of Sutton,01/09/2023,50395433,"4,375.48",Achieve Together Limited,SOCIAL SERVICES RESIDENTIAL,People's Services,Residential Care - Ext Provider,A56114
London Borough of Sutton,01/09/2023,50395677,"5,810.56",Achieve Together Limited,SOCIAL SERVICES RESIDENTIAL,People's Services,Residential Care - Ext Provider,A56114
London Borough of Sutton,01/09/2023,50395726,"7,303.88",Achieve Together Limited,SOCIAL SERVICES RESIDENTIAL,People's Services,Residential Care - Ext Provider,A56114
London Borough of Sutton,01/09/2023,50395189,-483.20,Achieve Together Limited,SOCIAL SERVICES RESIDENTIAL,People's Services,Residential Care - Client Cont ( Net Paymt ),A56113
London Borough of Sutton,01/09/2023,50395189,"5,620.60",Achieve Together Limited,SOCIAL SERVICES RESIDENTIAL,People's Services,Residential Care - Ext Provider,A56114
London Borough of Sutton,01/09/2023,50395268,"11,047.88",Achieve Together Limited,SOCIAL SERVICES RESIDENTIAL,People's Services,Residential Care - Ext Provider,A56114
London Borough of Sutton,01/09/2023,50395276,"4,653.76",Achieve Together Limited,SOCIAL SERVICES RESIDENTIAL,People's Services,Residential Care - Ext Provider,A56114
London Borough of Sutton,19/09/2023,50401838,"1,027.20",Achieve Together Limited,SOCIAL SERVICES RESIDENTIAL,People's Services,Supported Living,A56088
London Borough of Sutton,19/09/2023,50401838,"1,027.20",Achieve Together Limited,SOCIAL SERVICES RESIDENTIAL,People's Services,Supported Living,A56088
London Borough of Sutton,19/09/2023,50401838,859.46,Achieve Together Limited,SOCIAL SERVICES RESIDENTIAL,People's Services,Supported Living,A56088
London Borough of Sutton,19/09/2023,50401839,"2,568.00",Achieve Together Limited,SOCIAL SERVICES RESIDENTIAL,People's Services,Supported Living,A56088
London Borough of Sutton,19/09/2023,50401890,"2,311.20",Achieve Together Limited,SOCIAL SERVICES RESIDENTIAL,People's Services,Supported Living,A56088
London Borough of Sutton,19/09/2023,50401890,599.44,Achieve Together Limited,SOCIAL SERVICES RESIDENTIAL,People's Services,Supported Living,A56088
London Borough of Sutton,19/09/2023,50401890,620.83,Achieve Together Limited,SOCIAL SERVICES RESIDENTIAL,People's Services,Supported Living,A56088
London Borough of Sutton,19/09/2023,50401912,"2,845.33",Achieve Together Limited,SOCIAL SERVICES RESIDENTIAL,People's Services,Supported Living,A56088
London Borough of Sutton,19/09/2023,50401912,"3,081.60",Achieve Together Limited,SOCIAL SERVICES RESIDENTIAL,People's Services,Supported Living,A56088
London Borough of Sutton,27/09/2023,50406178,"2,491.00",Achieving For Children Limited,SOCIAL SERVICES - OTHER,People's Services,Special Educational Needs,A51015
London Borough of Sutton,02/08/2023,50397767,"16,784.33",Acorn Homes UK Ltd,CHILDREN'S SERVICES - FOSTERING & ADOPTION SERVICES,People's Services,Residential Care-Children,A56115
London Borough of Sutton,01/09/2023,50395338,"4,231.40",Acorn Lodge,SOCIAL SERVICES RESIDENTIAL,People's Services,Residential Care - Ext Provider,A56114
London Borough of Sutton,01/09/2023,50395252,"5,844.00",Acorn Residential Home,SOCIAL SERVICES RESIDENTIAL,People's Services,Residential Care - Ext Provider,A56114
London Borough of Sutton,01/09/2023,50395278,"12,090.00",Acorn Residential Home,SOCIAL SERVICES RESIDENTIAL,People's Services,Residential Care Respite,A56018
London Borough of Sutton,01/09/2023,50395227,"6,441.84",Active Prospects,SOCIAL SERVICES DAY CARE,People's Services,Residential Care - Ext Provider,A56114
London Borough of Sutton,01/09/2023,50395330,"8,918.80",Active Prospects,SOCIAL SERVICES DAY CARE,People's Services,Residential Care - Ext Provider,A56114
London Borough of Sutton,01/09/2023,50395330,-438.80,Active Prospects,SOCIAL SERVICES DAY CARE,People's Services,Residential Care - Client Cont ( Net Paymt ),A56113
London Borough of Sutton,01/09/2023,50395237,"6,000.00",Admiral Healthcare Ltd,SOCIAL SERVICES RESIDENTIAL,People's Services,Residential Care - Ext Provider,A56114
London Borough of Sutton,01/09/2023,50395304,"1,458.00",Admiral Healthcare Ltd,SOCIAL SERVICES RESIDENTIAL,People's Services,Residential Care - Ext Provider,A56114
London Borough of Sutton,28/08/2023,50397740,"3,715.35",Affinity Fostering Services Ltd,CHILDREN'S SERVICES - FOSTERING & ADOPTION SERVICES,People's Services,Foster Parents Support,A44110
London Borough of Sutton,28/08/2023,50397741,"3,527.49",Affinity Fostering Services Ltd,CHILDREN'S SERVICES - FOSTERING & ADOPTION SERVICES,People's Services,Foster Parents Support,A44110
London Borough of Sutton,28/08/2023,50397742,"3,317.31",Affinity Fostering Services Ltd,CHILDREN'S SERVICES - FOSTERING & ADOPTION SERVICES,People's Services,Foster Parents Support,A44110
London Borough of Sutton,28/08/2023,50397748,"3,494.01",Affinity Fostering Services Ltd,CHILDREN'S SERVICES - FOSTERING & ADOPTION SERVICES,People's Services,Foster Parents Support,A44110
London Borough of Sutton,19/09/2023,50401904,"1,958.91",Agincare Enable Limited,SOCIAL SERVICES RESIDENTIAL,People's Services,One to One Care,A56108
London Borough of Sutton,19/09/2023,50401904,"1,958.91",Agincare Enable Limited,SOCIAL SERVICES RESIDENTIAL,People's Services,Supported Living,A56088
London Borough of Sutton,19/09/2023,50401904,441.00,Agincare Enable Limited,SOCIAL SERVICES RESIDENTIAL,People's Services,Supported Living,A56088
London Borough of Sutton,01/09/2023,50395257,"7,793.40",Leighton House Ltd,SOCIAL SERVICES RESIDENTIAL,People's Services,Residential Care - Ext Provider,A56114
London Borough of Sutton,01/09/2023,50395285,"8,716.00",Aitch Care Homes,SOCIAL SERVICES RESIDENTIAL,People's Services,Residential Care - Ext Provider,A56114
London Borough of Sutton,05/09/2023,20057426,"1,350.00",REDACTED - PERSONAL DATA,REFUSE COLLECTION / DISPOSAL,Resources,Equipment And Materials Repairs & Maintenance,A40051
London Borough of Sutton,31/08/2023,20057048,"3,368.30",Albany Housing YP Ltd,CARE LEAVERS,People's Services,Approved Lodgings,A61000
London Borough of Sutton,10/05/2023,20057843,"5,495.68",Alderton Associates Ltd,TEMP STAFF & CONSULTANCY,HRA,Payments to Contractors,C14000
London Borough of Sutton,03/09/2023,50396236,"27,636.94",All Saints Benhilton C Of E,SCHOOL FUNDS,People's Services,Top-up Funding,A51016
London Borough of Sutton,12/09/2023,50396981,"168,131.48",All Saints Benhilton C Of E,SCHOOL FUNDS,People's Services,Payments to Schools,A51013
London Borough of Sutton,12/09/2023,50397028,"1,888.84",All Saints Benhilton C Of E,SCHOOL FUNDS,People's Services,Other payments to schools,A51023
London Borough of Sutton,12/09/2023,50397045,"2,600.00",All Saints Benhilton C Of E,SCHOOL FUNDS,People's Services,Other payments to schools,A51023
London Borough of Sutton,14/09/2023,50399286,"46,058.00",All Saints Benhilton C Of E,SCHOOL FUNDS,People's Services,FSM Supplementary,A60036
London Borough of Sutton,22/09/2023,50404177,"5,220.00",All Saints Benhilton C Of E,SCHOOL FUNDS,Resources,"Grants, Contributions & Donations",A47005
London Borough of Sutton,03/09/2023,50396237,"27,018.84",All Saints Carshalton Primary School,SCHOOL FUNDS,People's Services,Top-up Funding,A51016
London Borough of Sutton,05/09/2023,50396769,"4,000.00",All Saints Carshalton Primary School,SCHOOL FUNDS,People's Services,Predictable Needs funding,A56125
London Borough of Sutton,14/09/2023,50399298,"45,482.00",All Saints Carshalton Primary School,SCHOOL FUNDS,People's Services,FSM Supplementary,A60036
London Borough of Sutton,22/09/2023,50404178,"2,160.00",All Saints Carshalton Primary School,SCHOOL FUNDS,Resources,"Grants, Contributions & Donations",A47005
London Borough of Sutton,01/09/2023,50395185,"4,806.52",Allied Care (Mhs) Ltd,SOCIAL SERVICES - OTHER,People's Services,Residential Care - Ext Provider,A56114
London Borough of Sutton,01/09/2023,20057239,"1,637.77",Allstar Business Solutions,FUEL AND VEHICLE SUPPLIES,Environment Housing and Neighbourhoods,Vehicles -  Fuel,A30015
London Borough of Sutton,01/09/2023,50395526,"5,397.60",Allswell Care Services Ltd,SOCIAL SERVICES RESIDENTIAL,People's Services,Residential Care - Ext Provider,A56114
London Borough of Sutton,01/09/2023,50395590,"5,397.60",Allswell Care Services Ltd,SOCIAL SERVICES RESIDENTIAL,People's Services,Residential Care - Ext Provider,A56114
London Borough of Sutton,01/09/2023,50395715,"6,609.52",Allswell Care Services Ltd,SOCIAL SERVICES RESIDENTIAL,People's Services,Residential Care - Ext Provider,A56114
London Borough of Sutton,14/08/2023,50395752,"1,482.66",Alpenbest Limited,SOCIAL SERVICES DAY CARE,People's Services,Home Care Services,A56019
London Borough of Sutton,14/08/2023,50395784,551.82,Alpenbest Limited,SOCIAL SERVICES DAY CARE,People's Services,Home Care Services,A56019
London Borough of Sutton,14/08/2023,50395791,"1,314.96",Alpenbest Limited,SOCIAL SERVICES DAY CARE,People's Services,Home Care Services,A56019
London Borough of Sutton,14/08/2023,50395792,"3,944.88",Alpenbest Limited,SOCIAL SERVICES DAY CARE,People's Services,Home Care Services,A56019
London Borough of Sutton,14/08/2023,50395794,"1,293.27",Alpenbest Limited,SOCIAL SERVICES DAY CARE,People's Services,Home Care Services,A56019
London Borough of Sutton,14/08/2023,50395796,"1,354.05",Alpenbest Limited,SOCIAL SERVICES DAY CARE,People's Services,Home Care Services,A56019
London Borough of Sutton,14/08/2023,50395797,"1,014.55",Alpenbest Limited,SOCIAL SERVICES DAY CARE,People's Services,Home Care Services,A56019
London Borough of Sutton,14/08/2023,50395798,"2,217.36",Alpenbest Limited,SOCIAL SERVICES DAY CARE,People's Services,Home Care Services,A56019
London Borough of Sutton,14/08/2023,50395799,739.12,Alpenbest Limited,SOCIAL SERVICES DAY CARE,People's Services,Home Care Services,A56019
London Borough of Sutton,14/08/2023,50395800,"1,378.61",Alpenbest Limited,SOCIAL SERVICES DAY CARE,People's Services,Home Care Services,A56019
London Borough of Sutton,14/08/2023,50395801,579.72,Alpenbest Limited,SOCIAL SERVICES DAY CARE,People's Services,Home Care Services,A56019
London Borough of Sutton,11/09/2023,50399948,706.75,Alpenbest Limited,SOCIAL SERVICES DAY CARE,People's Services,Home Care Services,A56019
London Borough of Sutton,11/09/2023,50399949,"1,591.76",Alpenbest Limited,SOCIAL SERVICES DAY CARE,People's Services,Home Care Services,A56019
London Borough of Sutton,11/09/2023,50399950,"3,382.17",Alpenbest Limited,SOCIAL SERVICES DAY CARE,People's Services,Home Care Services,A56019
London Borough of Sutton,11/09/2023,50399952,"1,592.76",Alpenbest Limited,SOCIAL SERVICES DAY CARE,People's Services,Home Care Services,A56019
London Borough of Sutton,11/09/2023,50399954,"3,045.10",Alpenbest Limited,SOCIAL SERVICES DAY CARE,People's Services,Home Care Services,A56019
London Borough of Sutton,11/09/2023,50399954,729.42,Alpenbest Limited,SOCIAL SERVICES DAY CARE,People's Services,Home Care Services,A56019
London Borough of Sutton,11/09/2023,50399955,860.11,Alpenbest Limited,SOCIAL SERVICES DAY CARE,People's Services,Home Care Services,A56019
London Borough of Sutton,11/09/2023,50399956,"1,232.91",Alpenbest Limited,SOCIAL SERVICES DAY CARE,People's Services,Home Care Services,A56019
London Borough of Sutton,11/09/2023,50399957,911.91,Alpenbest Limited,SOCIAL SERVICES DAY CARE,People's Services,Home Care Services,A56019
London Borough of Sutton,11/09/2023,50399958,683.92,Alpenbest Limited,SOCIAL SERVICES DAY CARE,People's Services,Home Care Services,A56019
London Borough of Sutton,11/09/2023,50399959,"3,211.42",Alpenbest Limited,SOCIAL SERVICES DAY CARE,People's Services,Home Care Services,A56019
London Borough of Sutton,11/09/2023,50399962,860.11,Alpenbest Limited,SOCIAL SERVICES DAY CARE,People's Services,Home Care Services,A56019
London Borough of Sutton,11/09/2023,50399963,"1,007.84",Alpenbest Limited,SOCIAL SERVICES DAY CARE,People's Services,Home Care Services,A56019
London Borough of Sutton,11/09/2023,50399964,860.11,Alpenbest Limited,SOCIAL SERVICES DAY CARE,People's Services,Home Care Services,A56019
London Borough of Sutton,11/09/2023,50399966,"2,098.57",Alpenbest Limited,SOCIAL SERVICES DAY CARE,People's Services,Home Care Services,A56019
London Borough of Sutton,11/09/2023,50399966,"2,527.81",Alpenbest Limited,SOCIAL SERVICES DAY CARE,People's Services,Home Care Services,A56019
London Borough of Sutton,11/09/2023,50399973,"1,236.16",Alpenbest Limited,SOCIAL SERVICES DAY CARE,People's Services,Home Care Services,A56019
London Borough of Sutton,11/09/2023,50399979,739.12,Alpenbest Limited,SOCIAL SERVICES DAY CARE,People's Services,Home Care Services,A56019
London Borough of Sutton,11/09/2023,50399980,"1,605.71",Alpenbest Limited,SOCIAL SERVICES DAY CARE,People's Services,Home Care Services,A56019
London Borough of Sutton,11/09/2023,50399981,"3,211.42",Alpenbest Limited,SOCIAL SERVICES DAY CARE,People's Services,Home Care Services,A56019
London Borough of Sutton,11/09/2023,50399985,975.95,Alpenbest Limited,SOCIAL SERVICES DAY CARE,People's Services,Home Care Services,A56019
London Borough of Sutton,11/09/2023,50399998,"1,000.74",Alpenbest Limited,SOCIAL SERVICES DAY CARE,People's Services,Home Care Services,A56019
London Borough of Sutton,11/09/2023,50399999,"1,111.50",Alpenbest Limited,SOCIAL SERVICES DAY CARE,People's Services,Home Care Services,A56019
London Borough of Sutton,11/09/2023,50400002,"1,719.31",Alpenbest Limited,SOCIAL SERVICES DAY CARE,People's Services,Home Care Services,A56019
London Borough of Sutton,11/09/2023,50400003,"1,020.55",Alpenbest Limited,SOCIAL SERVICES DAY CARE,People's Services,Home Care Services,A56019
London Borough of Sutton,11/09/2023,50400006,"1,605.71",Alpenbest Limited,SOCIAL SERVICES DAY CARE,People's Services,Home Care Services,A56019
London Borough of Sutton,11/09/2023,50400008,"1,605.71",Alpenbest Limited,SOCIAL SERVICES DAY CARE,People's Services,Home Care Services,A56019
London Borough of Sutton,12/09/2023,50397294,589.05,REDACTED - PERSONAL DATA,GRANTS & EX GRATIA PAYMENTS,People's Services,Payment - Nursery Funding,A51056
London Borough of Sutton,12/09/2023,50397245,"1,688.40",REDACTED - PERSONAL DATA,CHILDMINDERS START UP GRANT,People's Services,Payment - Nursery Funding,A51056
London Borough of Sutton,01/09/2023,50395172,"2,928.57",ANA Treatment Centres Ltd,SOCIAL SERVICES RESIDENTIAL,People's Services,Interim Placements - Ext Provider,A56102
London Borough of Sutton,01/09/2023,50395171,"2,908.20",Anchor Trust ,SOCIAL SERVICES RESIDENTIAL,People's Services,Residential Care - Ext Provider,A56114
London Borough of Sutton,12/09/2023,50397241,589.05,REDACTED - PERSONAL DATA,"SOCIAL SERVICES - DOLS, GUM & BIA ASSESSMENTS",People's Services,Payment - Nursery Funding,A51056
London Borough of Sutton,12/09/2023,50397277,883.58,REDACTED - PERSONAL DATA,GRANTS & EX GRATIA PAYMENTS,People's Services,Payment - Nursery Funding,A51056
London Borough of Sutton,01/07/2023,20056537,928.00,REDACTED - PERSONAL DATA,FOSTER PARENTS,People's Services,Special Guardianship,A56011
London Borough of Sutton,03/09/2023,50397678,"1,721.12",Ansacare Fostering Agency Ltd,CHILDREN'S SERVICES - FOSTERING & ADOPTION SERVICES,People's Services,Foster Parents Support,A44110
London Borough of Sutton,03/09/2023,50397752,"3,476.43",Ansacare Fostering Agency Ltd,CHILDREN'S SERVICES - FOSTERING & ADOPTION SERVICES,People's Services,Foster Parents Support,A44110
London Borough of Sutton,14/08/2023,20057789,"15,209.61",Aon UK Limited,FINANCIAL / INSURANCE INSTNS,Resources,General Insurance (Excl Premises & Transport),A44260
London Borough of Sutton,14/08/2023,20057789,"1,825.15",Aon UK Limited,FINANCIAL / INSURANCE INSTNS,Resources,General Insurance (Excl Premises & Transport),A44260
London Borough of Sutton,01/08/2023,50397778,"6,576.34",Ascent Fostering Agency Ltd,CHILDREN'S SERVICE - OTHER,People's Services,Foster Parents Support,A44110
London Borough of Sutton,01/09/2023,50395248,"3,821.24",Ashton Care Homes Ltd.,SOCIAL SERVICES RESIDENTIAL,People's Services,Nursing Care - Ext Provider,A56025
London Borough of Sutton,01/09/2023,50395248,-836.76,Ashton Care Homes Ltd.,SOCIAL SERVICES RESIDENTIAL,People's Services,Nursing Care - 3rd party top up payment,A56023
London Borough of Sutton,01/09/2023,50395311,"3,980.00",Ashurst Lodge Healthcare Ltd,CHILDREN'S SERVICES - RESIDENTIAL,People's Services,Residential Care - Ext Provider,A56114
London Borough of Sutton,01/09/2023,50395311,"-1,990.00",Ashurst Lodge Healthcare Ltd,CHILDREN'S SERVICES - RESIDENTIAL,People's Services,Nursing Care - 3rd party top up payment,A56023
London Borough of Sutton,01/09/2023,50395194,"6,478.84",Aspen Place,SOCIAL SERVICES DAY CARE,People's Services,Nursing Care - Ext Provider,A56025
London Borough of Sutton,01/09/2023,50395194,-878.84,Aspen Place,SOCIAL SERVICES DAY CARE,People's Services,Nursing Care - 3rd party top up payment,A56023
London Borough of Sutton,01/09/2023,50395324,"5,699.00",Aspens Charities,SOCIAL SERVICES RESIDENTIAL,People's Services,Residential Care - Ext Provider,A56114
London Borough of Sutton,04/09/2023,50397796,"2,480.00",Aspirations Care Ltd,SOCIAL SERVICES DAY CARE,People's Services,Home Care Services,A56019
London Borough of Sutton,04/09/2023,50397796,"7,356.61",Aspirations Care Ltd,SOCIAL SERVICES DAY CARE,People's Services,Home Care Services,A56019
London Borough of Sutton,31/08/2023,20057043,"2,686.97",Atalian Servest Limited,PREMISES - CLEANING & LAUNDRY,Resources,FM - Building Cleaning Contract - Servest,A56095
London Borough of Sutton,07/09/2023,50397688,"24,312.86",Athena Housing and Support Ltd,CHILDREN'S SERVICES - RESIDENTIAL,People's Services,Residential Care-Children,A56115
London Borough of Sutton,12/09/2023,50397237,"1,125.60",Aunty Connies Childcare,ACADEMIC INSTNS - OTHER,People's Services,Payment - Nursery Funding,A51056
London Borough of Sutton,01/09/2023,50395281,"6,400.00",Autism & Aspergers Care Services,SOCIAL SERVICES RESIDENTIAL,People's Services,Residential Care - Ext Provider,A56114
London Borough of Sutton,08/09/2023,20057633,"1,000.00",REDACTED - PERSONAL DATA,INSTALLATION OF ARTISTIC WORKS (NON-FUNCTIONAL),Health and Wellbeing,Arts Programme,A44286
London Borough of Sutton,28/08/2023,50397733,"49,998.57",Avance Ltd,CHILDREN'S SERVICES - FOSTERING & ADOPTION SERVICES,People's Services,Residential Care-Children,A56115
London Borough of Sutton,03/09/2023,50396238,"62,213.82",Avenue Primary Acadamy,SCHOOL FUNDS,People's Services,Top-up Funding,A51016
London Borough of Sutton,03/09/2023,50396238,"314,953.38",Avenue Primary Acadamy,SCHOOL FUNDS,People's Services,Top-up Funding,A51016
London Borough of Sutton,12/09/2023,50397142,"16,052.40",Avenue Primary Acadamy,SCHOOL FUNDS,People's Services,Payment - Nursery Funding,A51056
London Borough of Sutton,14/09/2023,50399308,"112,651.00",Avenue Primary Acadamy,SCHOOL FUNDS,People's Services,FSM Supplementary,A60036
London Borough of Sutton,22/09/2023,50404179,"10,890.00",Avenue Primary Acadamy,SCHOOL FUNDS,Resources,"Grants, Contributions & Donations",A47005
London Borough of Sutton,30/06/2023,50395141,"19,425.00",Ayai Care Limited,SOCIAL SERVICES DAY CARE,People's Services,Approved Lodgings,A61000
London Borough of Sutton,31/07/2023,50395142,"48,869.29",Ayai Care Limited,SOCIAL SERVICES DAY CARE,People's Services,Residential Care-Children,A56115
London Borough of Sutton,31/07/2023,50395143,"24,251.96",Ayai Care Limited,SOCIAL SERVICES DAY CARE,People's Services,Residential Care-Children,A56115
London Borough of Sutton,31/07/2023,50395144,"20,072.50",Ayai Care Limited,SOCIAL SERVICES DAY CARE,People's Services,Approved Lodgings,A61000
London Borough of Sutton,30/06/2023,50395145,"47,292.86",Ayai Care Limited,SOCIAL SERVICES DAY CARE,People's Services,Residential Care-Children,A56115
London Borough of Sutton,30/06/2023,50395146,"23,469.64",Ayai Care Limited,SOCIAL SERVICES DAY CARE,People's Services,Residential Care-Children,A56115
London Borough of Sutton,19/09/2023,50401817,"13,680.00",Ayai Care Limited,SOCIAL SERVICES DAY CARE,People's Services,Supported Living,A56088
London Borough of Sutton,19/09/2023,50401878,"13,165.71",Ayai Care Limited,SOCIAL SERVICES DAY CARE,People's Services,Supported Living,A56088
London Borough of Sutton,23/08/2023,50397781,276.78,Back on Track Housing Ltd,SOCIAL SERVICES - OTHER,People's Services,Approved Lodgings,A61000
London Borough of Sutton,23/08/2023,50397781,"6,200.00",Back on Track Housing Ltd,SOCIAL SERVICES - OTHER,People's Services,Approved Lodgings,A61000
London Borough of Sutton,23/08/2023,50397782,"5,059.46",Back on Track Housing Ltd,SOCIAL SERVICES - OTHER,People's Services,Accommodation - Supported Living,A62001
London Borough of Sutton,23/08/2023,50397783,276.78,Back on Track Housing Ltd,SOCIAL SERVICES - OTHER,People's Services,Approved Lodgings,A61000
London Borough of Sutton,23/08/2023,50397783,"6,200.00",Back on Track Housing Ltd,SOCIAL SERVICES - OTHER,People's Services,Approved Lodgings,A61000
London Borough of Sutton,23/08/2023,50397784,276.78,Back on Track Housing Ltd,SOCIAL SERVICES - OTHER,People's Services,Approved Lodgings,A61000
London Borough of Sutton,23/08/2023,50397784,"7,528.57",Back on Track Housing Ltd,SOCIAL SERVICES - OTHER,People's Services,Approved Lodgings,A61000
London Borough of Sutton,03/09/2023,50396239,"58,510.36",Bandon Hill Primary School (Academy),SCHOOL FUNDS,People's Services,Top-up Funding,A51016
London Borough of Sutton,03/09/2023,50396286,"63,949.12",Bandon Hill Primary School (Academy),SCHOOL FUNDS,People's Services,Top-up Funding,A51016
London Borough of Sutton,03/09/2023,50396286,"261,973.20",Bandon Hill Primary School (Academy),SCHOOL FUNDS,People's Services,Top-up Funding,A51016
London Borough of Sutton,12/09/2023,50397143,"11,730.60",Bandon Hill Primary School (Academy),SCHOOL FUNDS,People's Services,Payment - Nursery Funding,A51056
London Borough of Sutton,14/09/2023,50399309,"45,734.00",Bandon Hill Primary School (Academy),SCHOOL FUNDS,People's Services,FSM Supplementary,A60036
London Borough of Sutton,22/09/2023,50404180,"6,210.00",Bandon Hill Primary School (Academy),SCHOOL FUNDS,Resources,"Grants, Contributions & Donations",A47005
London Borough of Sutton,22/09/2023,50404239,"2,040.00",Bandon Hill Primary School (Academy),SCHOOL FUNDS,Resources,"Grants, Contributions & Donations",A47005
London Borough of Sutton,31/08/2023,50397746,"4,774.00",Banya,SOCIAL SERVICES RESIDENTIAL,People's Services,Foster Parents Support,A44110
London Borough of Sutton,01/09/2023,50395347,"4,096.12",Barchester Healthcare Homes Ltd,SOCIAL SERVICES RESIDENTIAL,People's Services,Nursing Care - Ext Provider,A56025
London Borough of Sutton,01/09/2023,50395347,-878.84,Barchester Healthcare Homes Ltd,SOCIAL SERVICES RESIDENTIAL,People's Services,Nursing Care - 3rd party top up payment,A56023
London Borough of Sutton,12/09/2023,20057806,"2,100.00",Barnaby's Property Group Ltd,SUNDRY SUPPLIER - HOUSING,Environment Housing and Neighbourhoods,Rent Deposit Scheme,B32179
London Borough of Sutton,12/09/2023,20057806,"1,000.00",Barnaby's Property Group Ltd,SUNDRY SUPPLIER - HOUSING,Environment Housing and Neighbourhoods,PSL Payments To Landlords,A22031
London Borough of Sutton,08/09/2023,20057720,"10,764.00",Barnardo's,CHILDREN'S SERVICES - RESIDENTIAL,People's Services,Play Groups,A56111
London Borough of Sutton,14/09/2023,20058054,"81,162.48",Beddington Infants School,SCHOOL FUNDS,People's Services,Payments to Contractors,C14000
London Borough of Sutton,15/09/2023,20058089,"10,880.00",Beddington Infants School,SCHOOL FUNDS,People's Services,Payments to Contractors,C14000
London Borough of Sutton,03/09/2023,50396241,"12,329.14",Beddington Infants School,SCHOOL FUNDS,People's Services,Top-up Funding,A51016
London Borough of Sutton,12/09/2023,50396975,"108,196.24",Beddington Infants School,SCHOOL FUNDS,People's Services,Payments to Schools,A51013
London Borough of Sutton,12/09/2023,50397034,944.42,Beddington Infants School,SCHOOL FUNDS,People's Services,Other payments to schools,A51023
London Borough of Sutton,12/09/2023,50397041,"2,600.00",Beddington Infants School,SCHOOL FUNDS,People's Services,Other payments to schools,A51023
London Borough of Sutton,12/09/2023,50397145,"16,052.40",Beddington Infants School,SCHOOL FUNDS,People's Services,Payment - Nursery Funding,A51056
London Borough of Sutton,22/09/2023,50404182,"3,960.00",Beddington Infants School,SCHOOL FUNDS,Resources,"Grants, Contributions & Donations",A47005
London Borough of Sutton,03/09/2023,50396242,"26,906.16",Beddington Park Primary (Academy) ,SCHOOL FUNDS,People's Services,Top-up Funding,A51016
London Borough of Sutton,12/09/2023,50397146,"10,495.80",Beddington Park Primary (Academy) ,SCHOOL FUNDS,People's Services,Payment - Nursery Funding,A51056
London Borough of Sutton,14/09/2023,50399295,"34,160.00",Beddington Park Primary (Academy) ,SCHOOL FUNDS,People's Services,FSM Supplementary,A60036
London Borough of Sutton,22/09/2023,50404183,"10,260.00",Beddington Park Primary (Academy) ,SCHOOL FUNDS,Resources,"Grants, Contributions & Donations",A47005
London Borough of Sutton,19/09/2023,50401916,"6,407.14",Beechcroft Care Limited,SOCIAL SERVICES RESIDENTIAL,People's Services,Supported Living,A56088
London Borough of Sutton,19/09/2023,50401916,787.50,Beechcroft Care Limited,SOCIAL SERVICES RESIDENTIAL,People's Services,One to One Care,A56108
London Borough of Sutton,23/08/2023,20056730,"1,780.83",Beeches Tree Care,AGRICULTURAL & ESTATE SERVICES,Environment Housing and Neighbourhoods,Tree Works,A56042
London Borough of Sutton,24/08/2023,20056738,866.67,Beeches Tree Care,AGRICULTURAL & ESTATE SERVICES,Environment Housing and Neighbourhoods,Tree Works,A56042
London Borough of Sutton,18/08/2023,20056836,499.22,Beeches Tree Care,AGRICULTURAL & ESTATE SERVICES,Environment Housing and Neighbourhoods,Purchases and Repairs Fixtures & Fittings,A25005
London Borough of Sutton,23/08/2023,20056837,"4,658.87",Beeches Tree Care,AGRICULTURAL & ESTATE SERVICES,Environment Housing and Neighbourhoods,Miscellaneous Expenses,A49000
London Borough of Sutton,16/08/2023,20056838,950.00,Beeches Tree Care,AGRICULTURAL & ESTATE SERVICES,Environment Housing and Neighbourhoods,Purchases and Repairs Fixtures & Fittings,A25005
London Borough of Sutton,06/09/2023,20057488,"6,857.08",Beeches Tree Care,AGRICULTURAL & ESTATE SERVICES,Environment Housing and Neighbourhoods,Highway Trees - Maintenance,A28005
London Borough of Sutton,11/09/2023,20057703,"7,885.92",Beeches Tree Care,AGRICULTURAL & ESTATE SERVICES,Environment Housing and Neighbourhoods,Highway Trees - Maintenance,A28005
London Borough of Sutton,13/09/2023,20057868,"2,118.32",Beeches Tree Care,AGRICULTURAL & ESTATE SERVICES,Environment Housing and Neighbourhoods,Maintenance of trees,A28003
London Borough of Sutton,13/09/2023,20057942,950.00,Beeches Tree Care,AGRICULTURAL & ESTATE SERVICES,Environment Housing and Neighbourhoods,Purchases and Repairs Fixtures & Fittings,A25005
London Borough of Sutton,21/09/2023,20058488,"1,639.81",Beeches Tree Care,AGRICULTURAL & ESTATE SERVICES,Environment Housing and Neighbourhoods,Tree Works,A56042
London Borough of Sutton,22/09/2023,20058615,758.15,Beeches Tree Care,AGRICULTURAL & ESTATE SERVICES,Environment Housing and Neighbourhoods,Tree Works,A56042
London Borough of Sutton,05/09/2023,50396763,"1,600.00",Belmont Village Playgroup,ACADEMIC INSTNS - OTHER,People's Services,Predictable Needs funding,A56125
London Borough of Sutton,12/09/2023,50397239,"3,004.16",Belmont Village Playgroup,ACADEMIC INSTNS - OTHER,People's Services,Payment - Nursery Funding,A51056
London Borough of Sutton,12/09/2023,50397315,"1,088.08",Bernadette Price,CHILDMINDERS START UP GRANT,People's Services,Payment - Nursery Funding,A51056
London Borough of Sutton,01/09/2023,50395199,"-3,890.68",Bespoke Care Support Ltd,SOCIAL SERVICES - OTHER,People's Services,Nursing Care - 3rd party top up payment,A56023
London Borough of Sutton,01/09/2023,50395240,"-2,000.00",Bespoke Care Support Ltd,SOCIAL SERVICES - OTHER,People's Services,Nursing Care - 3rd party top up payment,A56023
London Borough of Sutton,19/09/2023,50401911,"8,337.17",Bespoke Care Support Ltd,SOCIAL SERVICES - OTHER,People's Services,Supported Living,A56088
London Borough of Sutton,19/09/2023,50401914,"3,857.14",Bespoke Care Support Ltd,SOCIAL SERVICES - OTHER,People's Services,Supported Living,A56088
London Borough of Sutton,19/09/2023,50401925,"4,285.71",Bespoke Care Support Ltd,SOCIAL SERVICES - OTHER,People's Services,Supported Living,A56088
London Borough of Sutton,27/08/2023,50395808,855.47,Best at Home Domiciliary Care Services Ltd,SOCIAL SERVICES DAY CARE,People's Services,Home Care Services,A56019
London Borough of Sutton,27/08/2023,50395845,863.00,Best at Home Domiciliary Care Services Ltd,SOCIAL SERVICES DAY CARE,People's Services,Home Care Services,A56019
London Borough of Sutton,27/08/2023,50395874,105.00,Best at Home Domiciliary Care Services Ltd,SOCIAL SERVICES DAY CARE,People's Services,Home Care Services,A56019
London Borough of Sutton,27/08/2023,50395874,460.98,Best at Home Domiciliary Care Services Ltd,SOCIAL SERVICES DAY CARE,People's Services,Home Care Services,A56019
London Borough of Sutton,27/08/2023,50395882,"3,156.00",Best at Home Domiciliary Care Services Ltd,SOCIAL SERVICES DAY CARE,People's Services,Home Care Services,A56019
London Borough of Sutton,27/08/2023,50395895,"3,156.00",Best at Home Domiciliary Care Services Ltd,SOCIAL SERVICES DAY CARE,People's Services,Home Care Services,A56019
London Borough of Sutton,27/08/2023,50395907,901.97,Best at Home Domiciliary Care Services Ltd,SOCIAL SERVICES DAY CARE,People's Services,Home Care Services,A56019
London Borough of Sutton,03/09/2023,50401046,915.49,Best at Home Domiciliary Care Services Ltd,SOCIAL SERVICES DAY CARE,People's Services,Home Care Services,A56019
London Borough of Sutton,03/09/2023,50401050,527.00,Best at Home Domiciliary Care Services Ltd,SOCIAL SERVICES DAY CARE,People's Services,Home Care Services,A56019
London Borough of Sutton,03/09/2023,50401051,908.00,Best at Home Domiciliary Care Services Ltd,SOCIAL SERVICES DAY CARE,People's Services,Home Care Services,A56019
London Borough of Sutton,03/09/2023,50401062,"3,336.00",Best at Home Domiciliary Care Services Ltd,SOCIAL SERVICES DAY CARE,People's Services,Home Care Services,A56019
London Borough of Sutton,03/09/2023,50401063,"3,336.00",Best at Home Domiciliary Care Services Ltd,SOCIAL SERVICES DAY CARE,People's Services,Home Care Services,A56019
London Borough of Sutton,03/09/2023,50401066,941.98,Best at Home Domiciliary Care Services Ltd,SOCIAL SERVICES DAY CARE,People's Services,Home Care Services,A56019
London Borough of Sutton,10/09/2023,50402575,863.00,Best at Home Domiciliary Care Services Ltd,SOCIAL SERVICES DAY CARE,People's Services,Home Care Services,A56019
London Borough of Sutton,10/09/2023,50402591,"3,156.00",Best at Home Domiciliary Care Services Ltd,SOCIAL SERVICES DAY CARE,People's Services,Home Care Services,A56019
London Borough of Sutton,10/09/2023,50402594,"3,156.00",Best at Home Domiciliary Care Services Ltd,SOCIAL SERVICES DAY CARE,People's Services,Home Care Services,A56019
London Borough of Sutton,10/09/2023,50402599,901.97,Best at Home Domiciliary Care Services Ltd,SOCIAL SERVICES DAY CARE,People's Services,Home Care Services,A56019
London Borough of Sutton,10/09/2023,50402617,890.50,Best at Home Domiciliary Care Services Ltd,SOCIAL SERVICES DAY CARE,People's Services,Home Care Services,A56019
London Borough of Sutton,17/09/2023,50406238,890.50,Best at Home Domiciliary Care Services Ltd,SOCIAL SERVICES DAY CARE,People's Services,Home Care Services,A56019
London Borough of Sutton,17/09/2023,50406251,535.99,Best at Home Domiciliary Care Services Ltd,SOCIAL SERVICES DAY CARE,People's Services,Home Care Services,A56019
London Borough of Sutton,17/09/2023,50406256,981.94,Best at Home Domiciliary Care Services Ltd,SOCIAL SERVICES DAY CARE,People's Services,Home Care Services,A56019
London Borough of Sutton,17/09/2023,50406263,547.00,Best at Home Domiciliary Care Services Ltd,SOCIAL SERVICES DAY CARE,People's Services,Home Care Services,A56019
London Borough of Sutton,17/09/2023,50406269,863.00,Best at Home Domiciliary Care Services Ltd,SOCIAL SERVICES DAY CARE,People's Services,Home Care Services,A56019
London Borough of Sutton,17/09/2023,50406299,"3,156.00",Best at Home Domiciliary Care Services Ltd,SOCIAL SERVICES DAY CARE,People's Services,Home Care Services,A56019
London Borough of Sutton,17/09/2023,50406305,"3,156.00",Best at Home Domiciliary Care Services Ltd,SOCIAL SERVICES DAY CARE,People's Services,Home Care Services,A56019
London Borough of Sutton,17/09/2023,50406310,901.97,Best at Home Domiciliary Care Services Ltd,SOCIAL SERVICES DAY CARE,People's Services,Home Care Services,A56019
London Borough of Sutton,31/08/2023,20057301,"8,995.00",Bestcourt UK Ltd,ACCOMMODATION BED & BREAKFAST,Environment Housing and Neighbourhoods,Bed & Breakfast,A56000
London Borough of Sutton,08/09/2023,20057594,"2,239.26",Beta Chartered Surveyors Limited,SUNDRY SUPPLIER - FINANCE,HRA,External Fees and Consultants,C20000
London Borough of Sutton,08/08/2023,20056712,"3,540.00",Better Families Social Work Services Ltd,SUNDRY SUPPLIER - SOCIAL SERVICES,People's Services,One to One Care,A56108
London Borough of Sutton,19/09/2023,50401858,"4,500.00",BETTER LIFE SUPPORTED LIVING LIMITED,SOCIAL SERVICES RESIDENTIAL,People's Services,One to One Care,A56108
London Borough of Sutton,01/09/2023,50396865,"23,560.00",Beyond Autism,CHILDREN'S SERVICES - RESIDENTIAL,People's Services,Independent School Fees,A56002
London Borough of Sutton,01/09/2023,50396866,525.00,Beyond Autism,CHILDREN'S SERVICES - RESIDENTIAL,People's Services,Independent School Fees,A56002
London Borough of Sutton,01/09/2023,50396867,"22,872.67",Beyond Autism,CHILDREN'S SERVICES - RESIDENTIAL,People's Services,Independent School Fees,A56002
London Borough of Sutton,01/09/2023,50396869,"22,872.67",Beyond Autism,CHILDREN'S SERVICES - RESIDENTIAL,People's Services,Independent School Fees,A56002
London Borough of Sutton,01/09/2023,50396871,"21,783.33",Beyond Autism,CHILDREN'S SERVICES - RESIDENTIAL,People's Services,Independent School Fees,A56002
London Borough of Sutton,01/09/2023,50396873,"21,783.33",Beyond Autism,CHILDREN'S SERVICES - RESIDENTIAL,People's Services,Independent School Fees,A56002
London Borough of Sutton,01/09/2023,50396874,840.00,Beyond Autism,CHILDREN'S SERVICES - RESIDENTIAL,People's Services,Independent School Fees,A56002
London Borough of Sutton,01/09/2023,50396875,"21,783.33",Beyond Autism,CHILDREN'S SERVICES - RESIDENTIAL,People's Services,Independent School Fees,A56002
London Borough of Sutton,12/09/2023,50397335,"1,767.15",Bizzy Bees Day Nursery,ACADEMIC INSTNS - OTHER,People's Services,Payment - Nursery Funding,A51056
London Borough of Sutton,29/08/2023,20057727,600.00,Blacks Solictors LLP,SUNDRY SUPPLIER - FINANCE,Resources,Legal Services,A44025
London Borough of Sutton,31/08/2023,50403070,"1,500.00",Blessed Ltd,CHILDREN'S SERVICES - SEN SERVICES,People's Services,Independent School Fees,A56002
London Borough of Sutton,11/09/2023,20057721,"52,500.00",Bloom Procurement Services Ltd,TEMP STAFF & CONSULTANCY,Resources,Professional Fees,A44066
London Borough of Sutton,08/09/2023,20057763,"11,184.21",Bloom Procurement Services Ltd,TEMP STAFF & CONSULTANCY,Environment Housing and Neighbourhoods,Community Initiatives,A44288
London Borough of Sutton,13/09/2023,20057928,"7,279.00",Bloom Procurement Services Ltd,TEMP STAFF & CONSULTANCY,Development Growth and Regeneration,External Fees and Consultants,C20000
London Borough of Sutton,19/09/2023,50404499,"1,954.29",Blossom Fostering Services Ltd,CHILDREN'S SERVICES - FOSTERING & ADOPTION SERVICES,People's Services,Foster Parents Support,A44110
London Borough of Sutton,14/06/2023,50405872,519.50,Blossom Healthcare Ltd.,SOCIAL SERVICES-HOME CARE,People's Services,Home Care Services,A56019
London Borough of Sutton,10/05/2023,50405873,538.73,Blossom Healthcare Ltd.,SOCIAL SERVICES-HOME CARE,People's Services,Home Care Services,A56019
London Borough of Sutton,07/08/2023,50405875,557.50,Blossom Healthcare Ltd.,SOCIAL SERVICES-HOME CARE,People's Services,Home Care Services,A56019
London Borough of Sutton,27/09/2023,50406185,554.50,Blossom Healthcare Ltd.,SOCIAL SERVICES-HOME CARE,People's Services,Home Care Services,A56019
London Borough of Sutton,01/07/2023,50403068,"18,850.00",Blossom House Lower School,GRANTS & EX GRATIA PAYMENTS,People's Services,Independent School Fees,A56002
London Borough of Sutton,01/07/2023,50403069,"18,850.00",Blossom House Lower School,GRANTS & EX GRATIA PAYMENTS,People's Services,Independent School Fees,A56002
London Borough of Sutton,01/09/2023,50395167,"2,400.00",Brama Care Ltd,SOCIAL SERVICES-HOME CARE,People's Services,Nursing Care - Ext Provider,A56025
London Borough of Sutton,01/09/2023,50395383,-878.84,Bridge House Care Centre,SOCIAL SERVICES RESIDENTIAL,People's Services,Nursing Care - 3rd party top up payment,A56023
London Borough of Sutton,01/09/2023,50395383,"4,560.00",Bridge House Care Centre,SOCIAL SERVICES RESIDENTIAL,People's Services,Nursing Care Short Term,A56026
London Borough of Sutton,01/09/2023,50395384,"4,096.12",Bridge House Care Centre,SOCIAL SERVICES RESIDENTIAL,People's Services,Nursing Care - Ext Provider,A56025
London Borough of Sutton,01/09/2023,50395384,-878.84,Bridge House Care Centre,SOCIAL SERVICES RESIDENTIAL,People's Services,Nursing Care - 3rd party top up payment,A56023
London Borough of Sutton,01/09/2023,50395422,"4,978.76",Bridge House Care Centre,SOCIAL SERVICES RESIDENTIAL,People's Services,Nursing Care - Ext Provider,A56025
London Borough of Sutton,01/09/2023,50395422,-836.76,Bridge House Care Centre,SOCIAL SERVICES RESIDENTIAL,People's Services,Nursing Care - 3rd party top up payment,A56023
London Borough of Sutton,01/09/2023,50395423,"4,096.12",Bridge House Care Centre,SOCIAL SERVICES RESIDENTIAL,People's Services,Nursing Care Short Term,A56026
London Borough of Sutton,01/09/2023,50395423,-878.84,Bridge House Care Centre,SOCIAL SERVICES RESIDENTIAL,People's Services,Nursing Care - 3rd party top up payment,A56023
London Borough of Sutton,01/09/2023,50395424,"4,096.12",Bridge House Care Centre,SOCIAL SERVICES RESIDENTIAL,People's Services,Nursing Care - Ext Provider,A56025
London Borough of Sutton,01/09/2023,50395425,"4,096.12",Bridge House Care Centre,SOCIAL SERVICES RESIDENTIAL,People's Services,Nursing Care - Ext Provider,A56025
London Borough of Sutton,01/09/2023,50395425,-878.84,Bridge House Care Centre,SOCIAL SERVICES RESIDENTIAL,People's Services,Nursing Care - 3rd party top up payment,A56023
London Borough of Sutton,01/09/2023,50395491,-878.84,Bridge House Care Centre,SOCIAL SERVICES RESIDENTIAL,People's Services,Nursing Care - 3rd party top up payment,A56023
London Borough of Sutton,01/09/2023,50395492,"4,096.12",Bridge House Care Centre,SOCIAL SERVICES RESIDENTIAL,People's Services,Nursing Care - Ext Provider,A56025
London Borough of Sutton,01/09/2023,50395492,-878.84,Bridge House Care Centre,SOCIAL SERVICES RESIDENTIAL,People's Services,Nursing Care - 3rd party top up payment,A56023
London Borough of Sutton,01/09/2023,50395505,"4,096.12",Bridge House Care Centre,SOCIAL SERVICES RESIDENTIAL,People's Services,Nursing Care - Ext Provider,A56025
London Borough of Sutton,01/09/2023,50395516,-878.84,Bridge House Care Centre,SOCIAL SERVICES RESIDENTIAL,People's Services,Nursing Care - 3rd party top up payment,A56023
London Borough of Sutton,01/09/2023,50395516,"4,096.12",Bridge House Care Centre,SOCIAL SERVICES RESIDENTIAL,People's Services,Nursing Care - Ext Provider,A56025
London Borough of Sutton,01/09/2023,50395577,"4,096.12",Bridge House Care Centre,SOCIAL SERVICES RESIDENTIAL,People's Services,Nursing Care - Ext Provider,A56025
London Borough of Sutton,01/09/2023,50395577,-878.84,Bridge House Care Centre,SOCIAL SERVICES RESIDENTIAL,People's Services,Nursing Care - 3rd party top up payment,A56023
London Borough of Sutton,01/09/2023,50395632,"4,096.12",Bridge House Care Centre,SOCIAL SERVICES RESIDENTIAL,People's Services,Nursing Care - Ext Provider,A56025
London Borough of Sutton,01/09/2023,50395632,-878.84,Bridge House Care Centre,SOCIAL SERVICES RESIDENTIAL,People's Services,Nursing Care - 3rd party top up payment,A56023
London Borough of Sutton,01/09/2023,50395633,-750.40,Bridge House Care Centre,SOCIAL SERVICES RESIDENTIAL,People's Services,Nursing Care - 3rd party top up payment,A56023
London Borough of Sutton,01/09/2023,50395633,"3,734.88",Bridge House Care Centre,SOCIAL SERVICES RESIDENTIAL,People's Services,Nursing Care Short Term,A56026
London Borough of Sutton,01/09/2023,50395673,"4,096.12",Bridge House Care Centre,SOCIAL SERVICES RESIDENTIAL,People's Services,Nursing Care - Ext Provider,A56025
London Borough of Sutton,01/09/2023,50395673,-878.84,Bridge House Care Centre,SOCIAL SERVICES RESIDENTIAL,People's Services,Nursing Care - 3rd party top up payment,A56023
London Borough of Sutton,01/09/2023,50395674,"4,096.12",Bridge House Care Centre,SOCIAL SERVICES RESIDENTIAL,People's Services,Nursing Care - Ext Provider,A56025
London Borough of Sutton,01/09/2023,50395674,-878.84,Bridge House Care Centre,SOCIAL SERVICES RESIDENTIAL,People's Services,Nursing Care - 3rd party top up payment,A56023
London Borough of Sutton,01/09/2023,50395710,-878.84,Bridge House Care Centre,SOCIAL SERVICES RESIDENTIAL,People's Services,Nursing Care - 3rd party top up payment,A56023
London Borough of Sutton,01/09/2023,50395711,-878.84,Bridge House Care Centre,SOCIAL SERVICES RESIDENTIAL,People's Services,Nursing Care - 3rd party top up payment,A56023
London Borough of Sutton,01/09/2023,50395711,"4,096.12",Bridge House Care Centre,SOCIAL SERVICES RESIDENTIAL,People's Services,Nursing Care Short Term,A56026
London Borough of Sutton,01/09/2023,50395723,-878.84,Bridge House Care Centre,SOCIAL SERVICES RESIDENTIAL,People's Services,Nursing Care - 3rd party top up payment,A56023
London Borough of Sutton,01/09/2023,50395723,"4,560.00",Bridge House Care Centre,SOCIAL SERVICES RESIDENTIAL,People's Services,Nursing Care - Ext Provider,A56025
London Borough of Sutton,01/09/2023,50395724,-878.84,Bridge House Care Centre,SOCIAL SERVICES RESIDENTIAL,People's Services,Nursing Care - 3rd party top up payment,A56023
London Borough of Sutton,01/09/2023,50395724,"5,278.84",Bridge House Care Centre,SOCIAL SERVICES RESIDENTIAL,People's Services,Respite Care,A56116
London Borough of Sutton,01/09/2023,50395725,"4,096.12",Bridge House Care Centre,SOCIAL SERVICES RESIDENTIAL,People's Services,Nursing Care - Ext Provider,A56025
London Borough of Sutton,01/09/2023,50395725,-878.84,Bridge House Care Centre,SOCIAL SERVICES RESIDENTIAL,People's Services,Nursing Care - 3rd party top up payment,A56023
London Borough of Sutton,31/07/2023,20057070,"2,417.86",Bridgestock Housing Services,CHILDREN'S SERVICES - RESIDENTIAL,People's Services,Approved Lodgings,A61000
London Borough of Sutton,31/08/2023,50397704,276.78,Bridgestock Housing Services,CHILDREN'S SERVICES - RESIDENTIAL,People's Services,Approved Lodgings,A61000
London Borough of Sutton,31/08/2023,50397704,"5,203.58",Bridgestock Housing Services,CHILDREN'S SERVICES - RESIDENTIAL,People's Services,Approved Lodgings,A61000
London Borough of Sutton,31/08/2023,50397726,276.78,Bridgestock Housing Services,CHILDREN'S SERVICES - RESIDENTIAL,People's Services,Approved Lodgings,A61000
London Borough of Sutton,31/08/2023,50397726,"5,535.72",Bridgestock Housing Services,CHILDREN'S SERVICES - RESIDENTIAL,People's Services,Approved Lodgings,A61000
London Borough of Sutton,31/08/2023,50397747,276.78,Bridgestock Housing Services,CHILDREN'S SERVICES - RESIDENTIAL,People's Services,Approved Lodgings,A61000
London Borough of Sutton,31/08/2023,50397747,"5,978.57",Bridgestock Housing Services,CHILDREN'S SERVICES - RESIDENTIAL,People's Services,Approved Lodgings,A61000
London Borough of Sutton,01/08/2023,50397789,"3,498.57",Bridging Gaps Limited,CHILDREN'S SERVICES - FOSTERING & ADOPTION SERVICES,People's Services,Foster Parents Support,A44110
London Borough of Sutton,01/08/2023,50397790,"3,498.57",Bridging Gaps Limited,CHILDREN'S SERVICES - FOSTERING & ADOPTION SERVICES,People's Services,Foster Parents Support,A44110
London Borough of Sutton,25/07/2023,50397761,"4,041.07",Bridging the Gap,CHILDREN'S SERVICE - OTHER,People's Services,Approved Lodgings,A61000
London Borough of Sutton,01/08/2023,50397771,"3,485.02",Brighter Futures Foster Care Ltd,CHILDREN'S SERVICES - FOSTERING & ADOPTION SERVICES,People's Services,Foster Parents Support,A44110
London Borough of Sutton,01/08/2023,50397772,"3,683.73",Brighter Futures Foster Care Ltd,CHILDREN'S SERVICES - FOSTERING & ADOPTION SERVICES,People's Services,Foster Parents Support,A44110
London Borough of Sutton,18/09/2023,50403079,"3,845.96",Brit School,ACADEMIC INSTNS - OTHER,People's Services,Independent School Fees,A56002
London Borough of Sutton,22/08/2023,20056924,577.74,British Gas,UTILITIES,Resources,Gas,A21003
London Borough of Sutton,05/09/2023,20057894,"2,077.37",British Gas,UTILITIES,Resources,Electricity,A21000
London Borough of Sutton,20/09/2023,20058802,574.06,British Gas,UTILITIES,Resources,Gas,A21003
London Borough of Sutton,01/09/2023,50395277,-772.64,British Home & Hospital For Incurables,SOCIAL SERVICES RESIDENTIAL,People's Services,Nursing Care - Client Cont ( Net paymt ),A56024
London Borough of Sutton,01/09/2023,50395277,"2,591.80",British Home & Hospital For Incurables,SOCIAL SERVICES RESIDENTIAL,People's Services,Nursing Care - Ext Provider,A56025
London Borough of Sutton,29/08/2023,20057892,767.13,Browne Jacobson LLP,FINANCIAL / INSURANCE INSTNS,Resources,Professional Fees,A44066
London Borough of Sutton,29/08/2023,20057892,"8,838.80",Browne Jacobson LLP,FINANCIAL / INSURANCE INSTNS,Resources,Professional Fees,A44066
London Borough of Sutton,07/06/2023,20057893,"6,559.40",Browne Jacobson LLP,FINANCIAL / INSURANCE INSTNS,Resources,Professional Fees,A44066
London Borough of Sutton,27/06/2023,20057896,"12,975.10",Browne Jacobson LLP,FINANCIAL / INSURANCE INSTNS,Resources,Professional Fees,A44066
London Borough of Sutton,01/09/2023,20057109,"38,254.00",BuildVantage Limited,ACCOMMODATION BED & BREAKFAST,Environment Housing and Neighbourhoods,Bed & Breakfast,A56000
London Borough of Sutton,01/08/2023,20057639,"37,939.00",BuildVantage Limited,ACCOMMODATION BED & BREAKFAST,Environment Housing and Neighbourhoods,Bed & Breakfast,A56000
London Borough of Sutton,12/09/2023,50397180,"6,388.20",Bumpsa Daisies Nurserys,ACADEMIC INSTNS - OTHER,People's Services,Payment - Nursery Funding,A51056
London Borough of Sutton,12/09/2023,50397247,"11,256.00",Bumpsa Daisies Nurserys,ACADEMIC INSTNS - OTHER,People's Services,Payment - Nursery Funding,A51056
London Borough of Sutton,12/09/2023,50399101,"2,929.50",Bumpsa Daisies Nurserys,ACADEMIC INSTNS - OTHER,People's Services,Payment - school supplementary grant,A51062
London Borough of Sutton,12/09/2023,50399169,966.00,Bumpsa Daisies Nurserys,ACADEMIC INSTNS - OTHER,People's Services,Payment - school supplementary grant,A51062
London Borough of Sutton,01/09/2023,50395205,"4,339.24",Bupa Care Services,SOCIAL SERVICES RESIDENTIAL,People's Services,Nursing Care - Ext Provider,A56025
London Borough of Sutton,01/09/2023,50395205,-878.84,Bupa Care Services,SOCIAL SERVICES RESIDENTIAL,People's Services,Nursing Care - 3rd party top up payment,A56023
London Borough of Sutton,01/09/2023,50395270,"7,084.60",Bupa Care Services,SOCIAL SERVICES RESIDENTIAL,People's Services,Nursing Care Short Term,A56026
London Borough of Sutton,01/09/2023,50395270,-836.76,Bupa Care Services,SOCIAL SERVICES RESIDENTIAL,People's Services,Nursing Care - 3rd party top up payment,A56023
London Borough of Sutton,01/09/2023,50395309,"8,091.16",Bupa Care Services,SOCIAL SERVICES RESIDENTIAL,People's Services,Nursing Care Short Term,A56026
London Borough of Sutton,01/09/2023,50395309,"-1,436.76",Bupa Care Services,SOCIAL SERVICES RESIDENTIAL,People's Services,Nursing Care - 3rd party top up payment,A56023
London Borough of Sutton,01/09/2023,50395312,"4,096.12",Bupa Care Services,SOCIAL SERVICES RESIDENTIAL,People's Services,Nursing Care Short Term,A56026
London Borough of Sutton,01/09/2023,50395312,-878.84,Bupa Care Services,SOCIAL SERVICES RESIDENTIAL,People's Services,Nursing Care - 3rd party top up payment,A56023
London Borough of Sutton,01/09/2023,50395534,"4,096.12",Bupa Care Services,SOCIAL SERVICES RESIDENTIAL,People's Services,Nursing Care - Ext Provider,A56025
London Borough of Sutton,01/09/2023,50395648,"4,096.12",Bupa Care Services,SOCIAL SERVICES RESIDENTIAL,People's Services,Nursing Care Short Term,A56026
London Borough of Sutton,01/09/2023,50395648,-878.84,Bupa Care Services,SOCIAL SERVICES RESIDENTIAL,People's Services,Nursing Care - 3rd party top up payment,A56023
London Borough of Sutton,01/09/2023,50395683,-878.84,Bupa Care Services,SOCIAL SERVICES RESIDENTIAL,People's Services,Nursing Care - 3rd party top up payment,A56023
London Borough of Sutton,01/09/2023,50395691,"3,821.24",Bupa Care Services,SOCIAL SERVICES RESIDENTIAL,People's Services,Nursing Care Short Term,A56026
London Borough of Sutton,01/09/2023,50395691,-836.76,Bupa Care Services,SOCIAL SERVICES RESIDENTIAL,People's Services,Nursing Care - 3rd party top up payment,A56023
London Borough of Sutton,12/09/2023,50397250,"14,182.56",Busy Bees Day Nurseries Ltd,ACADEMIC INSTNS - OTHER,People's Services,Payment - Nursery Funding,A51056
London Borough of Sutton,12/09/2023,50399172,"1,217.16",Busy Bees Day Nurseries Ltd,ACADEMIC INSTNS - OTHER,People's Services,Payment - school supplementary grant,A51062
London Borough of Sutton,12/09/2023,50397249,"7,222.60",Busy Bees Day Nurseries Ltd,ACADEMIC INSTNS - OTHER,People's Services,Payment - Nursery Funding,A51056
London Borough of Sutton,12/09/2023,50399171,619.85,Busy Bees Day Nurseries Ltd,ACADEMIC INSTNS - OTHER,People's Services,Payment - school supplementary grant,A51062
London Borough of Sutton,01/09/2023,50395212,"8,118.48",Butterfly's Care Homes Ltd,SOCIAL SERVICES RESIDENTIAL,People's Services,Residential Care - Ext Provider,A56114
London Borough of Sutton,01/09/2023,50397679,"2,975.69",By The Bridge Ltd,CHILDREN'S SERVICES - FOSTERING & ADOPTION SERVICES,People's Services,Foster Parents Support,A44110
London Borough of Sutton,01/09/2023,50397680,"2,975.69",By The Bridge Ltd,CHILDREN'S SERVICES - FOSTERING & ADOPTION SERVICES,People's Services,Foster Parents Support,A44110
London Borough of Sutton,01/09/2023,50397703,"4,667.05",By The Bridge Ltd,CHILDREN'S SERVICES - FOSTERING & ADOPTION SERVICES,People's Services,Foster Parents Support,A44110
London Borough of Sutton,22/09/2023,20058612,"1,500.00",REDACTED - PERSONAL DATA,SUNDRY SUPPLIER - HOUSING,Environment Housing and Neighbourhoods,PSL Payments To Landlords,A22031
London Borough of Sutton,25/07/2023,50397762,"24,374.99",Calcot Services for Children Ltd,CHILDREN'S SERVICES - FOSTERING & ADOPTION SERVICES,People's Services,Residential Care-Children,A56115
London Borough of Sutton,25/08/2023,20056826,"1,200.00",Calford Seaden (Health and Safety) Ltd,LEGAL & PROFESSIONAL SERVICES,HRA,External Fees and Consultants,C20000
London Borough of Sutton,23/06/2023,20058039,"1,200.00",Calford Seaden (Health and Safety) Ltd,LEGAL & PROFESSIONAL SERVICES,HRA,External Fees and Consultants,C20000
London Borough of Sutton,29/08/2023,20057303,"3,383.44",Calfordseaden LLP,LEGAL & PROFESSIONAL SERVICES,Environment Housing and Neighbourhoods,External Fees and Consultants,C20000
London Borough of Sutton,25/08/2023,20057914,"1,593.00",Calfordseaden LLP,LEGAL & PROFESSIONAL SERVICES,HRA,External Fees and Consultants,C20000
London Borough of Sutton,25/07/2023,20058293,"2,099.44",Calfordseaden LLP,LEGAL & PROFESSIONAL SERVICES,HRA,External Fees and Consultants,C20000
London Borough of Sutton,24/08/2023,20058294,"9,240.00",Calfordseaden LLP,LEGAL & PROFESSIONAL SERVICES,HRA,Council Dwellings - Construction & Renovation,C10002
London Borough of Sutton,25/08/2023,50397759,"20,105.67",Cambian Childcare Ltd,CHILDREN'S SERVICES - FOSTERING & ADOPTION SERVICES,People's Services,Residential Care-Children,A56115
London Borough of Sutton,03/07/2023,50406165,"12,366.01",Canbury School LTD,GRANTS & EX GRATIA PAYMENTS,People's Services,Independent School Fees,A56002
London Borough of Sutton,01/09/2023,50395163,"4,060.72",Canterbury Oast Trust,SOCIAL SERVICES RESIDENTIAL,People's Services,Residential Care - Ext Provider,A56114
London Borough of Sutton,01/09/2023,50395163,204.72,Canterbury Oast Trust,SOCIAL SERVICES RESIDENTIAL,People's Services,One to One Care,A56108
London Borough of Sutton,01/09/2023,50395163,"-1,032.56",Canterbury Oast Trust,SOCIAL SERVICES RESIDENTIAL,People's Services,Residential Care - Client Cont ( Net Paymt ),A56113
London Borough of Sutton,21/09/2023,50404515,"1,000.00",Caprani Care Limited,SOCIAL SERVICES RESIDENTIAL,People's Services,Day Care Services,A56021
London Borough of Sutton,21/09/2023,50405084,"2,772.00",Caprani Care Limited,SOCIAL SERVICES RESIDENTIAL,People's Services,Supported Living,A56088
London Borough of Sutton,21/09/2023,50405084,"2,462.32",Caprani Care Limited,SOCIAL SERVICES RESIDENTIAL,People's Services,One to One Care,A56108
London Borough of Sutton,21/09/2023,50405084,841.68,Caprani Care Limited,SOCIAL SERVICES RESIDENTIAL,People's Services,Supported Living,A56088
London Borough of Sutton,31/08/2023,50397721,"6,125.29",Capstone Foster Care (South East) Ltd,CHILDREN'S SERVICES - FOSTERING & ADOPTION SERVICES,People's Services,Foster Parents Support,A44110
London Borough of Sutton,31/08/2023,50397722,"5,977.42",Capstone Foster Care (South East) Ltd,CHILDREN'S SERVICES - FOSTERING & ADOPTION SERVICES,People's Services,Foster Parents Support,A44110
London Borough of Sutton,31/08/2023,50400395,758.55,Capstone Foster Care (South West) Ltd,CHILDREN'S SERVICES - FOSTERING & ADOPTION SERVICES,People's Services,Foster Parents Support,A44110
London Borough of Sutton,31/08/2023,50400396,"1,398.60",Capstone Foster Care (South West) Ltd,CHILDREN'S SERVICES - FOSTERING & ADOPTION SERVICES,People's Services,Foster Parents Support,A44110
London Borough of Sutton,30/08/2023,50396224,"3,909.72",Care Advocates Ltd,MANAGEMENT & TRAINING SERVICES,People's Services,Supported Living,A56088
London Borough of Sutton,30/08/2023,50396224,"2,976.00",Care Advocates Ltd,MANAGEMENT & TRAINING SERVICES,People's Services,Supported Living,A56088
London Borough of Sutton,30/08/2023,50396224,"2,573.31",Care Advocates Ltd,MANAGEMENT & TRAINING SERVICES,People's Services,Supported Living,A56088
London Borough of Sutton,30/08/2023,50396225,"1,800.70",Care Advocates Ltd,MANAGEMENT & TRAINING SERVICES,People's Services,Supported Living,A56088
London Borough of Sutton,30/08/2023,50396225,"2,465.83",Care Advocates Ltd,MANAGEMENT & TRAINING SERVICES,People's Services,Supported Living,A56088
London Borough of Sutton,30/08/2023,50396225,"2,573.31",Care Advocates Ltd,MANAGEMENT & TRAINING SERVICES,People's Services,Supported Living,A56088
London Borough of Sutton,30/08/2023,50396226,"2,662.85",Care Advocates Ltd,MANAGEMENT & TRAINING SERVICES,People's Services,Supported Living,A56088
London Borough of Sutton,30/08/2023,50396226,"1,554.34",Care Advocates Ltd,MANAGEMENT & TRAINING SERVICES,People's Services,Supported Living,A56088
London Borough of Sutton,30/08/2023,50396226,"1,242.53",Care Advocates Ltd,MANAGEMENT & TRAINING SERVICES,People's Services,Supported Living,A56088
London Borough of Sutton,30/08/2023,50396227,"-3,635.06",Care Advocates Ltd,MANAGEMENT & TRAINING SERVICES,People's Services,Supported Living,A56088
London Borough of Sutton,30/08/2023,50396227,"6,547.20",Care Advocates Ltd,MANAGEMENT & TRAINING SERVICES,People's Services,Supported Living,A56088
London Borough of Sutton,30/08/2023,50396227,"2,573.31",Care Advocates Ltd,MANAGEMENT & TRAINING SERVICES,People's Services,Supported Living,A56088
London Borough of Sutton,01/09/2023,50395168,"3,400.00",Care Assist Ltd.,SOCIAL SERVICES RESIDENTIAL,People's Services,Residential Care - Ext Provider,A56114
London Borough of Sutton,01/09/2023,50395168,"-1,700.00",Care Assist Ltd.,SOCIAL SERVICES RESIDENTIAL,People's Services,Nursing Care - 3rd party top up payment,A56023
London Borough of Sutton,01/09/2023,50395192,-878.84,Care Base (Redhill) Ltd,SOCIAL SERVICES - OTHER,People's Services,Nursing Care - 3rd party top up payment,A56023
London Borough of Sutton,01/09/2023,50395192,"7,078.84",Care Base (Redhill) Ltd,SOCIAL SERVICES - OTHER,People's Services,Nursing Care - Ext Provider,A56025
London Borough of Sutton,01/09/2023,50395287,"7,078.84",Care Base (Redhill) Ltd,SOCIAL SERVICES - OTHER,People's Services,Nursing Care - Ext Provider,A56025
London Borough of Sutton,01/09/2023,50395287,-878.84,Care Base (Redhill) Ltd,SOCIAL SERVICES - OTHER,People's Services,Nursing Care - 3rd party top up payment,A56023
London Borough of Sutton,01/09/2023,50395195,"3,320.32",Care Concern Group,SOCIAL SERVICES RESIDENTIAL,People's Services,Residential Care - Ext Provider,A56114
London Borough of Sutton,19/09/2023,50401901,"2,003.57",Care Connexions UK Limited,SOCIAL SERVICES RESIDENTIAL,People's Services,One to One Care,A56108
London Borough of Sutton,01/09/2023,50395148,"3,768.36",Care Direct UK Ltd ,SOCIAL SERVICES RESIDENTIAL,People's Services,Residential Care - Ext Provider,A56114
London Borough of Sutton,31/08/2023,50397672,"44,671.00",Care Hubz Ltd,CHILDREN'S SERVICE - OTHER,People's Services,Residential Care-Children,A56115
London Borough of Sutton,13/02/2023,50395775,480.00,Care More Ltd,SOCIAL SERVICES RESIDENTIAL,People's Services,Home Care Services,A56019
London Borough of Sutton,13/02/2023,50395775,962.61,Care More Ltd,SOCIAL SERVICES RESIDENTIAL,People's Services,Home Care Services,A56019
London Borough of Sutton,05/12/2022,50395779,773.54,Care More Ltd,SOCIAL SERVICES RESIDENTIAL,People's Services,Home Care Services,A56019
London Borough of Sutton,24/10/2022,50395786,904.00,Care More Ltd,SOCIAL SERVICES RESIDENTIAL,People's Services,Home Care Services,A56019
London Borough of Sutton,24/10/2022,50395786,33.00,Care More Ltd,SOCIAL SERVICES RESIDENTIAL,People's Services,Home Care Services,A56019
London Borough of Sutton,21/11/2022,50395787,916.16,Care More Ltd,SOCIAL SERVICES RESIDENTIAL,People's Services,Home Care Services,A56019
London Borough of Sutton,21/11/2022,50395787,20.84,Care More Ltd,SOCIAL SERVICES RESIDENTIAL,People's Services,Home Care Services,A56019
London Borough of Sutton,21/11/2022,50395790,773.54,Care More Ltd,SOCIAL SERVICES RESIDENTIAL,People's Services,Home Care Services,A56019
London Borough of Sutton,27/08/2023,50398518,273.00,Care More Ltd,SOCIAL SERVICES RESIDENTIAL,People's Services,Home Care Services,A56019
London Borough of Sutton,27/08/2023,50398518,"1,022.00",Care More Ltd,SOCIAL SERVICES RESIDENTIAL,People's Services,Home Care Services,A56019
London Borough of Sutton,03/09/2023,50398519,273.00,Care More Ltd,SOCIAL SERVICES RESIDENTIAL,People's Services,Home Care Services,A56019
London Borough of Sutton,03/09/2023,50398519,"1,022.00",Care More Ltd,SOCIAL SERVICES RESIDENTIAL,People's Services,Home Care Services,A56019
London Borough of Sutton,27/08/2023,50398599,773.54,Care More Ltd,SOCIAL SERVICES RESIDENTIAL,People's Services,Home Care Services,A56019
London Borough of Sutton,03/09/2023,50398600,773.54,Care More Ltd,SOCIAL SERVICES RESIDENTIAL,People's Services,Home Care Services,A56019
London Borough of Sutton,27/08/2023,50398602,728.00,Care More Ltd,SOCIAL SERVICES RESIDENTIAL,People's Services,Home Care Services,A56019
London Borough of Sutton,03/09/2023,50398603,728.00,Care More Ltd,SOCIAL SERVICES RESIDENTIAL,People's Services,Home Care Services,A56019
London Borough of Sutton,27/08/2023,50398612,917.07,Care More Ltd,SOCIAL SERVICES RESIDENTIAL,People's Services,Home Care Services,A56019
London Borough of Sutton,27/08/2023,50398612,33.00,Care More Ltd,SOCIAL SERVICES RESIDENTIAL,People's Services,Home Care Services,A56019
London Borough of Sutton,03/09/2023,50398613,917.07,Care More Ltd,SOCIAL SERVICES RESIDENTIAL,People's Services,Home Care Services,A56019
London Borough of Sutton,03/09/2023,50398613,20.00,Care More Ltd,SOCIAL SERVICES RESIDENTIAL,People's Services,Home Care Services,A56019
London Borough of Sutton,27/08/2023,50398641,773.54,Care More Ltd,SOCIAL SERVICES RESIDENTIAL,People's Services,Home Care Services,A56019
London Borough of Sutton,03/09/2023,50398642,773.54,Care More Ltd,SOCIAL SERVICES RESIDENTIAL,People's Services,Home Care Services,A56019
London Borough of Sutton,27/08/2023,50398746,833.54,Care More Ltd,SOCIAL SERVICES RESIDENTIAL,People's Services,Home Care Services,A56019
London Borough of Sutton,03/09/2023,50398747,893.54,Care More Ltd,SOCIAL SERVICES RESIDENTIAL,People's Services,Home Care Services,A56019
London Borough of Sutton,27/08/2023,50398770,917.07,Care More Ltd,SOCIAL SERVICES RESIDENTIAL,People's Services,Home Care Services,A56019
London Borough of Sutton,03/09/2023,50398771,917.07,Care More Ltd,SOCIAL SERVICES RESIDENTIAL,People's Services,Home Care Services,A56019
London Borough of Sutton,27/08/2023,50398775,962.61,Care More Ltd,SOCIAL SERVICES RESIDENTIAL,People's Services,Home Care Services,A56019
London Borough of Sutton,10/09/2023,50405738,804.86,Care More Ltd,SOCIAL SERVICES RESIDENTIAL,People's Services,Home Care Services,A56019
London Borough of Sutton,17/09/2023,50405739,804.86,Care More Ltd,SOCIAL SERVICES RESIDENTIAL,People's Services,Home Care Services,A56019
London Borough of Sutton,10/09/2023,50405746,885.05,Care More Ltd,SOCIAL SERVICES RESIDENTIAL,People's Services,Home Care Services,A56019
London Borough of Sutton,17/09/2023,50405747,885.05,Care More Ltd,SOCIAL SERVICES RESIDENTIAL,People's Services,Home Care Services,A56019
London Borough of Sutton,10/09/2023,50405752,951.25,Care More Ltd,SOCIAL SERVICES RESIDENTIAL,People's Services,Home Care Services,A56019
London Borough of Sutton,17/09/2023,50405753,951.25,Care More Ltd,SOCIAL SERVICES RESIDENTIAL,People's Services,Home Care Services,A56019
London Borough of Sutton,10/09/2023,50405767,219.45,Care More Ltd,SOCIAL SERVICES RESIDENTIAL,People's Services,Home Care Services,A56019
London Borough of Sutton,10/09/2023,50405767,"1,031.62",Care More Ltd,SOCIAL SERVICES RESIDENTIAL,People's Services,Home Care Services,A56019
London Borough of Sutton,17/09/2023,50405768,219.45,Care More Ltd,SOCIAL SERVICES RESIDENTIAL,People's Services,Home Care Services,A56019
London Borough of Sutton,17/09/2023,50405768,"1,031.52",Care More Ltd,SOCIAL SERVICES RESIDENTIAL,People's Services,Home Care Services,A56019
London Borough of Sutton,10/09/2023,50405812,679.40,Care More Ltd,SOCIAL SERVICES RESIDENTIAL,People's Services,Home Care Services,A56019
London Borough of Sutton,17/09/2023,50405813,679.40,Care More Ltd,SOCIAL SERVICES RESIDENTIAL,People's Services,Home Care Services,A56019
London Borough of Sutton,10/09/2023,50405815,613.20,Care More Ltd,SOCIAL SERVICES RESIDENTIAL,People's Services,Home Care Services,A56019
London Borough of Sutton,17/09/2023,50405816,613.20,Care More Ltd,SOCIAL SERVICES RESIDENTIAL,People's Services,Home Care Services,A56019
London Borough of Sutton,10/09/2023,50405818,885.05,Care More Ltd,SOCIAL SERVICES RESIDENTIAL,People's Services,Home Care Services,A56019
London Borough of Sutton,10/09/2023,50405818,20.91,Care More Ltd,SOCIAL SERVICES RESIDENTIAL,People's Services,Home Care Services,A56019
London Borough of Sutton,17/09/2023,50405819,885.05,Care More Ltd,SOCIAL SERVICES RESIDENTIAL,People's Services,Home Care Services,A56019
London Borough of Sutton,17/09/2023,50405819,20.91,Care More Ltd,SOCIAL SERVICES RESIDENTIAL,People's Services,Home Care Services,A56019
London Borough of Sutton,10/09/2023,50405837,679.40,Care More Ltd,SOCIAL SERVICES RESIDENTIAL,People's Services,Home Care Services,A56019
London Borough of Sutton,01/09/2023,50395247,"4,400.00",Care UK Homecare Ltd,SOCIAL SERVICES RESIDENTIAL,People's Services,Residential Care - Ext Provider,A56114
London Borough of Sutton,01/09/2023,50395288,"4,772.96",Care UK Homecare Ltd,SOCIAL SERVICES RESIDENTIAL,People's Services,Residential Care - Ext Provider,A56114
London Borough of Sutton,01/09/2023,50395288,-563.20,Care UK Homecare Ltd,SOCIAL SERVICES RESIDENTIAL,People's Services,Residential Care - Client Cont ( Net Paymt ),A56113
London Borough of Sutton,01/09/2023,50395388,-836.76,Care UK Homecare Ltd,SOCIAL SERVICES RESIDENTIAL,People's Services,Nursing Care - 3rd party top up payment,A56023
London Borough of Sutton,01/09/2023,50395509,-836.76,Care UK Homecare Ltd,SOCIAL SERVICES RESIDENTIAL,People's Services,Nursing Care - 3rd party top up payment,A56023
London Borough of Sutton,01/09/2023,50395509,"4,560.00",Care UK Homecare Ltd,SOCIAL SERVICES RESIDENTIAL,People's Services,Nursing Care Short Term,A56026
London Borough of Sutton,01/09/2023,50395665,"4,560.00",Care UK Homecare Ltd,SOCIAL SERVICES RESIDENTIAL,People's Services,Nursing Care - Ext Provider,A56025
London Borough of Sutton,01/09/2023,50395676,"4,096.12",Care UK Homecare Ltd,SOCIAL SERVICES RESIDENTIAL,People's Services,Nursing Care - Ext Provider,A56025
London Borough of Sutton,01/09/2023,50395676,-878.84,Care UK Homecare Ltd,SOCIAL SERVICES RESIDENTIAL,People's Services,Nursing Care - 3rd party top up payment,A56023
London Borough of Sutton,01/08/2023,50396774,"2,718.80",Care4Care Services Ltd,SOCIAL SERVICES DAY CARE,People's Services,Home Care Services,A56019
London Borough of Sutton,04/09/2023,50397798,"1,070.60",Care4Care Services Ltd,SOCIAL SERVICES DAY CARE,People's Services,Home Care Services,A56019
London Borough of Sutton,04/09/2023,50397799,820.00,Care4Care Services Ltd,SOCIAL SERVICES DAY CARE,People's Services,Home Care Services,A56019
London Borough of Sutton,04/09/2023,50397836,"1,899.70",Care4Care Services Ltd,SOCIAL SERVICES DAY CARE,People's Services,Home Care Services,A56019
London Borough of Sutton,04/09/2023,50397837,909.50,Care4Care Services Ltd,SOCIAL SERVICES DAY CARE,People's Services,Home Care Services,A56019
London Borough of Sutton,04/09/2023,50397838,"3,372.00",Care4Care Services Ltd,SOCIAL SERVICES DAY CARE,People's Services,Home Care Services,A56019
London Borough of Sutton,04/09/2023,50397839,"4,040.00",Care4Care Services Ltd,SOCIAL SERVICES DAY CARE,People's Services,Home Care Services,A56019
London Borough of Sutton,04/09/2023,50397840,"1,756.50",Care4Care Services Ltd,SOCIAL SERVICES DAY CARE,People's Services,Home Care Services,A56019
London Borough of Sutton,04/09/2023,50397841,"4,040.00",Care4Care Services Ltd,SOCIAL SERVICES DAY CARE,People's Services,Home Care Services,A56019
London Borough of Sutton,04/09/2023,50397842,"1,112.00",Care4Care Services Ltd,SOCIAL SERVICES DAY CARE,People's Services,Home Care Services,A56019
London Borough of Sutton,04/09/2023,50397843,"7,301.31",Care4Care Services Ltd,SOCIAL SERVICES DAY CARE,People's Services,Home Care Services,A56019
London Borough of Sutton,04/09/2023,50397844,708.90,Care4Care Services Ltd,SOCIAL SERVICES DAY CARE,People's Services,Home Care Services,A56019
London Borough of Sutton,04/09/2023,50397863,"3,536.40",Care4Care Services Ltd,SOCIAL SERVICES DAY CARE,People's Services,Home Care Services,A56019
London Borough of Sutton,04/09/2023,50397864,847.00,Care4Care Services Ltd,SOCIAL SERVICES DAY CARE,People's Services,Home Care Services,A56019
London Borough of Sutton,04/09/2023,50398175,"1,230.00",Care4Care Services Ltd,SOCIAL SERVICES DAY CARE,People's Services,Home Care Services,A56019
London Borough of Sutton,01/09/2023,50395325,"6,600.00",CAREBASE (CLARE) LTD,SOCIAL SERVICES RESIDENTIAL,People's Services,Nursing Care - Ext Provider,A56025
London Borough of Sutton,08/08/2023,20055605,"29,257.68",Careium UK Limited,ACCOMMODATION - OTHER,People's Services,Other Agencies - Third Party,A57000
London Borough of Sutton,27/08/2023,50398529,803.37,Caremark (Sutton),SOCIAL SERVICES DAY CARE,People's Services,Home Care Services,A56019
London Borough of Sutton,27/08/2023,50398529,43.00,Caremark (Sutton),SOCIAL SERVICES DAY CARE,People's Services,Home Care Services,A56019
London Borough of Sutton,27/08/2023,50398548,618.00,Caremark (Sutton),SOCIAL SERVICES DAY CARE,People's Services,Home Care Services,A56019
London Borough of Sutton,27/08/2023,50398548,309.00,Caremark (Sutton),SOCIAL SERVICES DAY CARE,People's Services,Home Care Services,A56019
London Borough of Sutton,27/08/2023,50398569,803.37,Caremark (Sutton),SOCIAL SERVICES DAY CARE,People's Services,Home Care Services,A56019
London Borough of Sutton,27/08/2023,50398571,64.50,Caremark (Sutton),SOCIAL SERVICES DAY CARE,People's Services,Home Care Services,A56019
London Borough of Sutton,27/08/2023,50398571,839.40,Caremark (Sutton),SOCIAL SERVICES DAY CARE,People's Services,Home Care Services,A56019
London Borough of Sutton,27/08/2023,50398589,540.75,Caremark (Sutton),SOCIAL SERVICES DAY CARE,People's Services,Home Care Services,A56019
London Borough of Sutton,27/08/2023,50398590,"1,050.51",Caremark (Sutton),SOCIAL SERVICES DAY CARE,People's Services,Home Care Services,A56019
London Borough of Sutton,27/08/2023,50398591,"1,897.00",Caremark (Sutton),SOCIAL SERVICES DAY CARE,People's Services,Home Care Services,A56019
London Borough of Sutton,27/08/2023,50398594,500.41,Caremark (Sutton),SOCIAL SERVICES DAY CARE,People's Services,Home Care Services,A56019
London Borough of Sutton,27/08/2023,50398595,623.36,Caremark (Sutton),SOCIAL SERVICES DAY CARE,People's Services,Home Care Services,A56019
London Borough of Sutton,27/08/2023,50398604,991.47,Caremark (Sutton),SOCIAL SERVICES DAY CARE,People's Services,Home Care Services,A56019
London Borough of Sutton,27/08/2023,50398615,938.37,Caremark (Sutton),SOCIAL SERVICES DAY CARE,People's Services,Home Care Services,A56019
London Borough of Sutton,03/09/2023,50401060,948.78,Caremark (Sutton),SOCIAL SERVICES DAY CARE,People's Services,Home Care Services,A56019
London Borough of Sutton,10/09/2023,50402441,540.75,Caremark (Sutton),SOCIAL SERVICES DAY CARE,People's Services,Home Care Services,A56019
London Borough of Sutton,10/09/2023,50402446,803.37,Caremark (Sutton),SOCIAL SERVICES DAY CARE,People's Services,Home Care Services,A56019
London Borough of Sutton,10/09/2023,50402446,43.00,Caremark (Sutton),SOCIAL SERVICES DAY CARE,People's Services,Home Care Services,A56019
London Borough of Sutton,10/09/2023,50402449,618.00,Caremark (Sutton),SOCIAL SERVICES DAY CARE,People's Services,Home Care Services,A56019
London Borough of Sutton,10/09/2023,50402449,309.00,Caremark (Sutton),SOCIAL SERVICES DAY CARE,People's Services,Home Care Services,A56019
London Borough of Sutton,10/09/2023,50402452,803.37,Caremark (Sutton),SOCIAL SERVICES DAY CARE,People's Services,Home Care Services,A56019
London Borough of Sutton,10/09/2023,50402454,64.50,Caremark (Sutton),SOCIAL SERVICES DAY CARE,People's Services,Home Care Services,A56019
London Borough of Sutton,10/09/2023,50402454,865.20,Caremark (Sutton),SOCIAL SERVICES DAY CARE,People's Services,Home Care Services,A56019
London Borough of Sutton,10/09/2023,50402455,"1,897.00",Caremark (Sutton),SOCIAL SERVICES DAY CARE,People's Services,Home Care Services,A56019
London Borough of Sutton,10/09/2023,50402489,623.36,Caremark (Sutton),SOCIAL SERVICES DAY CARE,People's Services,Home Care Services,A56019
London Borough of Sutton,10/09/2023,50402502,991.47,Caremark (Sutton),SOCIAL SERVICES DAY CARE,People's Services,Home Care Services,A56019
London Borough of Sutton,10/09/2023,50402506,938.37,Caremark (Sutton),SOCIAL SERVICES DAY CARE,People's Services,Home Care Services,A56019
London Borough of Sutton,17/09/2023,50406216,803.37,Caremark (Sutton),SOCIAL SERVICES DAY CARE,People's Services,Home Care Services,A56019
London Borough of Sutton,17/09/2023,50406216,43.00,Caremark (Sutton),SOCIAL SERVICES DAY CARE,People's Services,Home Care Services,A56019
London Borough of Sutton,17/09/2023,50406219,618.00,Caremark (Sutton),SOCIAL SERVICES DAY CARE,People's Services,Home Care Services,A56019
London Borough of Sutton,17/09/2023,50406219,309.00,Caremark (Sutton),SOCIAL SERVICES DAY CARE,People's Services,Home Care Services,A56019
London Borough of Sutton,17/09/2023,50406222,803.37,Caremark (Sutton),SOCIAL SERVICES DAY CARE,People's Services,Home Care Services,A56019
London Borough of Sutton,17/09/2023,50406224,64.50,Caremark (Sutton),SOCIAL SERVICES DAY CARE,People's Services,Home Care Services,A56019
London Borough of Sutton,17/09/2023,50406224,839.40,Caremark (Sutton),SOCIAL SERVICES DAY CARE,People's Services,Home Care Services,A56019
London Borough of Sutton,17/09/2023,50406252,562.25,Caremark (Sutton),SOCIAL SERVICES DAY CARE,People's Services,Home Care Services,A56019
London Borough of Sutton,17/09/2023,50406257,"1,907.75",Caremark (Sutton),SOCIAL SERVICES DAY CARE,People's Services,Home Care Services,A56019
London Borough of Sutton,17/09/2023,50406270,623.36,Caremark (Sutton),SOCIAL SERVICES DAY CARE,People's Services,Home Care Services,A56019
London Borough of Sutton,17/09/2023,50406282,991.47,Caremark (Sutton),SOCIAL SERVICES DAY CARE,People's Services,Home Care Services,A56019
London Borough of Sutton,17/09/2023,50406294,938.37,Caremark (Sutton),SOCIAL SERVICES DAY CARE,People's Services,Home Care Services,A56019
London Borough of Sutton,24/08/2023,50397787,967.50,Caremore Group Ltd,CHILDREN'S SERVICES - FOSTERING & ADOPTION SERVICES,People's Services,Approved Lodgings,A61000
London Borough of Sutton,01/09/2023,50395390,49.37,Caretech Community Services Ltd,SOCIAL SERVICES RESIDENTIAL,People's Services,Residential Care - Client Cont ( Net Paymt ),A56113
London Borough of Sutton,01/09/2023,50395390,654.80,Caretech Community Services Ltd,SOCIAL SERVICES RESIDENTIAL,People's Services,Residential Care - Ext Provider,A56114
London Borough of Sutton,01/09/2023,50395494,"5,621.56",Caretech Community Services Ltd,SOCIAL SERVICES RESIDENTIAL,People's Services,Residential Care - Ext Provider,A56114
London Borough of Sutton,01/09/2023,50395510,"-1,375.60",Caretech Community Services Ltd,SOCIAL SERVICES RESIDENTIAL,People's Services,Residential Care - Client Cont ( Net Paymt ),A56113
London Borough of Sutton,01/09/2023,50395510,"7,190.28",Caretech Community Services Ltd,SOCIAL SERVICES RESIDENTIAL,People's Services,Residential Care - Ext Provider,A56114
London Borough of Sutton,12/09/2023,50397007,"4,076.70",Carew Academy,CHILDREN'S SERVICES - RESIDENTIAL,People's Services,Payment - Teachers Pay Grant,A51026
London Borough of Sutton,12/09/2023,50397013,"11,296.86",Carew Academy,CHILDREN'S SERVICES - RESIDENTIAL,People's Services,Payment - Teachers Pension Grant,A51027
London Borough of Sutton,14/09/2023,50399311,"4,030.00",Carew Academy,CHILDREN'S SERVICES - RESIDENTIAL,People's Services,FSM Supplementary,A60036
London Borough of Sutton,22/09/2023,50404185,"10,710.00",Carew Academy,CHILDREN'S SERVICES - RESIDENTIAL,Resources,"Grants, Contributions & Donations",A47005
London Borough of Sutton,19/09/2023,50401855,767.14,Care  Support Partners Ltd,SOCIAL SERVICES RESIDENTIAL,People's Services,Supported Living,A56088
London Borough of Sutton,19/09/2023,50401855,613.71,Care  Support Partners Ltd,SOCIAL SERVICES RESIDENTIAL,People's Services,Supported Living,A56088
London Borough of Sutton,19/09/2023,50401855,"2,078.57",Care  Support Partners Ltd,SOCIAL SERVICES RESIDENTIAL,People's Services,Supported Living,A56088
London Borough of Sutton,01/09/2023,50395378,"6,127.44",Carlene House,SOCIAL SERVICES RESIDENTIAL,People's Services,Residential Care - Ext Provider,A56114
London Borough of Sutton,01/09/2023,50395379,"6,127.44",Carlene House,SOCIAL SERVICES RESIDENTIAL,People's Services,Residential Care - Ext Provider,A56114
London Borough of Sutton,01/09/2023,50395575,"6,127.44",Carlene House,SOCIAL SERVICES RESIDENTIAL,People's Services,Residential Care - Ext Provider,A56114
London Borough of Sutton,01/09/2023,50395582,"6,127.44",Carlene House,SOCIAL SERVICES RESIDENTIAL,People's Services,Residential Care - Ext Provider,A56114
London Borough of Sutton,01/09/2023,50395631,"6,127.44",Carlene House,SOCIAL SERVICES RESIDENTIAL,People's Services,Residential Care - Ext Provider,A56114
London Borough of Sutton,01/09/2023,50395672,"6,127.44",Carlene House,SOCIAL SERVICES RESIDENTIAL,People's Services,Residential Care - Ext Provider,A56114
London Borough of Sutton,01/09/2023,50395722,"6,127.44",Carlene House,SOCIAL SERVICES RESIDENTIAL,People's Services,Residential Care - Ext Provider,A56114
London Borough of Sutton,01/08/2023,50401440,"2,857.64",Carlene House,SOCIAL SERVICES RESIDENTIAL,People's Services,Supported Living,A56088
London Borough of Sutton,01/08/2023,50401440,"1,406.43",Carlene House,SOCIAL SERVICES RESIDENTIAL,People's Services,Supported Living,A56088
London Borough of Sutton,01/08/2023,50401440,756.81,Carlene House,SOCIAL SERVICES RESIDENTIAL,People's Services,Supported Living,A56088
London Borough of Sutton,02/05/2023,50401441,"4,402.96",Carlene House,SOCIAL SERVICES RESIDENTIAL,People's Services,Supported Living,A56088
London Borough of Sutton,02/05/2023,50401441,46.89,Carlene House,SOCIAL SERVICES RESIDENTIAL,People's Services,Supported Living,A56088
London Borough of Sutton,02/05/2023,50401441,25.43,Carlene House,SOCIAL SERVICES RESIDENTIAL,People's Services,Supported Living,A56088
London Borough of Sutton,05/07/2023,50401442,"2,199.80",Carlene House,SOCIAL SERVICES RESIDENTIAL,People's Services,Supported Living,A56088
London Borough of Sutton,05/07/2023,50401442,"1,510.61",Carlene House,SOCIAL SERVICES RESIDENTIAL,People's Services,Supported Living,A56088
London Borough of Sutton,05/07/2023,50401442,812.87,Carlene House,SOCIAL SERVICES RESIDENTIAL,People's Services,Supported Living,A56088
London Borough of Sutton,01/04/2023,50401990,"1,038.80",Carlene House,SOCIAL SERVICES RESIDENTIAL,People's Services,Home Care Services,A56019
London Borough of Sutton,04/04/2023,50402993,"2,077.12",Carlene House,SOCIAL SERVICES RESIDENTIAL,People's Services,Supported Living,A56088
London Borough of Sutton,04/04/2023,50402993,"1,312.88",Carlene House,SOCIAL SERVICES RESIDENTIAL,People's Services,Supported Living,A56088
London Borough of Sutton,04/04/2023,50402993,712.08,Carlene House,SOCIAL SERVICES RESIDENTIAL,People's Services,Supported Living,A56088
London Borough of Sutton,15/03/2022,50402994,"3,717.44",Carlene House,SOCIAL SERVICES RESIDENTIAL,People's Services,Supported Living,A56088
London Borough of Sutton,01/09/2023,50403005,"1,367.10",Carlene House,SOCIAL SERVICES RESIDENTIAL,People's Services,Supported Living,A56088
London Borough of Sutton,01/09/2023,50403005,"1,823.15",Carlene House,SOCIAL SERVICES RESIDENTIAL,People's Services,Supported Living,A56088
London Borough of Sutton,01/09/2023,50403005,981.05,Carlene House,SOCIAL SERVICES RESIDENTIAL,People's Services,Supported Living,A56088
London Borough of Sutton,12/09/2023,50397286,"1,472.63",REDACTED - PERSONAL DATA,GRANTS & EX GRATIA PAYMENTS,People's Services,Payment - Nursery Funding,A51056
London Borough of Sutton,03/09/2023,50396244,"34,843.60",Carshalton Boys Sports College (Academy),GRANTS & EX GRATIA PAYMENTS,People's Services,Top-up Funding,A51016
London Borough of Sutton,22/09/2023,50404186,"31,680.00",Carshalton Boys Sports College (Academy),GRANTS & EX GRATIA PAYMENTS,Resources,"Grants, Contributions & Donations",A47005
London Borough of Sutton,11/09/2023,50400394,"27,784.86",Catch 22 Charity Limited,CHILDREN'S SERVICES - RESIDENTIAL,People's Services,Residential Care-Children,A56115
London Borough of Sutton,11/09/2023,50400397,"27,784.86",Catch 22 Charity Limited,CHILDREN'S SERVICES - RESIDENTIAL,People's Services,Residential Care-Children,A56115
London Borough of Sutton,11/09/2023,50400398,"27,784.86",Catch 22 Charity Limited,CHILDREN'S SERVICES - RESIDENTIAL,People's Services,Residential Care-Children,A56115
London Borough of Sutton,12/09/2023,50397296,883.58,REDACTED - PERSONAL DATA,GRANTS & EX GRATIA PAYMENTS,People's Services,Payment - Nursery Funding,A51056
London Borough of Sutton,01/09/2023,20056362,"8,128.70",CBRE Ltd,TEMP STAFF & CONSULTANCY,Resources,Building Rents,A22005
London Borough of Sutton,13/09/2023,50403051,"14,911.25",CENTRAL BEDFORDSHIRE COUNCIL,CHILDREN'S SERVICES - SEN SERVICES,People's Services,Top-up Funding,A51016
London Borough of Sutton,19/09/2023,50401917,"2,169.90",Centred (Scotland) N,SOCIAL SERVICES RESIDENTIAL,People's Services,Supported Living,A56088
London Borough of Sutton,01/09/2023,50396486,"1,050.00",Cheam Baptist Church Pre-School,ACADEMIC INSTNS - OTHER,People's Services,SEND Inclusion funding,A60038
London Borough of Sutton,01/09/2023,50396487,560.00,Cheam Baptist Church Pre-School,ACADEMIC INSTNS - OTHER,People's Services,SEND Inclusion funding,A60038
London Borough of Sutton,12/09/2023,50397187,662.48,Cheam Baptist Church Pre-School,ACADEMIC INSTNS - OTHER,People's Services,Payment - Nursery Funding,A51056
London Borough of Sutton,12/09/2023,50397253,"7,509.41",Cheam Baptist Church Pre-School,ACADEMIC INSTNS - OTHER,People's Services,Payment - Nursery Funding,A51056
London Borough of Sutton,12/09/2023,50399175,615.74,Cheam Baptist Church Pre-School,ACADEMIC INSTNS - OTHER,People's Services,Payment - school supplementary grant,A51062
London Borough of Sutton,03/09/2023,50396246,"20,870.50",Cheam Common Infants School -ACADEMY,SCHOOL FUNDS,People's Services,Top-up Funding,A51016
London Borough of Sutton,05/09/2023,50396361,"3,330.00",Cheam Common Infants School -ACADEMY,SCHOOL FUNDS,Non-Service Cost Centres,Recharge-Teaching Staff,A10600
London Borough of Sutton,12/09/2023,50397148,"28,400.40",Cheam Common Infants School -ACADEMY,SCHOOL FUNDS,People's Services,Payment - Nursery Funding,A51056
London Borough of Sutton,22/09/2023,50404188,"2,790.00",Cheam Common Infants School -ACADEMY,SCHOOL FUNDS,Resources,"Grants, Contributions & Donations",A47005
London Borough of Sutton,03/09/2023,50396247,"30,919.02",Cheam Common Junior Academy,SCHOOL FUNDS,People's Services,Top-up Funding,A51016
London Borough of Sutton,05/09/2023,50396360,"3,036.22",Cheam Common Junior Academy,SCHOOL FUNDS,Non-Service Cost Centres,Recharge-Teaching Staff,A10600
London Borough of Sutton,14/09/2023,50399307,"92,692.00",Cheam Common Junior Academy,SCHOOL FUNDS,People's Services,FSM Supplementary,A60036
London Borough of Sutton,22/09/2023,50404189,"4,950.00",Cheam Common Junior Academy,SCHOOL FUNDS,Resources,"Grants, Contributions & Donations",A47005
London Borough of Sutton,03/09/2023,50396249,"100,097.98",Cheam High School (Academy),SCHOOL FUNDS,People's Services,Top-up Funding,A51016
London Borough of Sutton,03/09/2023,50396249,"14,276.00",Cheam High School (Academy),SCHOOL FUNDS,People's Services,Top-up Funding,A51016
London Borough of Sutton,03/09/2023,50396266,"79,764.64",Cheam High School (Academy),SCHOOL FUNDS,People's Services,Top-up Funding,A51016
London Borough of Sutton,03/09/2023,50396266,"279,637.80",Cheam High School (Academy),SCHOOL FUNDS,People's Services,Top-up Funding,A51016
London Borough of Sutton,22/09/2023,50404191,"24,390.00",Cheam High School (Academy),SCHOOL FUNDS,Resources,"Grants, Contributions & Donations",A47005
London Borough of Sutton,03/09/2023,50396250,"55,352.22",Cheam Park Farm Primary School,SCHOOL FUNDS,People's Services,Top-up Funding,A51016
London Borough of Sutton,05/09/2023,50396353,850.00,Cheam Park Farm Primary School,SCHOOL FUNDS,Non-Service Cost Centres,Recharge-Teaching Staff,A10600
London Borough of Sutton,05/09/2023,50396354,"2,810.00",Cheam Park Farm Primary School,SCHOOL FUNDS,Non-Service Cost Centres,Recharge-Teaching Staff,A10600
London Borough of Sutton,05/09/2023,50396355,782.64,Cheam Park Farm Primary School,SCHOOL FUNDS,Non-Service Cost Centres,Recharge-Teaching Staff,A10600
London Borough of Sutton,12/09/2023,50397150,"15,369.90",Cheam Park Farm Primary School,SCHOOL FUNDS,People's Services,Payment - Nursery Funding,A51056
London Borough of Sutton,14/09/2023,50399306,"92,116.00",Cheam Park Farm Primary School,SCHOOL FUNDS,People's Services,FSM Supplementary,A60036
London Borough of Sutton,22/09/2023,50404192,"4,770.00",Cheam Park Farm Primary School,SCHOOL FUNDS,Resources,"Grants, Contributions & Donations",A47005
London Borough of Sutton,01/09/2023,50395349,"4,955.56",Chegworth Nursing Home Bayswift Ltd,SOCIAL SERVICES RESIDENTIAL,People's Services,Nursing Care Short Term,A56026
London Borough of Sutton,01/09/2023,50395349,-662.24,Chegworth Nursing Home Bayswift Ltd,SOCIAL SERVICES RESIDENTIAL,People's Services,Nursing Care - 3rd party top up payment,A56023
London Borough of Sutton,01/09/2023,50395350,"4,096.12",Chegworth Nursing Home Bayswift Ltd,SOCIAL SERVICES RESIDENTIAL,People's Services,Nursing Care - Ext Provider,A56025
London Borough of Sutton,01/09/2023,50395350,-878.84,Chegworth Nursing Home Bayswift Ltd,SOCIAL SERVICES RESIDENTIAL,People's Services,Nursing Care - 3rd party top up payment,A56023
London Borough of Sutton,01/09/2023,50395408,-836.76,Chegworth Nursing Home Bayswift Ltd,SOCIAL SERVICES RESIDENTIAL,People's Services,Nursing Care - 3rd party top up payment,A56023
London Borough of Sutton,01/09/2023,50395408,"3,821.24",Chegworth Nursing Home Bayswift Ltd,SOCIAL SERVICES RESIDENTIAL,People's Services,Nursing Care Short Term,A56026
London Borough of Sutton,01/09/2023,50395409,"4,096.12",Chegworth Nursing Home Bayswift Ltd,SOCIAL SERVICES RESIDENTIAL,People's Services,Nursing Care - Ext Provider,A56025
London Borough of Sutton,01/09/2023,50395409,-878.84,Chegworth Nursing Home Bayswift Ltd,SOCIAL SERVICES RESIDENTIAL,People's Services,Nursing Care - 3rd party top up payment,A56023
London Borough of Sutton,01/09/2023,50395410,"2,905.28",Chegworth Nursing Home Bayswift Ltd,SOCIAL SERVICES RESIDENTIAL,People's Services,Nursing Care Short Term,A56026
London Borough of Sutton,01/09/2023,50395411,"4,400.00",Chegworth Nursing Home Bayswift Ltd,SOCIAL SERVICES RESIDENTIAL,People's Services,Nursing Care - Ext Provider,A56025
London Borough of Sutton,01/09/2023,50395411,-878.84,Chegworth Nursing Home Bayswift Ltd,SOCIAL SERVICES RESIDENTIAL,People's Services,Nursing Care - 3rd party top up payment,A56023
London Borough of Sutton,01/09/2023,50395444,-750.40,Chegworth Nursing Home Bayswift Ltd,SOCIAL SERVICES RESIDENTIAL,People's Services,Nursing Care - 3rd party top up payment,A56023
London Borough of Sutton,01/09/2023,50395444,"3,734.88",Chegworth Nursing Home Bayswift Ltd,SOCIAL SERVICES RESIDENTIAL,People's Services,Nursing Care Short Term,A56026
London Borough of Sutton,01/09/2023,50395452,-878.84,Chegworth Nursing Home Bayswift Ltd,SOCIAL SERVICES RESIDENTIAL,People's Services,Nursing Care - 3rd party top up payment,A56023
London Borough of Sutton,01/09/2023,50395452,"4,096.12",Chegworth Nursing Home Bayswift Ltd,SOCIAL SERVICES RESIDENTIAL,People's Services,Nursing Care Short Term,A56026
London Borough of Sutton,01/09/2023,50395453,"4,096.12",Chegworth Nursing Home Bayswift Ltd,SOCIAL SERVICES RESIDENTIAL,People's Services,Nursing Care - Ext Provider,A56025
London Borough of Sutton,01/09/2023,50395453,-878.84,Chegworth Nursing Home Bayswift Ltd,SOCIAL SERVICES RESIDENTIAL,People's Services,Nursing Care - 3rd party top up payment,A56023
London Borough of Sutton,01/09/2023,50395454,"4,096.12",Chegworth Nursing Home Bayswift Ltd,SOCIAL SERVICES RESIDENTIAL,People's Services,Nursing Care - Ext Provider,A56025
London Borough of Sutton,01/09/2023,50395454,-878.84,Chegworth Nursing Home Bayswift Ltd,SOCIAL SERVICES RESIDENTIAL,People's Services,Nursing Care - 3rd party top up payment,A56023
London Borough of Sutton,01/09/2023,50395469,"4,096.12",Chegworth Nursing Home Bayswift Ltd,SOCIAL SERVICES RESIDENTIAL,People's Services,Nursing Care - Ext Provider,A56025
London Borough of Sutton,01/09/2023,50395469,-878.84,Chegworth Nursing Home Bayswift Ltd,SOCIAL SERVICES RESIDENTIAL,People's Services,Nursing Care - 3rd party top up payment,A56023
London Borough of Sutton,01/09/2023,50395470,-282.48,Chegworth Nursing Home Bayswift Ltd,SOCIAL SERVICES RESIDENTIAL,People's Services,Nursing Care - 3rd party top up payment,A56023
London Borough of Sutton,01/09/2023,50395470,"1,316.61",Chegworth Nursing Home Bayswift Ltd,SOCIAL SERVICES RESIDENTIAL,People's Services,Respite Care,A56116
London Borough of Sutton,01/09/2023,50395562,"4,096.12",Chegworth Nursing Home Bayswift Ltd,SOCIAL SERVICES RESIDENTIAL,People's Services,Nursing Care - Ext Provider,A56025
London Borough of Sutton,01/09/2023,50395562,-878.84,Chegworth Nursing Home Bayswift Ltd,SOCIAL SERVICES RESIDENTIAL,People's Services,Nursing Care - 3rd party top up payment,A56023
London Borough of Sutton,01/09/2023,50395563,"4,412.00",Chegworth Nursing Home Bayswift Ltd,SOCIAL SERVICES RESIDENTIAL,People's Services,Nursing Care - Ext Provider,A56025
London Borough of Sutton,01/09/2023,50395563,-315.88,Chegworth Nursing Home Bayswift Ltd,SOCIAL SERVICES RESIDENTIAL,People's Services,Nursing Care - 3rd party top up payment,A56023
London Borough of Sutton,01/09/2023,50395563,-878.84,Chegworth Nursing Home Bayswift Ltd,SOCIAL SERVICES RESIDENTIAL,People's Services,Nursing Care - 3rd party top up payment,A56023
London Borough of Sutton,01/09/2023,50395564,-878.84,Chegworth Nursing Home Bayswift Ltd,SOCIAL SERVICES RESIDENTIAL,People's Services,Nursing Care - 3rd party top up payment,A56023
London Borough of Sutton,01/09/2023,50395564,"4,096.12",Chegworth Nursing Home Bayswift Ltd,SOCIAL SERVICES RESIDENTIAL,People's Services,Nursing Care - Ext Provider,A56025
London Borough of Sutton,01/09/2023,50395608,"1,316.61",Chegworth Nursing Home Bayswift Ltd,SOCIAL SERVICES RESIDENTIAL,People's Services,Nursing Care Short Term,A56026
London Borough of Sutton,01/09/2023,50395608,-282.48,Chegworth Nursing Home Bayswift Ltd,SOCIAL SERVICES RESIDENTIAL,People's Services,Nursing Care - 3rd party top up payment,A56023
London Borough of Sutton,01/09/2023,50395609,-878.84,Chegworth Nursing Home Bayswift Ltd,SOCIAL SERVICES RESIDENTIAL,People's Services,Nursing Care - 3rd party top up payment,A56023
London Borough of Sutton,01/09/2023,50395609,"4,096.12",Chegworth Nursing Home Bayswift Ltd,SOCIAL SERVICES RESIDENTIAL,People's Services,Nursing Care - Ext Provider,A56025
London Borough of Sutton,01/09/2023,50395610,"4,150.40",Chegworth Nursing Home Bayswift Ltd,SOCIAL SERVICES RESIDENTIAL,People's Services,Nursing Care - Ext Provider,A56025
London Borough of Sutton,01/09/2023,50395617,"3,821.24",Chegworth Nursing Home Bayswift Ltd,SOCIAL SERVICES RESIDENTIAL,People's Services,Nursing Care Short Term,A56026
London Borough of Sutton,01/09/2023,50395617,-836.76,Chegworth Nursing Home Bayswift Ltd,SOCIAL SERVICES RESIDENTIAL,People's Services,Nursing Care - 3rd party top up payment,A56023
London Borough of Sutton,01/09/2023,50395641,-188.32,Chegworth Nursing Home Bayswift Ltd,SOCIAL SERVICES RESIDENTIAL,People's Services,Nursing Care - 3rd party top up payment,A56023
London Borough of Sutton,01/09/2023,50395641,977.14,Chegworth Nursing Home Bayswift Ltd,SOCIAL SERVICES RESIDENTIAL,People's Services,Respite Care,A56116
London Borough of Sutton,01/09/2023,50395652,"4,096.12",Chegworth Nursing Home Bayswift Ltd,SOCIAL SERVICES RESIDENTIAL,People's Services,Nursing Care - Ext Provider,A56025
London Borough of Sutton,01/09/2023,50395652,-878.84,Chegworth Nursing Home Bayswift Ltd,SOCIAL SERVICES RESIDENTIAL,People's Services,Nursing Care - 3rd party top up payment,A56023
London Borough of Sutton,01/09/2023,50395653,-836.76,Chegworth Nursing Home Bayswift Ltd,SOCIAL SERVICES RESIDENTIAL,People's Services,Nursing Care - 3rd party top up payment,A56023
London Borough of Sutton,01/09/2023,50395653,"3,821.24",Chegworth Nursing Home Bayswift Ltd,SOCIAL SERVICES RESIDENTIAL,People's Services,Nursing Care Short Term,A56026
London Borough of Sutton,01/09/2023,50395654,"3,734.88",Chegworth Nursing Home Bayswift Ltd,SOCIAL SERVICES RESIDENTIAL,People's Services,Nursing Care - Ext Provider,A56025
London Borough of Sutton,01/09/2023,50395654,-750.40,Chegworth Nursing Home Bayswift Ltd,SOCIAL SERVICES RESIDENTIAL,People's Services,Nursing Care - 3rd party top up payment,A56023
London Borough of Sutton,01/09/2023,50395684,"4,149.92",Chegworth Nursing Home Bayswift Ltd,SOCIAL SERVICES RESIDENTIAL,People's Services,Nursing Care - Ext Provider,A56025
London Borough of Sutton,01/09/2023,50395684,-750.40,Chegworth Nursing Home Bayswift Ltd,SOCIAL SERVICES RESIDENTIAL,People's Services,Nursing Care - 3rd party top up payment,A56023
London Borough of Sutton,01/09/2023,50395695,"4,096.12",Chegworth Nursing Home Bayswift Ltd,SOCIAL SERVICES RESIDENTIAL,People's Services,Nursing Care - Ext Provider,A56025
London Borough of Sutton,01/09/2023,50395695,-878.84,Chegworth Nursing Home Bayswift Ltd,SOCIAL SERVICES RESIDENTIAL,People's Services,Nursing Care - 3rd party top up payment,A56023
London Borough of Sutton,31/08/2023,20056940,"6,028.78",Chelsea and Westminster NHS ft,SOCIAL SERVICES - OTHER,Health and Wellbeing,Provider Contract Payments,A44290
London Borough of Sutton,25/08/2023,20056975,"-1,020.16",Chelsea and Westminster NHS ft,SOCIAL SERVICES - OTHER,Health and Wellbeing,Provider Contract Payments,A44290
London Borough of Sutton,31/03/2023,20056990,"6,028.78",Chelsea and Westminster NHS ft,SOCIAL SERVICES - OTHER,Health and Wellbeing,Provider Contract Payments,A44290
London Borough of Sutton,01/09/2023,50395188,"4,443.40",Cherry Lodge,SOCIAL SERVICES RESIDENTIAL,People's Services,Residential Care - Ext Provider,A56114
London Borough of Sutton,01/09/2023,50395339,-508.04,Cherry Lodge,SOCIAL SERVICES RESIDENTIAL,People's Services,Residential Care - Client Cont ( Net Paymt ),A56113
London Borough of Sutton,01/09/2023,50395339,"5,159.40",Cherry Lodge,SOCIAL SERVICES RESIDENTIAL,People's Services,Residential Care - Ext Provider,A56114
London Borough of Sutton,01/09/2023,50395193,"4,096.12",CHHG Ltd,SOCIAL SERVICES RESIDENTIAL,People's Services,Nursing Care - Ext Provider,A56025
London Borough of Sutton,01/09/2023,50395193,-878.84,CHHG Ltd,SOCIAL SERVICES RESIDENTIAL,People's Services,Nursing Care - 3rd party top up payment,A56023
London Borough of Sutton,07/08/2023,50397786,"14,102.52",Children's Trust,CHILDREN'S SERVICES - DAY CARE,People's Services,Residential Care-Children,A56115
London Borough of Sutton,06/09/2023,50399323,"6,576.60",Children's Trust,CHILDREN'S SERVICES - DAY CARE,People's Services,Independent School Fees,A56002
London Borough of Sutton,06/09/2023,50399324,"6,648.00",Children's Trust,CHILDREN'S SERVICES - DAY CARE,People's Services,Independent School Fees,A56002
London Borough of Sutton,06/09/2023,50399325,"6,678.00",Children's Trust,CHILDREN'S SERVICES - DAY CARE,People's Services,Independent School Fees,A56002
London Borough of Sutton,12/09/2023,50397254,"2,650.73",Chiltern Day Nursery,ACADEMIC INSTNS - OTHER,People's Services,Payment - Nursery Funding,A51056
London Borough of Sutton,01/09/2023,50395391,"7,512.24",Choice Care Group (Surrey) Ltd,SOCIAL SERVICES RESIDENTIAL,People's Services,Residential Care - Ext Provider,A56114
London Borough of Sutton,01/09/2023,50395434,"8,863.92",Choice Care Group (Surrey) Ltd,SOCIAL SERVICES RESIDENTIAL,People's Services,Residential Care - Ext Provider,A56114
London Borough of Sutton,01/09/2023,50395591,"7,809.32",Choice Care Group (Surrey) Ltd,SOCIAL SERVICES RESIDENTIAL,People's Services,Residential Care - Ext Provider,A56114
London Borough of Sutton,01/09/2023,50395666,"8,682.92",Choice Care Group (Surrey) Ltd,SOCIAL SERVICES RESIDENTIAL,People's Services,Residential Care - Ext Provider,A56114
London Borough of Sutton,14/08/2023,20056427,"1,650.40",Choice Support,GRANTS & EX GRATIA PAYMENTS,People's Services,Provider Contract Payments,A44290
London Borough of Sutton,14/08/2023,20056430,"1,788.44",Choice Support,GRANTS & EX GRATIA PAYMENTS,People's Services,Provider Contract Payments,A44290
London Borough of Sutton,01/09/2023,50395274,"5,887.60",Choice Support,GRANTS & EX GRATIA PAYMENTS,People's Services,Residential Care - Ext Provider,A56114
London Borough of Sutton,22/08/2023,50396222,943.38,Choice Support,GRANTS & EX GRATIA PAYMENTS,People's Services,Supported Living,A56088
London Borough of Sutton,22/08/2023,50396222,"5,318.73",Choice Support,GRANTS & EX GRATIA PAYMENTS,People's Services,Supported Living,A56088
London Borough of Sutton,19/09/2023,50401819,623.23,Choice Support,GRANTS & EX GRATIA PAYMENTS,People's Services,Supported Living,A56088
London Borough of Sutton,19/09/2023,50401819,"4,880.57",Choice Support,GRANTS & EX GRATIA PAYMENTS,People's Services,Supported Living,A56088
London Borough of Sutton,19/09/2023,50401819,"1,141.20",Choice Support,GRANTS & EX GRATIA PAYMENTS,People's Services,Supported Living,A56088
London Borough of Sutton,19/09/2023,50401827,651.04,Choice Support,GRANTS & EX GRATIA PAYMENTS,People's Services,Supported Living,A56088
London Borough of Sutton,19/09/2023,50401827,"2,360.31",Choice Support,GRANTS & EX GRATIA PAYMENTS,People's Services,Supported Living,A56088
London Borough of Sutton,19/09/2023,50401827,478.24,Choice Support,GRANTS & EX GRATIA PAYMENTS,People's Services,Supported Living,A56088
London Borough of Sutton,19/09/2023,50401827,"1,659.26",Choice Support,GRANTS & EX GRATIA PAYMENTS,People's Services,Supported Living,A56088
London Borough of Sutton,19/09/2023,50401829,623.23,Choice Support,GRANTS & EX GRATIA PAYMENTS,People's Services,Supported Living,A56088
London Borough of Sutton,19/09/2023,50401830,"4,617.77",Choice Support,GRANTS & EX GRATIA PAYMENTS,People's Services,Supported Living,A56088
London Borough of Sutton,19/09/2023,50401830,"1,141.20",Choice Support,GRANTS & EX GRATIA PAYMENTS,People's Services,Supported Living,A56088
London Borough of Sutton,19/09/2023,50401833,"1,238.91",Choice Support,GRANTS & EX GRATIA PAYMENTS,People's Services,Supported Living,A56088
London Borough of Sutton,19/09/2023,50401833,"5,593.89",Choice Support,GRANTS & EX GRATIA PAYMENTS,People's Services,Supported Living,A56088
London Borough of Sutton,19/09/2023,50401833,"1,141.20",Choice Support,GRANTS & EX GRATIA PAYMENTS,People's Services,Supported Living,A56088
London Borough of Sutton,19/09/2023,50401834,"3,452.40",Choice Support,GRANTS & EX GRATIA PAYMENTS,People's Services,Supported Living,A56088
London Borough of Sutton,19/09/2023,50401836,"1,238.91",Choice Support,GRANTS & EX GRATIA PAYMENTS,People's Services,Supported Living,A56088
London Borough of Sutton,19/09/2023,50401836,"3,266.23",Choice Support,GRANTS & EX GRATIA PAYMENTS,People's Services,Supported Living,A56088
London Borough of Sutton,19/09/2023,50401836,"1,141.20",Choice Support,GRANTS & EX GRATIA PAYMENTS,People's Services,Supported Living,A56088
London Borough of Sutton,19/09/2023,50401843,525.60,Choice Support,GRANTS & EX GRATIA PAYMENTS,People's Services,Supported Living,A56088
London Borough of Sutton,19/09/2023,50401843,426.47,Choice Support,GRANTS & EX GRATIA PAYMENTS,People's Services,Supported Living,A56088
London Borough of Sutton,19/09/2023,50401843,"2,027.31",Choice Support,GRANTS & EX GRATIA PAYMENTS,People's Services,Supported Living,A56088
London Borough of Sutton,19/09/2023,50401850,"1,238.91",Choice Support,GRANTS & EX GRATIA PAYMENTS,People's Services,Supported Living,A56088
London Borough of Sutton,19/09/2023,50401850,"5,481.26",Choice Support,GRANTS & EX GRATIA PAYMENTS,People's Services,Supported Living,A56088
London Borough of Sutton,19/09/2023,50401850,"1,141.20",Choice Support,GRANTS & EX GRATIA PAYMENTS,People's Services,Supported Living,A56088
London Borough of Sutton,19/09/2023,50401859,300.34,Choice Support,GRANTS & EX GRATIA PAYMENTS,People's Services,Supported Living,A56088
London Borough of Sutton,19/09/2023,50401859,426.47,Choice Support,GRANTS & EX GRATIA PAYMENTS,People's Services,Supported Living,A56088
London Borough of Sutton,19/09/2023,50401859,"2,027.31",Choice Support,GRANTS & EX GRATIA PAYMENTS,People's Services,Supported Living,A56088
London Borough of Sutton,19/09/2023,50401860,623.23,Choice Support,GRANTS & EX GRATIA PAYMENTS,People's Services,Supported Living,A56088
London Borough of Sutton,19/09/2023,50401860,"5,143.37",Choice Support,GRANTS & EX GRATIA PAYMENTS,People's Services,Supported Living,A56088
London Borough of Sutton,19/09/2023,50401860,"1,141.20",Choice Support,GRANTS & EX GRATIA PAYMENTS,People's Services,Supported Living,A56088
London Borough of Sutton,19/09/2023,50401861,"6,401.06",Choice Support,GRANTS & EX GRATIA PAYMENTS,People's Services,Supported Living,A56088
London Borough of Sutton,19/09/2023,50401861,"1,141.20",Choice Support,GRANTS & EX GRATIA PAYMENTS,People's Services,Supported Living,A56088
London Borough of Sutton,19/09/2023,50401862,623.23,Choice Support,GRANTS & EX GRATIA PAYMENTS,People's Services,Supported Living,A56088
London Borough of Sutton,19/09/2023,50401870,"1,238.91",Choice Support,GRANTS & EX GRATIA PAYMENTS,People's Services,Supported Living,A56088
London Borough of Sutton,19/09/2023,50401870,"3,303.77",Choice Support,GRANTS & EX GRATIA PAYMENTS,People's Services,Supported Living,A56088
London Borough of Sutton,19/09/2023,50401870,"1,141.20",Choice Support,GRANTS & EX GRATIA PAYMENTS,People's Services,Supported Living,A56088
London Borough of Sutton,19/09/2023,50401873,"2,325.09",Choice Support,GRANTS & EX GRATIA PAYMENTS,People's Services,Supported Living,A56088
London Borough of Sutton,19/09/2023,50401873,486.69,Choice Support,GRANTS & EX GRATIA PAYMENTS,People's Services,Supported Living,A56088
London Borough of Sutton,19/09/2023,50401873,"1,633.20",Choice Support,GRANTS & EX GRATIA PAYMENTS,People's Services,Supported Living,A56088
London Borough of Sutton,19/09/2023,50401873,651.04,Choice Support,GRANTS & EX GRATIA PAYMENTS,People's Services,Supported Living,A56088
London Borough of Sutton,19/09/2023,50401874,478.24,Choice Support,GRANTS & EX GRATIA PAYMENTS,People's Services,Supported Living,A56088
London Borough of Sutton,19/09/2023,50401874,"3,875.14",Choice Support,GRANTS & EX GRATIA PAYMENTS,People's Services,Supported Living,A56088
London Borough of Sutton,19/09/2023,50401874,118.37,Choice Support,GRANTS & EX GRATIA PAYMENTS,People's Services,Supported Living,A56088
London Borough of Sutton,19/09/2023,50401876,"5,293.54",Choice Support,GRANTS & EX GRATIA PAYMENTS,People's Services,Supported Living,A56088
London Borough of Sutton,19/09/2023,50401876,"1,901.74",Choice Support,GRANTS & EX GRATIA PAYMENTS,People's Services,Supported Living,A56088
London Borough of Sutton,19/09/2023,50401877,623.23,Choice Support,GRANTS & EX GRATIA PAYMENTS,People's Services,Supported Living,A56088
London Borough of Sutton,19/09/2023,50401877,"5,143.37",Choice Support,GRANTS & EX GRATIA PAYMENTS,People's Services,Supported Living,A56088
London Borough of Sutton,19/09/2023,50401877,"1,141.20",Choice Support,GRANTS & EX GRATIA PAYMENTS,People's Services,Supported Living,A56088
London Borough of Sutton,19/09/2023,50401881,"8,409.60",Choice Support,GRANTS & EX GRATIA PAYMENTS,People's Services,Supported Living,A56088
London Borough of Sutton,19/09/2023,50401881,"1,901.74",Choice Support,GRANTS & EX GRATIA PAYMENTS,People's Services,Supported Living,A56088
London Borough of Sutton,19/09/2023,50401882,"1,238.91",Choice Support,GRANTS & EX GRATIA PAYMENTS,People's Services,Supported Living,A56088
London Borough of Sutton,19/09/2023,50401882,"3,378.86",Choice Support,GRANTS & EX GRATIA PAYMENTS,People's Services,Supported Living,A56088
London Borough of Sutton,19/09/2023,50401882,"1,141.20",Choice Support,GRANTS & EX GRATIA PAYMENTS,People's Services,Supported Living,A56088
London Borough of Sutton,19/09/2023,50401891,"2,184.17",Choice Support,GRANTS & EX GRATIA PAYMENTS,People's Services,Supported Living,A56088
London Borough of Sutton,19/09/2023,50401891,478.24,Choice Support,GRANTS & EX GRATIA PAYMENTS,People's Services,Supported Living,A56088
London Borough of Sutton,19/09/2023,50401891,"1,409.14",Choice Support,GRANTS & EX GRATIA PAYMENTS,People's Services,Supported Living,A56088
London Borough of Sutton,19/09/2023,50401891,118.37,Choice Support,GRANTS & EX GRATIA PAYMENTS,People's Services,Supported Living,A56088
London Borough of Sutton,19/09/2023,50401892,"2,078.49",Choice Support,GRANTS & EX GRATIA PAYMENTS,People's Services,Supported Living,A56088
London Borough of Sutton,19/09/2023,50401892,478.24,Choice Support,GRANTS & EX GRATIA PAYMENTS,People's Services,Supported Living,A56088
London Borough of Sutton,19/09/2023,50401892,"1,606.41",Choice Support,GRANTS & EX GRATIA PAYMENTS,People's Services,Supported Living,A56088
London Borough of Sutton,19/09/2023,50401892,651.04,Choice Support,GRANTS & EX GRATIA PAYMENTS,People's Services,Supported Living,A56088
London Borough of Sutton,19/09/2023,50401893,"3,708.17",Choice Support,GRANTS & EX GRATIA PAYMENTS,People's Services,Supported Living,A56088
London Borough of Sutton,19/09/2023,50401893,478.24,Choice Support,GRANTS & EX GRATIA PAYMENTS,People's Services,Supported Living,A56088
London Borough of Sutton,19/09/2023,50401893,"1,402.11",Choice Support,GRANTS & EX GRATIA PAYMENTS,People's Services,Supported Living,A56088
London Borough of Sutton,19/09/2023,50401893,651.04,Choice Support,GRANTS & EX GRATIA PAYMENTS,People's Services,Supported Living,A56088
London Borough of Sutton,19/09/2023,50401896,623.23,Choice Support,GRANTS & EX GRATIA PAYMENTS,People's Services,Supported Living,A56088
London Borough of Sutton,19/09/2023,50401896,"4,955.66",Choice Support,GRANTS & EX GRATIA PAYMENTS,People's Services,Supported Living,A56088
London Borough of Sutton,19/09/2023,50401896,"1,141.20",Choice Support,GRANTS & EX GRATIA PAYMENTS,People's Services,Supported Living,A56088
London Borough of Sutton,19/09/2023,50401897,"4,730.40",Choice Support,GRANTS & EX GRATIA PAYMENTS,People's Services,Supported Living,A56088
London Borough of Sutton,19/09/2023,50401897,426.47,Choice Support,GRANTS & EX GRATIA PAYMENTS,People's Services,Supported Living,A56088
London Borough of Sutton,19/09/2023,50401897,"2,027.31",Choice Support,GRANTS & EX GRATIA PAYMENTS,People's Services,Supported Living,A56088
London Borough of Sutton,19/09/2023,50401900,"1,238.91",Choice Support,GRANTS & EX GRATIA PAYMENTS,People's Services,Supported Living,A56088
London Borough of Sutton,19/09/2023,50401900,"3,266.23",Choice Support,GRANTS & EX GRATIA PAYMENTS,People's Services,Supported Living,A56088
London Borough of Sutton,19/09/2023,50401900,"1,141.20",Choice Support,GRANTS & EX GRATIA PAYMENTS,People's Services,Supported Living,A56088
London Borough of Sutton,19/09/2023,50401908,623.23,Choice Support,GRANTS & EX GRATIA PAYMENTS,People's Services,Supported Living,A56088
London Borough of Sutton,19/09/2023,50401908,"4,880.57",Choice Support,GRANTS & EX GRATIA PAYMENTS,People's Services,Supported Living,A56088
London Borough of Sutton,19/09/2023,50401908,"1,141.20",Choice Support,GRANTS & EX GRATIA PAYMENTS,People's Services,Supported Living,A56088
London Borough of Sutton,19/09/2023,50401910,"2,295.51",Choice Support,GRANTS & EX GRATIA PAYMENTS,People's Services,Supported Living,A56088
London Borough of Sutton,19/09/2023,50401910,478.24,Choice Support,GRANTS & EX GRATIA PAYMENTS,People's Services,Supported Living,A56088
London Borough of Sutton,19/09/2023,50401910,"1,624.03",Choice Support,GRANTS & EX GRATIA PAYMENTS,People's Services,Supported Living,A56088
London Borough of Sutton,19/09/2023,50401910,651.04,Choice Support,GRANTS & EX GRATIA PAYMENTS,People's Services,Supported Living,A56088
London Borough of Sutton,19/09/2023,50401921,"1,238.91",Choice Support,GRANTS & EX GRATIA PAYMENTS,People's Services,Supported Living,A56088
London Borough of Sutton,19/09/2023,50401921,"3,453.94",Choice Support,GRANTS & EX GRATIA PAYMENTS,People's Services,Supported Living,A56088
London Borough of Sutton,19/09/2023,50401921,"1,141.20",Choice Support,GRANTS & EX GRATIA PAYMENTS,People's Services,Supported Living,A56088
London Borough of Sutton,19/09/2023,50401922,"4,297.89",Choice Support,GRANTS & EX GRATIA PAYMENTS,People's Services,Supported Living,A56088
London Borough of Sutton,19/09/2023,50401926,"1,761.43",Choice Support,GRANTS & EX GRATIA PAYMENTS,People's Services,Supported Living,A56088
London Borough of Sutton,19/09/2023,50401926,478.24,Choice Support,GRANTS & EX GRATIA PAYMENTS,People's Services,Supported Living,A56088
London Borough of Sutton,19/09/2023,50401926,"2,395.54",Choice Support,GRANTS & EX GRATIA PAYMENTS,People's Services,Supported Living,A56088
London Borough of Sutton,19/09/2023,50401926,118.37,Choice Support,GRANTS & EX GRATIA PAYMENTS,People's Services,Supported Living,A56088
London Borough of Sutton,11/08/2023,50404174,"6,484.68",Choice Support,GRANTS & EX GRATIA PAYMENTS,People's Services,Home Care Services,A56019
London Borough of Sutton,01/09/2023,50396488,"2,220.00",Christchurch Fledgelings Pre-School,ACADEMIC INSTNS - OTHER,People's Services,SEND Inclusion funding,A60038
London Borough of Sutton,12/09/2023,50397189,"1,064.70",Christchurch Fledgelings Pre-School,ACADEMIC INSTNS - OTHER,People's Services,Payment - Nursery Funding,A51056
London Borough of Sutton,12/09/2023,50397255,"9,286.20",Christchurch Fledgelings Pre-School,ACADEMIC INSTNS - OTHER,People's Services,Payment - Nursery Funding,A51056
London Borough of Sutton,12/09/2023,50399177,796.95,Christchurch Fledgelings Pre-School,ACADEMIC INSTNS - OTHER,People's Services,Payment - school supplementary grant,A51062
London Borough of Sutton,14/09/2023,20058060,"15,440.00",Barrow Hedges Primary School Academy,SCHOOL FUNDS,People's Services,Payments to Contractors,C14000
London Borough of Sutton,03/09/2023,50396240,"52,429.20",Barrow Hedges Primary School Academy,SCHOOL FUNDS,People's Services,Top-up Funding,A51016
London Borough of Sutton,12/09/2023,50397144,"17,143.35",Barrow Hedges Primary School Academy,SCHOOL FUNDS,People's Services,Payment - Nursery Funding,A51056
London Borough of Sutton,14/09/2023,50399303,"71,390.00",Barrow Hedges Primary School Academy,SCHOOL FUNDS,People's Services,FSM Supplementary,A60036
London Borough of Sutton,09/01/2023,50399320,949.85,Barrow Hedges Primary School Academy,SCHOOL FUNDS,People's Services,Top Up Additional Support,A60015
London Borough of Sutton,30/11/2022,50399321,882.00,Barrow Hedges Primary School Academy,SCHOOL FUNDS,People's Services,Top Up Additional Support,A60015
London Borough of Sutton,22/09/2023,50404181,"5,760.00",Barrow Hedges Primary School Academy,SCHOOL FUNDS,Resources,"Grants, Contributions & Donations",A47005
London Borough of Sutton,08/03/2023,20048302,"-1,131.57",Civica UK Ltd,BUSINESS & COMPUTER SYSTEMS,Environment Housing and Neighbourhoods,Other Supplies & Services,A44291
London Borough of Sutton,01/09/2023,50395399,"4,525.36",Claremont Care Svs Ltd,SOCIAL SERVICES RESIDENTIAL,People's Services,Nursing Care - Ext Provider,A56025
London Borough of Sutton,01/09/2023,50395399,-750.40,Claremont Care Svs Ltd,SOCIAL SERVICES RESIDENTIAL,People's Services,Nursing Care - 3rd party top up payment,A56023
London Borough of Sutton,01/09/2023,50395528,"4,096.12",Claremont Care Svs Ltd,SOCIAL SERVICES RESIDENTIAL,People's Services,Nursing Care - Ext Provider,A56025
London Borough of Sutton,01/09/2023,50395528,-878.84,Claremont Care Svs Ltd,SOCIAL SERVICES RESIDENTIAL,People's Services,Nursing Care - 3rd party top up payment,A56023
London Borough of Sutton,01/09/2023,50395598,"6,236.76",Claremont Care Svs Ltd,SOCIAL SERVICES RESIDENTIAL,People's Services,Nursing Care Short Term,A56026
London Borough of Sutton,01/09/2023,50395598,-836.76,Claremont Care Svs Ltd,SOCIAL SERVICES RESIDENTIAL,People's Services,Nursing Care - 3rd party top up payment,A56023
London Borough of Sutton,01/09/2023,50395599,"6,236.76",Claremont Care Svs Ltd,SOCIAL SERVICES RESIDENTIAL,People's Services,Nursing Care - Ext Provider,A56025
London Borough of Sutton,01/09/2023,50395599,-836.76,Claremont Care Svs Ltd,SOCIAL SERVICES RESIDENTIAL,People's Services,Nursing Care - 3rd party top up payment,A56023
London Borough of Sutton,01/09/2023,50395600,"-11,424.00",Claremont Care Svs Ltd,SOCIAL SERVICES RESIDENTIAL,People's Services,Nursing Care - 3rd party top up payment,A56023
London Borough of Sutton,01/09/2023,50395600,"14,613.88",Claremont Care Svs Ltd,SOCIAL SERVICES RESIDENTIAL,People's Services,Nursing Care - Ext Provider,A56025
London Borough of Sutton,01/09/2023,50395601,-878.84,Claremont Care Svs Ltd,SOCIAL SERVICES RESIDENTIAL,People's Services,Nursing Care - 3rd party top up payment,A56023
London Borough of Sutton,01/09/2023,50395601,"7,838.84",Claremont Care Svs Ltd,SOCIAL SERVICES RESIDENTIAL,People's Services,Nursing Care Short Term,A56026
London Borough of Sutton,01/09/2023,50395669,"6,487.64",Claremont Care Svs Ltd,SOCIAL SERVICES RESIDENTIAL,People's Services,Nursing Care - Ext Provider,A56025
London Borough of Sutton,01/09/2023,50395669,-750.40,Claremont Care Svs Ltd,SOCIAL SERVICES RESIDENTIAL,People's Services,Nursing Care - 3rd party top up payment,A56023
London Borough of Sutton,01/09/2023,50395198,-735.68,Clarendon Nursing Home,SOCIAL SERVICES RESIDENTIAL,People's Services,Nursing Care - 3rd party top up payment,A56023
London Borough of Sutton,01/09/2023,50395198,"3,720.16",Clarendon Nursing Home,SOCIAL SERVICES RESIDENTIAL,People's Services,Nursing Care - Ext Provider,A56025
London Borough of Sutton,04/09/2023,50397887,"2,495.77",Clear Thinking Care Limited,SOCIAL SERVICES RESIDENTIAL,People's Services,Supported Living,A56088
London Borough of Sutton,11/09/2023,50401439,"2,495.77",Clear Thinking Care Limited,SOCIAL SERVICES RESIDENTIAL,People's Services,Supported Living,A56088
London Borough of Sutton,15/09/2023,50402998,"2,495.77",Clear Thinking Care Limited,SOCIAL SERVICES RESIDENTIAL,People's Services,Supported Living,A56088
London Borough of Sutton,22/09/2023,50406066,"2,495.77",Clear Thinking Care Limited,SOCIAL SERVICES RESIDENTIAL,People's Services,Supported Living,A56088
London Borough of Sutton,20/09/2023,20058452,"95,753.21",ClearView Communications Ltd,OFFICE SERVICES,Resources,Payments to Contractors,C14000
London Borough of Sutton,19/09/2023,50401866,"5,210.66",CLIA CARE LTD,SOCIAL SERVICES RESIDENTIAL,People's Services,Supported Living,A56088
London Borough of Sutton,19/09/2023,50401866,"-2,605.33",CLIA CARE LTD,SOCIAL SERVICES RESIDENTIAL,People's Services,Nursing Care - 3rd party top up payment,A56023
London Borough of Sutton,19/09/2023,50401883,"8,601.69",CLIA CARE LTD,SOCIAL SERVICES RESIDENTIAL,People's Services,Supported Living,A56088
London Borough of Sutton,19/09/2023,50401883,"-6,036.56",CLIA CARE LTD,SOCIAL SERVICES RESIDENTIAL,People's Services,Nursing Care - 3rd party top up payment,A56023
London Borough of Sutton,19/09/2023,50401906,"2,767.50",CLIA CARE LTD,SOCIAL SERVICES RESIDENTIAL,People's Services,One to One Care,A56108
London Borough of Sutton,19/09/2023,50401906,"-4,149.13",CLIA CARE LTD,SOCIAL SERVICES RESIDENTIAL,People's Services,Nursing Care - 3rd party top up payment,A56023
London Borough of Sutton,19/09/2023,50401906,"1,061.61",CLIA CARE LTD,SOCIAL SERVICES RESIDENTIAL,People's Services,Supported Living,A56088
London Borough of Sutton,19/09/2023,50401906,708.00,CLIA CARE LTD,SOCIAL SERVICES RESIDENTIAL,People's Services,Supported Living,A56088
London Borough of Sutton,19/09/2023,50401906,"3,761.10",CLIA CARE LTD,SOCIAL SERVICES RESIDENTIAL,People's Services,Supported Living,A56088
London Borough of Sutton,19/09/2023,50401927,"7,210.37",CLIA CARE LTD,SOCIAL SERVICES RESIDENTIAL,People's Services,Supported Living,A56088
London Borough of Sutton,19/09/2023,50401927,"-3,605.19",CLIA CARE LTD,SOCIAL SERVICES RESIDENTIAL,People's Services,Nursing Care - 3rd party top up payment,A56023
London Borough of Sutton,27/08/2023,50395972,549.00,Clovecare Ltd,SOCIAL SERVICES RESIDENTIAL,People's Services,Home Care Services,A56019
London Borough of Sutton,27/08/2023,50395984,790.00,Clovecare Ltd,SOCIAL SERVICES RESIDENTIAL,People's Services,Home Care Services,A56019
London Borough of Sutton,27/08/2023,50395984,871.05,Clovecare Ltd,SOCIAL SERVICES RESIDENTIAL,People's Services,Home Care Services,A56019
London Borough of Sutton,27/08/2023,50395994,834.50,Clovecare Ltd,SOCIAL SERVICES RESIDENTIAL,People's Services,Home Care Services,A56019
London Borough of Sutton,03/09/2023,50398156,867.02,Clovecare Ltd,SOCIAL SERVICES RESIDENTIAL,People's Services,Home Care Services,A56019
London Borough of Sutton,03/09/2023,50398197,570.66,Clovecare Ltd,SOCIAL SERVICES RESIDENTIAL,People's Services,Home Care Services,A56019
London Borough of Sutton,19/09/2023,50401993,647.19,Clovecare Ltd,SOCIAL SERVICES RESIDENTIAL,People's Services,Home Care Services,A56019
London Borough of Sutton,10/09/2023,50401994,545.00,Clovecare Ltd,SOCIAL SERVICES RESIDENTIAL,People's Services,Home Care Services,A56019
London Borough of Sutton,10/09/2023,50401994,635.50,Clovecare Ltd,SOCIAL SERVICES RESIDENTIAL,People's Services,Home Care Services,A56019
London Borough of Sutton,10/09/2023,50402083,549.00,Clovecare Ltd,SOCIAL SERVICES RESIDENTIAL,People's Services,Home Care Services,A56019
London Borough of Sutton,10/09/2023,50402142,834.50,Clovecare Ltd,SOCIAL SERVICES RESIDENTIAL,People's Services,Home Care Services,A56019
London Borough of Sutton,17/09/2023,50404827,549.00,Clovecare Ltd,SOCIAL SERVICES RESIDENTIAL,People's Services,Home Care Services,A56019
London Borough of Sutton,17/09/2023,50404833,"1,192.23",Clovecare Ltd,SOCIAL SERVICES RESIDENTIAL,People's Services,Home Care Services,A56019
London Borough of Sutton,17/09/2023,50404833,635.45,Clovecare Ltd,SOCIAL SERVICES RESIDENTIAL,People's Services,Home Care Services,A56019
London Borough of Sutton,17/09/2023,50404843,834.50,Clovecare Ltd,SOCIAL SERVICES RESIDENTIAL,People's Services,Home Care Services,A56019
London Borough of Sutton,01/09/2023,50395151,"4,234.16",Coast Care Homes Ltd,SOCIAL SERVICES RESIDENTIAL,People's Services,Residential Care - Ext Provider,A56114
London Borough of Sutton,01/09/2023,50395267,"12,960.16",Cognithan Ltd,SOCIAL SERVICES RESIDENTIAL,People's Services,Residential Care - Ext Provider,A56114
London Borough of Sutton,02/09/2023,20057193,"231,686.53",Cognus Ltd,LEGAL & PROFESSIONAL SERVICES,People's Services,Consultancy Services,A56007
London Borough of Sutton,02/09/2023,20057194,"148,062.50",Cognus Ltd,LEGAL & PROFESSIONAL SERVICES,People's Services,Special Educational Needs,A51015
London Borough of Sutton,02/09/2023,20057195,"151,477.17",Cognus Ltd,LEGAL & PROFESSIONAL SERVICES,People's Services,Consultancy Services,A56007
London Borough of Sutton,02/09/2023,20057196,"148,062.50",Cognus Ltd,LEGAL & PROFESSIONAL SERVICES,People's Services,Special Educational Needs,A51015
London Borough of Sutton,02/09/2023,20057197,"15,769.42",Cognus Ltd,LEGAL & PROFESSIONAL SERVICES,People's Services,Consultancy Services,A56007
London Borough of Sutton,02/09/2023,20057198,"15,769.42",Cognus Ltd,LEGAL & PROFESSIONAL SERVICES,People's Services,Consultancy Services,A56007
London Borough of Sutton,05/09/2023,20057383,"13,200.00",Cognus Ltd,LEGAL & PROFESSIONAL SERVICES,People's Services,Other Supplies & Services,A44291
London Borough of Sutton,20/09/2023,20058346,425.00,Cognus Ltd,LEGAL & PROFESSIONAL SERVICES,People's Services,Staff Development And Training,A15022
London Borough of Sutton,14/09/2023,20058434,"17,100.00",Cognus Ltd,LEGAL & PROFESSIONAL SERVICES,People's Services,LAC - Education,A44280
London Borough of Sutton,01/09/2023,50395300,"11,981.04",Coleg Elidyr Camphill Communities,CHILDREN'S SERVICES - RESIDENTIAL,People's Services,Interim Placements - Ext Provider,A56102
London Borough of Sutton,12/09/2023,50397256,"10,049.55",Collingwood School Ltd,SCHOOL FUNDS,People's Services,Payment - Nursery Funding,A51056
London Borough of Sutton,12/09/2023,50399178,821.10,Collingwood School Ltd,SCHOOL FUNDS,People's Services,Payment - school supplementary grant,A51062
London Borough of Sutton,30/08/2023,50396223,"2,937.87",Comfort Care Services UK Ltd,SOCIAL SERVICES - DIRECT PAYMENTS,People's Services,Supported Living,A56088
London Borough of Sutton,11/09/2023,50399090,"2,575.78",Comfort Care Services UK Ltd,SOCIAL SERVICES - DIRECT PAYMENTS,People's Services,Supported Living,A56088
London Borough of Sutton,11/09/2023,50399091,"3,219.73",Comfort Care Services UK Ltd,SOCIAL SERVICES - DIRECT PAYMENTS,People's Services,Supported Living,A56088
London Borough of Sutton,11/09/2023,50399092,"3,327.05",Comfort Care Services UK Ltd,SOCIAL SERVICES - DIRECT PAYMENTS,People's Services,Supported Living,A56088
London Borough of Sutton,11/09/2023,50399093,"3,219.73",Comfort Care Services UK Ltd,SOCIAL SERVICES - DIRECT PAYMENTS,People's Services,Supported Living,A56088
London Borough of Sutton,13/09/2023,50402995,"3,327.05",Comfort Care Services UK Ltd,SOCIAL SERVICES - DIRECT PAYMENTS,People's Services,Supported Living,A56088
London Borough of Sutton,13/09/2023,50402997,"3,327.05",Comfort Care Services UK Ltd,SOCIAL SERVICES - DIRECT PAYMENTS,People's Services,Supported Living,A56088
London Borough of Sutton,18/08/2023,50397696,"3,894.12",Compass Fostering London Ltd,CHILDREN'S SERVICES - FOSTERING & ADOPTION SERVICES,People's Services,Foster Parents Support,A44110
London Borough of Sutton,01/08/2023,50397768,"3,639.09",Compass Fostering London Ltd,CHILDREN'S SERVICES - FOSTERING & ADOPTION SERVICES,People's Services,Foster Parents Support,A44110
London Borough of Sutton,01/08/2023,50397769,"3,753.17",Compass Fostering London Ltd,CHILDREN'S SERVICES - FOSTERING & ADOPTION SERVICES,People's Services,Foster Parents Support,A44110
London Borough of Sutton,01/08/2023,50397770,"4,088.28",Compass Fostering London Ltd,CHILDREN'S SERVICES - FOSTERING & ADOPTION SERVICES,People's Services,Foster Parents Support,A44110
London Borough of Sutton,01/08/2023,50397676,"4,649.69",Compass Fostering South Ltd,CHILDREN'S SERVICES - FOSTERING & ADOPTION SERVICES,People's Services,Foster Parents Support,A44110
London Borough of Sutton,03/08/2023,50397687,"4,162.86",Connect Fostering Services Ltd,CHILDREN'S SERVICES - FOSTERING & ADOPTION SERVICES,People's Services,Foster Parents Support,A44110
London Borough of Sutton,03/08/2023,50397693,"4,162.86",Connect Fostering Services Ltd,CHILDREN'S SERVICES - FOSTERING & ADOPTION SERVICES,People's Services,Foster Parents Support,A44110
London Borough of Sutton,05/09/2023,50396764,"4,000.00",Little PioneersSsutton,ACADEMIC INSTNS - OTHER,People's Services,Predictable Needs funding,A56125
London Borough of Sutton,12/09/2023,50397208,709.80,Little PioneersSsutton,ACADEMIC INSTNS - OTHER,People's Services,Payment - Nursery Funding,A51056
London Borough of Sutton,12/09/2023,50397291,"10,799.25",Little PioneersSsutton,ACADEMIC INSTNS - OTHER,People's Services,Payment - Nursery Funding,A51056
London Borough of Sutton,12/09/2023,50399212,885.50,Little PioneersSsutton,ACADEMIC INSTNS - OTHER,People's Services,Payment - school supplementary grant,A51062
London Borough of Sutton,12/09/2023,50397190,"1,774.50",Cosy Cottage Daycare Ltd,ACADEMIC INSTNS - OTHER,People's Services,Payment - Nursery Funding,A51056
London Borough of Sutton,12/09/2023,50397257,"1,125.60",Cosy Cottage Daycare Ltd,ACADEMIC INSTNS - OTHER,People's Services,Payment - Nursery Funding,A51056
London Borough of Sutton,12/09/2023,50399111,813.75,Cosy Cottage Daycare Ltd,ACADEMIC INSTNS - OTHER,People's Services,Payment - school supplementary grant,A51062
London Borough of Sutton,01/09/2023,50395328,"4,400.00",Country Court Care Homes 2 Ltd,SOCIAL SERVICES RESIDENTIAL,People's Services,Nursing Care - Ext Provider,A56025
London Borough of Sutton,01/09/2023,50395328,"-1,226.92",Country Court Care Homes 2 Ltd,SOCIAL SERVICES RESIDENTIAL,People's Services,Nursing Care - 3rd party top up payment,A56023
London Borough of Sutton,07/08/2023,20057530,745.33,REDACTED - PERSONAL DATA,SOCIAL SERVICES - OTHER,People's Services,Special Guardianship,A56011
London Borough of Sutton,29/08/2023,20056875,"7,426.56",CPC Project Services LLP,CONSTRUCTION INDUSTRY,HRA,External Fees and Consultants,C20000
London Borough of Sutton,01/09/2023,50395326,"7,584.16",Cream 1 Ltd ,SOCIAL SERVICES RESIDENTIAL,People's Services,Residential Care - Ext Provider,A56114
London Borough of Sutton,01/09/2023,50395326,"5,560.52",Cream 1 Ltd ,SOCIAL SERVICES RESIDENTIAL,People's Services,One to One Care,A56108
London Borough of Sutton,04/08/2023,50397785,"6,957.29",Credo Care Limited,CHILDREN'S SERVICE - OTHER,People's Services,Foster Parents Support,A44110
London Borough of Sutton,20/07/2023,50396864,"21,984.69",Cressey Oasis Education Ltd,CHILDREN'S SERVICES - RESIDENTIAL,People's Services,Independent School Fees,A56002
London Borough of Sutton,01/09/2023,50395420,"5,400.00",CRNH Ltd,SOCIAL SERVICES RESIDENTIAL,People's Services,Nursing Care - Ext Provider,A56025
London Borough of Sutton,01/09/2023,50395420,-836.76,CRNH Ltd,SOCIAL SERVICES RESIDENTIAL,People's Services,Nursing Care - 3rd party top up payment,A56023
London Borough of Sutton,01/09/2023,50395501,-836.76,CRNH Ltd,SOCIAL SERVICES RESIDENTIAL,People's Services,Nursing Care - 3rd party top up payment,A56023
London Borough of Sutton,01/09/2023,50395501,"12,784.00",CRNH Ltd,SOCIAL SERVICES RESIDENTIAL,People's Services,Nursing Care Short Term,A56026
London Borough of Sutton,01/09/2023,50395520,"4,096.12",CRNH Ltd,SOCIAL SERVICES RESIDENTIAL,People's Services,Nursing Care - Ext Provider,A56025
London Borough of Sutton,01/09/2023,50395520,-878.84,CRNH Ltd,SOCIAL SERVICES RESIDENTIAL,People's Services,Nursing Care - 3rd party top up payment,A56023
London Borough of Sutton,01/09/2023,50395558,-836.76,CRNH Ltd,SOCIAL SERVICES RESIDENTIAL,People's Services,Nursing Care - 3rd party top up payment,A56023
London Borough of Sutton,01/09/2023,50395558,"5,400.00",CRNH Ltd,SOCIAL SERVICES RESIDENTIAL,People's Services,Nursing Care Short Term,A56026
London Borough of Sutton,01/09/2023,50395573,"27,197.14",CRNH Ltd,SOCIAL SERVICES RESIDENTIAL,People's Services,Nursing Care - Ext Provider,A56025
London Borough of Sutton,01/09/2023,50395573,"-5,241.65",CRNH Ltd,SOCIAL SERVICES RESIDENTIAL,People's Services,Nursing Care - 3rd party top up payment,A56023
London Borough of Sutton,01/09/2023,50395574,"-2,542.36",CRNH Ltd,SOCIAL SERVICES RESIDENTIAL,People's Services,Nursing Care - 3rd party top up payment,A56023
London Borough of Sutton,01/09/2023,50395574,"13,191.43",CRNH Ltd,SOCIAL SERVICES RESIDENTIAL,People's Services,Nursing Care Short Term,A56026
London Borough of Sutton,01/09/2023,50395618,"4,096.12",CRNH Ltd,SOCIAL SERVICES RESIDENTIAL,People's Services,Nursing Care - Ext Provider,A56025
London Borough of Sutton,01/09/2023,50395618,-878.84,CRNH Ltd,SOCIAL SERVICES RESIDENTIAL,People's Services,Nursing Care - 3rd party top up payment,A56023
London Borough of Sutton,01/09/2023,50395664,"6,028.52",CRNH Ltd,SOCIAL SERVICES RESIDENTIAL,People's Services,Nursing Care - Ext Provider,A56025
London Borough of Sutton,01/09/2023,50395664,-836.76,CRNH Ltd,SOCIAL SERVICES RESIDENTIAL,People's Services,Nursing Care - 3rd party top up payment,A56023
London Borough of Sutton,01/09/2023,50395708,"4,096.12",CRNH Ltd,SOCIAL SERVICES RESIDENTIAL,People's Services,Nursing Care - Ext Provider,A56025
London Borough of Sutton,01/09/2023,50395708,-878.84,CRNH Ltd,SOCIAL SERVICES RESIDENTIAL,People's Services,Nursing Care - 3rd party top up payment,A56023
London Borough of Sutton,01/09/2023,50395721,"4,096.12",CRNH Ltd,SOCIAL SERVICES RESIDENTIAL,People's Services,Nursing Care - Ext Provider,A56025
London Borough of Sutton,01/09/2023,50395721,-878.84,CRNH Ltd,SOCIAL SERVICES RESIDENTIAL,People's Services,Nursing Care - 3rd party top up payment,A56023
London Borough of Sutton,31/03/2023,20057634,"19,977.00",Cromwood Limited,ACCOMMODATION BED & BREAKFAST,Environment Housing and Neighbourhoods,Bed & Breakfast,A56000
London Borough of Sutton,31/08/2023,20058404,"20,402.50",Cromwood Limited,ACCOMMODATION BED & BREAKFAST,Environment Housing and Neighbourhoods,Bed & Breakfast,A56000
London Borough of Sutton,01/09/2023,50395351,"4,096.12",Cross Care Services Ltd,SOCIAL SERVICES RESIDENTIAL,People's Services,Nursing Care - Ext Provider,A56025
London Borough of Sutton,01/09/2023,50395351,-878.84,Cross Care Services Ltd,SOCIAL SERVICES RESIDENTIAL,People's Services,Nursing Care - 3rd party top up payment,A56023
London Borough of Sutton,01/09/2023,50395455,"4,096.12",Cross Care Services Ltd,SOCIAL SERVICES RESIDENTIAL,People's Services,Nursing Care - Ext Provider,A56025
London Borough of Sutton,01/09/2023,50395548,-878.84,Cross Care Services Ltd,SOCIAL SERVICES RESIDENTIAL,People's Services,Nursing Care - 3rd party top up payment,A56023
London Borough of Sutton,01/09/2023,50395548,"4,096.12",Cross Care Services Ltd,SOCIAL SERVICES RESIDENTIAL,People's Services,Nursing Care Short Term,A56026
London Borough of Sutton,01/09/2023,50395549,"4,096.12",Cross Care Services Ltd,SOCIAL SERVICES RESIDENTIAL,People's Services,Nursing Care - Ext Provider,A56025
London Borough of Sutton,01/09/2023,50395549,-443.56,Cross Care Services Ltd,SOCIAL SERVICES RESIDENTIAL,People's Services,Nursing Care - 3rd party top up payment,A56023
London Borough of Sutton,01/09/2023,50395565,-878.84,Cross Care Services Ltd,SOCIAL SERVICES RESIDENTIAL,People's Services,Nursing Care - 3rd party top up payment,A56023
London Borough of Sutton,01/09/2023,50395565,"4,096.12",Cross Care Services Ltd,SOCIAL SERVICES RESIDENTIAL,People's Services,Nursing Care - Ext Provider,A56025
London Borough of Sutton,01/09/2023,50395566,"4,096.12",Cross Care Services Ltd,SOCIAL SERVICES RESIDENTIAL,People's Services,Nursing Care - Ext Provider,A56025
London Borough of Sutton,01/09/2023,50395566,-878.84,Cross Care Services Ltd,SOCIAL SERVICES RESIDENTIAL,People's Services,Nursing Care - 3rd party top up payment,A56023
London Borough of Sutton,01/09/2023,50395696,"4,096.12",Cross Care Services Ltd,SOCIAL SERVICES RESIDENTIAL,People's Services,Nursing Care - Ext Provider,A56025
London Borough of Sutton,01/09/2023,50395696,-878.84,Cross Care Services Ltd,SOCIAL SERVICES RESIDENTIAL,People's Services,Nursing Care - 3rd party top up payment,A56023
London Borough of Sutton,01/09/2023,50395697,-179.31,Cross Care Services Ltd,SOCIAL SERVICES RESIDENTIAL,People's Services,Nursing Care - 3rd party top up payment,A56023
London Borough of Sutton,01/09/2023,50395697,818.84,Cross Care Services Ltd,SOCIAL SERVICES RESIDENTIAL,People's Services,Nursing Care Short Term,A56026
London Borough of Sutton,16/08/2023,50397766,"3,193.00",London Borough of Croydon,CENTRAL & LOCAL GOVERNMENT,People's Services,Foster Parents Support,A44110
London Borough of Sutton,31/08/2023,20057102,"1,312.85",Croydon Court Ltd,ACCOMMODATION BED & BREAKFAST,People's Services,Temporary Residential Accommodation,A44140
London Borough of Sutton,01/09/2023,20057103,"5,115.00",Croydon Court Ltd,ACCOMMODATION BED & BREAKFAST,Environment Housing and Neighbourhoods,Bed & Breakfast,A56000
London Borough of Sutton,12/09/2023,50397207,709.80,REDACTED - PERSONAL DATA,GRANTS & EX GRATIA PAYMENTS,People's Services,Payment - Nursery Funding,A51056
London Borough of Sutton,01/09/2023,50395160,"8,118.44",CSS Ltd,SOCIAL SERVICES RESIDENTIAL,People's Services,Residential Care - Ext Provider,A56114
London Borough of Sutton,21/09/2023,50404505,683.76,CSS Ltd,SOCIAL SERVICES RESIDENTIAL,People's Services,Day Care Services,A56021
London Borough of Sutton,31/08/2023,20057118,"1,632.00",Cubiquity Limited,OFFICE SERVICES,Resources,Printing,A43010
London Borough of Sutton,31/08/2023,50403060,"33,293.79",CUDDINGTON CROFT PRIMARY SCHOOL,SCHOOL FUNDS,People's Services,Top-up Funding,A51016
London Borough of Sutton,03/09/2023,50396251,"6,215.14",Culvers House Primary School,SCHOOL FUNDS,People's Services,Top-up Funding,A51016
London Borough of Sutton,12/09/2023,50396979,"179,114.27",Culvers House Primary School,SCHOOL FUNDS,People's Services,Payments to Schools,A51013
London Borough of Sutton,12/09/2023,50397026,"1,888.84",Culvers House Primary School,SCHOOL FUNDS,People's Services,Other payments to schools,A51023
London Borough of Sutton,12/09/2023,50397151,"6,798.23",Culvers House Primary School,SCHOOL FUNDS,People's Services,Payment - Nursery Funding,A51056
London Borough of Sutton,14/09/2023,50399284,"45,674.00",Culvers House Primary School,SCHOOL FUNDS,People's Services,FSM Supplementary,A60036
London Borough of Sutton,22/09/2023,50404193,"14,400.00",Culvers House Primary School,SCHOOL FUNDS,Resources,"Grants, Contributions & Donations",A47005
London Borough of Sutton,01/09/2023,50395202,"4,800.00",Curado Limited,GRANTS & EX GRATIA PAYMENTS,People's Services,Interim Placements - Ext Provider,A56102
London Borough of Sutton,01/09/2023,50395269,"6,400.00",Curado Limited,GRANTS & EX GRATIA PAYMENTS,People's Services,Residential Care - Ext Provider,A56114
London Borough of Sutton,19/09/2023,50401831,"-29,044.29",Curado Limited,GRANTS & EX GRATIA PAYMENTS,People's Services,Nursing Care - 3rd party top up payment,A56023
London Borough of Sutton,19/09/2023,50401831,"48,407.14",Curado Limited,GRANTS & EX GRATIA PAYMENTS,People's Services,Supported Living,A56088
London Borough of Sutton,19/09/2023,50401847,"1,928.57",Curado Limited,GRANTS & EX GRATIA PAYMENTS,People's Services,Supported Living,A56088
London Borough of Sutton,24/04/2023,20049646,"-11,500.00",Cushman & Wakefield Debenham Tie Leung Limited,LEGAL & PROFESSIONAL SERVICES,Development Growth and Regeneration,External Fees and Consultants,C20000
London Borough of Sutton,01/09/2023,50395236,"7,884.00",Cygnet Learning Disabilities Midlands Ltd,SOCIAL SERVICES RESIDENTIAL,People's Services,Residential Care - Ext Provider,A56114
London Borough of Sutton,01/09/2023,50395236,-846.40,Cygnet Learning Disabilities Midlands Ltd,SOCIAL SERVICES RESIDENTIAL,People's Services,Residential Care - Client Cont ( Net Paymt ),A56113
London Borough of Sutton,18/08/2023,20056656,"1,833.00",Dariba Design Limited,CONSULTING ARCHITECTS ENGINEER,Environment Housing and Neighbourhoods,Grants Given For Capital Purposes,C20004
London Borough of Sutton,30/08/2023,20057051,"2,177.80",Dariba Design Limited,CONSULTING ARCHITECTS ENGINEER,Environment Housing and Neighbourhoods,Grants Given For Capital Purposes,C20004
London Borough of Sutton,01/09/2023,20057551,785.73,Angel Lettings,ACCOMMODATION BED & BREAKFAST,Environment Housing and Neighbourhoods,Temporary Protection - Homeless Persons,A62028
London Borough of Sutton,31/08/2023,20057121,"2,015.00",Dellhome Limited,ACCOMMODATION BED & BREAKFAST,Environment Housing and Neighbourhoods,Bed & Breakfast,A56000
London Borough of Sutton,31/08/2023,20057122,"1,860.00",Dellhome Limited,ACCOMMODATION BED & BREAKFAST,Environment Housing and Neighbourhoods,Bed & Breakfast,A56000
London Borough of Sutton,31/08/2023,20057123,"2,170.00",Dellhome Limited,ACCOMMODATION BED & BREAKFAST,Environment Housing and Neighbourhoods,Bed & Breakfast,A56000
London Borough of Sutton,31/08/2023,20057124,"2,325.00",Dellhome Limited,ACCOMMODATION BED & BREAKFAST,Environment Housing and Neighbourhoods,Bed & Breakfast,A56000
London Borough of Sutton,31/08/2023,20057125,"2,480.00",Dellhome Limited,ACCOMMODATION BED & BREAKFAST,Environment Housing and Neighbourhoods,Bed & Breakfast,A56000
London Borough of Sutton,31/08/2023,20057126,"1,395.00",Dellhome Limited,ACCOMMODATION BED & BREAKFAST,Environment Housing and Neighbourhoods,Bed & Breakfast,A56000
London Borough of Sutton,31/08/2023,20057127,"1,395.00",Dellhome Limited,ACCOMMODATION BED & BREAKFAST,Environment Housing and Neighbourhoods,Bed & Breakfast,A56000
London Borough of Sutton,31/08/2023,20057128,"1,395.00",Dellhome Limited,ACCOMMODATION BED & BREAKFAST,Environment Housing and Neighbourhoods,Bed & Breakfast,A56000
London Borough of Sutton,01/09/2023,20057319,"34,679.00",Delta Wise Limited,ACCOMMODATION BED & BREAKFAST,Environment Housing and Neighbourhoods,Bed & Breakfast,A56000
London Borough of Sutton,08/09/2023,20057554,-585.21,Delta Wise Limited,ACCOMMODATION BED & BREAKFAST,Resources,Fees And Charges (VATable),A92310
London Borough of Sutton,06/09/2023,20057437,"1,929.75",Denhan Property Services,ACCOMMODATION BED & BREAKFAST,Environment Housing and Neighbourhoods,Bed & Breakfast,A56000
London Borough of Sutton,06/09/2023,20057438,"2,015.00",Denhan Property Services,ACCOMMODATION BED & BREAKFAST,Environment Housing and Neighbourhoods,Bed & Breakfast,A56000
London Borough of Sutton,06/09/2023,20057439,"1,147.00",Denhan Property Services,ACCOMMODATION BED & BREAKFAST,Environment Housing and Neighbourhoods,Bed & Breakfast,A56000
London Borough of Sutton,06/09/2023,20057440,"2,077.00",Denhan Property Services,ACCOMMODATION BED & BREAKFAST,Environment Housing and Neighbourhoods,Bed & Breakfast,A56000
London Borough of Sutton,06/09/2023,20057441,"2,015.00",Denhan Property Services,ACCOMMODATION BED & BREAKFAST,Environment Housing and Neighbourhoods,Bed & Breakfast,A56000
London Borough of Sutton,06/09/2023,20057442,"1,116.00",Denhan Property Services,ACCOMMODATION BED & BREAKFAST,Environment Housing and Neighbourhoods,Bed & Breakfast,A56000
London Borough of Sutton,06/09/2023,20057443,"1,116.00",Denhan Property Services,ACCOMMODATION BED & BREAKFAST,Environment Housing and Neighbourhoods,Bed & Breakfast,A56000
London Borough of Sutton,06/09/2023,20057444,"1,612.00",Denhan Property Services,ACCOMMODATION BED & BREAKFAST,Environment Housing and Neighbourhoods,Bed & Breakfast,A56000
London Borough of Sutton,01/09/2023,50395318,"3,505.00",Denville Hall 2012,SOCIAL SERVICES RESIDENTIAL,People's Services,Residential Care - Ext Provider,A56114
London Borough of Sutton,30/08/2023,20056894,"21,806.58",DEPAULUK,CHILDREN'S SERVICE - OTHER,People's Services,Housing and Support - Generic Services,A62013
London Borough of Sutton,01/09/2023,50395196,793.76,Devaglade Trading Limited,SOCIAL SERVICES RESIDENTIAL,People's Services,Residential Care - Ext Provider,A56114
London Borough of Sutton,03/09/2023,50396252,"19,330.60",Devonshire Primary School,SCHOOL FUNDS,People's Services,Top-up Funding,A51016
London Borough of Sutton,12/09/2023,50396972,"262,600.44",Devonshire Primary School,SCHOOL FUNDS,People's Services,Payments to Schools,A51013
London Borough of Sutton,12/09/2023,50397031,944.42,Devonshire Primary School,SCHOOL FUNDS,People's Services,Other payments to schools,A51023
London Borough of Sutton,12/09/2023,50397040,"2,600.00",Devonshire Primary School,SCHOOL FUNDS,People's Services,Other payments to schools,A51023
London Borough of Sutton,12/09/2023,50397152,"8,026.20",Devonshire Primary School,SCHOOL FUNDS,People's Services,Payment - Nursery Funding,A51056
London Borough of Sutton,14/09/2023,50399279,"68,703.00",Devonshire Primary School,SCHOOL FUNDS,People's Services,FSM Supplementary,A60036
London Borough of Sutton,22/09/2023,50404194,"18,360.00",Devonshire Primary School,SCHOOL FUNDS,Resources,"Grants, Contributions & Donations",A47005
London Borough of Sutton,17/07/2023,50401969,"3,664.52",Direct Care And Support Services,ACCOMMODATION - OTHER,People's Services,Supported Living,A56088
London Borough of Sutton,21/07/2023,50401970,"3,187.09",Direct Care And Support Services,ACCOMMODATION - OTHER,People's Services,Supported Living,A56088
London Borough of Sutton,21/07/2023,50401970,"2,168.64",Direct Care And Support Services,ACCOMMODATION - OTHER,People's Services,Supported Living,A56088
London Borough of Sutton,21/07/2023,50401971,"4,667.96",Direct Care And Support Services,ACCOMMODATION - OTHER,People's Services,Supported Living,A56088
London Borough of Sutton,30/08/2023,50401972,"4,667.96",Direct Care And Support Services,ACCOMMODATION - OTHER,People's Services,Supported Living,A56088
London Borough of Sutton,30/08/2023,50401987,"1,534.39",Direct Care And Support Services,ACCOMMODATION - OTHER,People's Services,Supported Living,A56088
London Borough of Sutton,30/08/2023,50401987,"2,168.64",Direct Care And Support Services,ACCOMMODATION - OTHER,People's Services,Supported Living,A56088
London Borough of Sutton,17/07/2023,50401991,"3,935.00",Direct Care And Support Services,ACCOMMODATION - OTHER,People's Services,Supported Living,A56088
London Borough of Sutton,17/07/2023,50401991,"1,626.80",Direct Care And Support Services,ACCOMMODATION - OTHER,People's Services,Supported Living,A56088
London Borough of Sutton,31/07/2023,50401992,"3,664.52",Direct Care And Support Services,ACCOMMODATION - OTHER,People's Services,Supported Living,A56088
London Borough of Sutton,17/07/2023,50403000,"3,175.92",Direct Care And Support Services,ACCOMMODATION - OTHER,People's Services,Supported Living,A56088
London Borough of Sutton,17/07/2023,50403000,"1,307.32",Direct Care And Support Services,ACCOMMODATION - OTHER,People's Services,Supported Living,A56088
London Borough of Sutton,17/07/2023,50403000,"1,082.32",Direct Care And Support Services,ACCOMMODATION - OTHER,People's Services,Supported Living,A56088
London Borough of Sutton,17/07/2023,50403004,"2,611.74",Direct Care And Support Services,ACCOMMODATION - OTHER,People's Services,Supported Living,A56088
London Borough of Sutton,17/07/2023,50403004,"1,084.32",Direct Care And Support Services,ACCOMMODATION - OTHER,People's Services,Supported Living,A56088
London Borough of Sutton,30/08/2023,50403006,"1,954.81",Direct Care And Support Services,ACCOMMODATION - OTHER,People's Services,Supported Living,A56088
London Borough of Sutton,30/08/2023,50403006,"1,307.32",Direct Care And Support Services,ACCOMMODATION - OTHER,People's Services,Supported Living,A56088
London Borough of Sutton,19/07/2023,50403007,"3,175.92",Direct Care And Support Services,ACCOMMODATION - OTHER,People's Services,Supported Living,A56088
London Borough of Sutton,19/07/2023,50403007,"1,307.32",Direct Care And Support Services,ACCOMMODATION - OTHER,People's Services,Supported Living,A56088
London Borough of Sutton,19/07/2023,50403007,"1,082.32",Direct Care And Support Services,ACCOMMODATION - OTHER,People's Services,Supported Living,A56088
London Borough of Sutton,19/07/2023,50403008,"3,175.92",Direct Care And Support Services,ACCOMMODATION - OTHER,People's Services,Supported Living,A56088
London Borough of Sutton,19/07/2023,50403008,"1,307.32",Direct Care And Support Services,ACCOMMODATION - OTHER,People's Services,Supported Living,A56088
London Borough of Sutton,19/07/2023,50403008,"1,082.32",Direct Care And Support Services,ACCOMMODATION - OTHER,People's Services,Supported Living,A56088
London Borough of Sutton,23/08/2023,20056732,"2,775.00",Discrimination Investigation & Mediation Services Ltd,SUNDRY SUPPLIER - EDUCATION,Health and Wellbeing,Consultancy Services - Other,A44065
London Borough of Sutton,27/09/2023,20057025,938.34,REDACTED - PERSONAL DATA,PLS LANDLORDS,Environment Housing and Neighbourhoods,Temporary Protection - Homeless Persons,A62028
London Borough of Sutton,12/09/2023,50397191,"1,064.70",REDACTED - PERSONAL DATA,GRANTS & EX GRATIA PAYMENTS,People's Services,Payment - Nursery Funding,A51056
London Borough of Sutton,12/09/2023,50397260,883.58,REDACTED - PERSONAL DATA,GRANTS & EX GRATIA PAYMENTS,People's Services,Payment - Nursery Funding,A51056
London Borough of Sutton,03/09/2023,50396253,"42,292.30",Dorchester Primary School,SCHOOL FUNDS,People's Services,Top-up Funding,A51016
London Borough of Sutton,12/09/2023,50396974,"203,667.51",Dorchester Primary School,SCHOOL FUNDS,People's Services,Payments to Schools,A51013
London Borough of Sutton,12/09/2023,50397153,"21,609.00",Dorchester Primary School,SCHOOL FUNDS,People's Services,Payment - Nursery Funding,A51056
London Borough of Sutton,14/09/2023,50399280,"66,017.00",Dorchester Primary School,SCHOOL FUNDS,People's Services,FSM Supplementary,A60036
London Borough of Sutton,22/09/2023,50404195,"10,080.00",Dorchester Primary School,SCHOOL FUNDS,Resources,"Grants, Contributions & Donations",A47005
London Borough of Sutton,30/08/2023,20056986,391.48,DSI Billing Services Ltd,OFFICE SERVICES,Resources,Postage & Couriers,A45015
London Borough of Sutton,30/08/2023,20056986,391.47,DSI Billing Services Ltd,OFFICE SERVICES,Resources,Postage & Couriers,A45015
London Borough of Sutton,18/09/2023,20058132,"5,794.67",DTN Europe UK LTD,SUNDRY SUPPLIER - ENV SERVICES,Environment Housing and Neighbourhoods,Waste Contractor Payment,A56057
London Borough of Sutton,01/08/2023,50397744,276.78,Dunfield & Mead Ltd,CHILDREN'S SERVICES - RESIDENTIAL,People's Services,Accommodation - Supported Living,A62001
London Borough of Sutton,01/08/2023,50397744,"3,653.57",Dunfield & Mead Ltd,CHILDREN'S SERVICES - RESIDENTIAL,People's Services,Accommodation - Supported Living,A62001
London Borough of Sutton,01/08/2023,50397745,276.78,Dunfield & Mead Ltd,CHILDREN'S SERVICES - RESIDENTIAL,People's Services,Approved Lodgings,A61000
London Borough of Sutton,01/08/2023,50397745,"3,653.57",Dunfield & Mead Ltd,CHILDREN'S SERVICES - RESIDENTIAL,People's Services,Approved Lodgings,A61000
London Borough of Sutton,31/08/2023,20057089,"5,187.85",Dunheved Hotel Ltd,ACCOMMODATION BED & BREAKFAST,Environment Housing and Neighbourhoods,Bed & Breakfast,A56000
London Borough of Sutton,01/09/2023,50395344,"3,016.00",Dunheved Lodge,SOCIAL SERVICES RESIDENTIAL,People's Services,One to One Care,A56108
London Borough of Sutton,01/09/2023,50395344,"3,187.44",Dunheved Lodge,SOCIAL SERVICES RESIDENTIAL,People's Services,Residential Care - Ext Provider,A56114
London Borough of Sutton,09/09/2023,50401596,780.00,DWT Windows & Doors,CONSTRUCTION INDUSTRY,HRA,Payments to Contractors,C14000
London Borough of Sutton,09/09/2023,50401597,"1,050.00",DWT Windows & Doors,CONSTRUCTION INDUSTRY,HRA,Payments to Contractors,C14000
London Borough of Sutton,09/09/2023,50401598,"1,050.00",DWT Windows & Doors,CONSTRUCTION INDUSTRY,HRA,Payments to Contractors,C14000
London Borough of Sutton,09/09/2023,50401599,"1,050.00",DWT Windows & Doors,CONSTRUCTION INDUSTRY,HRA,Payments to Contractors,C14000
London Borough of Sutton,09/09/2023,50401600,"1,780.00",DWT Windows & Doors,CONSTRUCTION INDUSTRY,HRA,Payments to Contractors,C14000
London Borough of Sutton,09/09/2023,50401601,780.00,DWT Windows & Doors,CONSTRUCTION INDUSTRY,HRA,Payments to Contractors,C14000
London Borough of Sutton,09/09/2023,50401602,"1,050.00",DWT Windows & Doors,CONSTRUCTION INDUSTRY,HRA,Payments to Contractors,C14000
London Borough of Sutton,09/09/2023,50401603,"1,050.00",DWT Windows & Doors,CONSTRUCTION INDUSTRY,HRA,Payments to Contractors,C14000
London Borough of Sutton,09/09/2023,50401604,"1,050.00",DWT Windows & Doors,CONSTRUCTION INDUSTRY,HRA,Payments to Contractors,C14000
London Borough of Sutton,09/09/2023,50401605,"4,860.00",DWT Windows & Doors,CONSTRUCTION INDUSTRY,HRA,Payments to Contractors,C14000
London Borough of Sutton,09/09/2023,50401606,"1,050.00",DWT Windows & Doors,CONSTRUCTION INDUSTRY,HRA,Payments to Contractors,C14000
London Borough of Sutton,13/09/2023,50401607,780.00,DWT Windows & Doors,CONSTRUCTION INDUSTRY,HRA,Payments to Contractors,C14000
London Borough of Sutton,09/09/2023,50401608,"1,050.00",DWT Windows & Doors,CONSTRUCTION INDUSTRY,HRA,Payments to Contractors,C14000
London Borough of Sutton,09/09/2023,50401609,"1,050.00",DWT Windows & Doors,CONSTRUCTION INDUSTRY,HRA,Payments to Contractors,C14000
London Borough of Sutton,31/08/2023,20057005,"1,860.00",E Homes And Shelters,ACCOMMODATION BED & BREAKFAST,People's Services,Approved Lodgings,A61000
London Borough of Sutton,31/08/2023,20058485,"34,521.00",E Homes And Shelters,ACCOMMODATION BED & BREAKFAST,Environment Housing and Neighbourhoods,Bed & Breakfast,A56000
London Borough of Sutton,26/09/2023,20058750,-539.39,E Homes And Shelters,ACCOMMODATION BED & BREAKFAST,Resources,Fees And Charges (VATable),A92310
London Borough of Sutton,17/07/2023,20057910,"1,090.52",E Pollard & Sons Limited,SUNDRY SUPPLIER - ASC,Health and Wellbeing,Equipment And Materials Purchase,A40000
London Borough of Sutton,01/09/2023,50395353,"3,821.24",Eastcroft Nursing Home,SOCIAL SERVICES RESIDENTIAL,People's Services,Respite Care,A56116
London Borough of Sutton,01/09/2023,50395353,-836.76,Eastcroft Nursing Home,SOCIAL SERVICES RESIDENTIAL,People's Services,Nursing Care - 3rd party top up payment,A56023
London Borough of Sutton,01/09/2023,50395389,"4,096.12",Eastcroft Nursing Home,SOCIAL SERVICES RESIDENTIAL,People's Services,Nursing Care - Ext Provider,A56025
London Borough of Sutton,01/09/2023,50395389,-878.84,Eastcroft Nursing Home,SOCIAL SERVICES RESIDENTIAL,People's Services,Nursing Care - 3rd party top up payment,A56023
London Borough of Sutton,01/09/2023,50395493,"3,821.24",Eastcroft Nursing Home,SOCIAL SERVICES RESIDENTIAL,People's Services,Nursing Care Short Term,A56026
London Borough of Sutton,01/09/2023,50395622,-878.84,Eastcroft Nursing Home,SOCIAL SERVICES RESIDENTIAL,People's Services,Nursing Care - 3rd party top up payment,A56023
London Borough of Sutton,01/09/2023,50395622,"4,096.12",Eastcroft Nursing Home,SOCIAL SERVICES RESIDENTIAL,People's Services,Nursing Care - Ext Provider,A56025
London Borough of Sutton,01/09/2023,50395714,-836.76,Eastcroft Nursing Home,SOCIAL SERVICES RESIDENTIAL,People's Services,Nursing Care - 3rd party top up payment,A56023
London Borough of Sutton,01/09/2023,50395714,"3,821.24",Eastcroft Nursing Home,SOCIAL SERVICES RESIDENTIAL,People's Services,Nursing Care Short Term,A56026
London Borough of Sutton,01/09/2023,20057312,928.44,EDF Energy,UTILITIES,Environment Housing and Neighbourhoods,Electricity,A21000
London Borough of Sutton,01/08/2023,20057401,"1,854.85",EDF Energy,UTILITIES,Environment Housing and Neighbourhoods,Electricity,A21000
London Borough of Sutton,10/09/2023,20057617,875.00,Edge Training and Consultancy Limited,CONFERENCES,People's Services,Staff Development And Training,A15022
London Borough of Sutton,12/09/2023,50397185,709.80,REDACTED - PERSONAL DATA,GRANTS & EX GRATIA PAYMENTS,People's Services,Payment - Nursery Funding,A51056
London Borough of Sutton,12/09/2023,50397252,589.05,REDACTED - PERSONAL DATA,GRANTS & EX GRATIA PAYMENTS,People's Services,Payment - Nursery Funding,A51056
London Borough of Sutton,01/02/2023,20057017,"3,486.12",Elis UK Ltd,UTILITIES,Health and Wellbeing,Other Supplies & Services,A44291
London Borough of Sutton,24/04/2023,20057019,"-1,451.76",Elis UK Ltd,UTILITIES,Health and Wellbeing,Other Supplies & Services,A44291
London Borough of Sutton,20/08/2023,50398860,614.25,Elite CarePlus Ltd,SOCIAL SERVICES DAY CARE,People's Services,Home Care Services,A56019
London Borough of Sutton,27/08/2023,50398861,614.25,Elite CarePlus Ltd,SOCIAL SERVICES DAY CARE,People's Services,Home Care Services,A56019
London Borough of Sutton,03/09/2023,50398862,614.25,Elite CarePlus Ltd,SOCIAL SERVICES DAY CARE,People's Services,Home Care Services,A56019
London Borough of Sutton,20/08/2023,50398929,819.00,Elite CarePlus Ltd,SOCIAL SERVICES DAY CARE,People's Services,Home Care Services,A56019
London Borough of Sutton,27/08/2023,50398930,819.00,Elite CarePlus Ltd,SOCIAL SERVICES DAY CARE,People's Services,Home Care Services,A56019
London Borough of Sutton,03/09/2023,50398931,819.00,Elite CarePlus Ltd,SOCIAL SERVICES DAY CARE,People's Services,Home Care Services,A56019
London Borough of Sutton,20/08/2023,50398933,682.50,Elite CarePlus Ltd,SOCIAL SERVICES DAY CARE,People's Services,Home Care Services,A56019
London Borough of Sutton,20/08/2023,50398933,117.00,Elite CarePlus Ltd,SOCIAL SERVICES DAY CARE,People's Services,Home Care Services,A56019
London Borough of Sutton,27/08/2023,50398934,682.50,Elite CarePlus Ltd,SOCIAL SERVICES DAY CARE,People's Services,Home Care Services,A56019
London Borough of Sutton,27/08/2023,50398934,117.00,Elite CarePlus Ltd,SOCIAL SERVICES DAY CARE,People's Services,Home Care Services,A56019
London Borough of Sutton,03/09/2023,50398935,682.50,Elite CarePlus Ltd,SOCIAL SERVICES DAY CARE,People's Services,Home Care Services,A56019
London Borough of Sutton,03/09/2023,50398935,117.00,Elite CarePlus Ltd,SOCIAL SERVICES DAY CARE,People's Services,Home Care Services,A56019
London Borough of Sutton,20/08/2023,50398941,750.75,Elite CarePlus Ltd,SOCIAL SERVICES DAY CARE,People's Services,Home Care Services,A56019
London Borough of Sutton,27/08/2023,50398942,750.75,Elite CarePlus Ltd,SOCIAL SERVICES DAY CARE,People's Services,Home Care Services,A56019
London Borough of Sutton,03/09/2023,50398943,750.75,Elite CarePlus Ltd,SOCIAL SERVICES DAY CARE,People's Services,Home Care Services,A56019
London Borough of Sutton,20/08/2023,50398962,614.25,Elite CarePlus Ltd,SOCIAL SERVICES DAY CARE,People's Services,Home Care Services,A56019
London Borough of Sutton,27/08/2023,50398963,614.25,Elite CarePlus Ltd,SOCIAL SERVICES DAY CARE,People's Services,Home Care Services,A56019
London Borough of Sutton,03/09/2023,50398964,614.25,Elite CarePlus Ltd,SOCIAL SERVICES DAY CARE,People's Services,Home Care Services,A56019
London Borough of Sutton,20/08/2023,50398970,614.25,Elite CarePlus Ltd,SOCIAL SERVICES DAY CARE,People's Services,Home Care Services,A56019
London Borough of Sutton,27/08/2023,50398971,614.25,Elite CarePlus Ltd,SOCIAL SERVICES DAY CARE,People's Services,Home Care Services,A56019
London Borough of Sutton,03/09/2023,50398972,614.25,Elite CarePlus Ltd,SOCIAL SERVICES DAY CARE,People's Services,Home Care Services,A56019
London Borough of Sutton,20/08/2023,50399012,614.25,Elite CarePlus Ltd,SOCIAL SERVICES DAY CARE,People's Services,Home Care Services,A56019
London Borough of Sutton,27/08/2023,50399013,614.25,Elite CarePlus Ltd,SOCIAL SERVICES DAY CARE,People's Services,Home Care Services,A56019
London Borough of Sutton,20/08/2023,50399061,975.00,Elite CarePlus Ltd,SOCIAL SERVICES DAY CARE,People's Services,Home Care Services,A56019
London Borough of Sutton,27/08/2023,50399062,975.00,Elite CarePlus Ltd,SOCIAL SERVICES DAY CARE,People's Services,Home Care Services,A56019
London Borough of Sutton,03/09/2023,50399063,975.00,Elite CarePlus Ltd,SOCIAL SERVICES DAY CARE,People's Services,Home Care Services,A56019
London Borough of Sutton,29/08/2023,20056807,"2,632.00",Elite Guarding (UK) Ltd,GRANTS & EX GRATIA PAYMENTS,HRA,Payments to Contractors,C14000
London Borough of Sutton,01/09/2023,50395272,"9,101.84",Elysium Healthcare Ltd,CHILDREN'S SERVICES - FOSTERING & ADOPTION SERVICES,People's Services,Residential Care - Ext Provider,A56114
London Borough of Sutton,01/09/2023,50395235,"7,668.40",Elysium Supported Living Limited,SOCIAL SERVICES RESIDENTIAL,People's Services,Residential Care - Ext Provider,A56114
London Borough of Sutton,01/09/2023,50395239,"6,608.00",Emas Ltd,SOCIAL SERVICES RESIDENTIAL,People's Services,Interim Placements - Ext Provider,A56102
London Borough of Sutton,06/09/2023,20057460,"4,241.10",Emma Maguire Psychology Ltd,SUNDRY SUPPLIER - EDUCATION,People's Services,Client Related Assessments,A56017
London Borough of Sutton,31/08/2023,50399335,"4,530.00",EMPOWER KNOWLEDGE LIMITED,CHILDREN'S SERVICES - SEN SERVICES,People's Services,Independent Tutoring Fees,A56129
London Borough of Sutton,04/09/2023,50397804,562.00,ENA Hourly Care Limited,SOCIAL SERVICES-HOME CARE,People's Services,Home Care Services,A56019
London Borough of Sutton,30/08/2023,20056976,"9,621.00",Encompass,TEMP STAFF & CONSULTANCY,People's Services,Provider Contract Payments,A44290
London Borough of Sutton,30/08/2023,20056977,"31,212.00",Encompass,TEMP STAFF & CONSULTANCY,Environment Housing and Neighbourhoods,Housing Contract Fee,A56099
London Borough of Sutton,30/08/2023,20056978,"6,501.00",Encompass,TEMP STAFF & CONSULTANCY,People's Services,Provider Contract Payments,A44290
London Borough of Sutton,30/08/2023,20056979,"17,082.00",Encompass,TEMP STAFF & CONSULTANCY,People's Services,Provider Contract Payments,A44290
London Borough of Sutton,30/08/2023,20056980,"11,475.00",Encompass,TEMP STAFF & CONSULTANCY,Environment Housing and Neighbourhoods,Housing Contract Fee,A56099
London Borough of Sutton,30/08/2023,20056981,"4,500.00",Encompass,TEMP STAFF & CONSULTANCY,Environment Housing and Neighbourhoods,Housing Contract Fee,A56099
London Borough of Sutton,30/08/2023,20056982,"27,873.00",Encompass,TEMP STAFF & CONSULTANCY,People's Services,Provider Contract Payments,A44290
London Borough of Sutton,26/06/2023,20057815,"27,873.00",Encompass,TEMP STAFF & CONSULTANCY,People's Services,Provider Contract Payments,A44290
London Borough of Sutton,26/06/2023,20057816,"27,873.00",Encompass,TEMP STAFF & CONSULTANCY,People's Services,Provider Contract Payments,A44290
London Borough of Sutton,26/06/2023,20057817,"32,478.00",Encompass,TEMP STAFF & CONSULTANCY,People's Services,Provider Contract Payments,A44290
London Borough of Sutton,23/08/2023,20056974,"31,250.00",Epsom & St Helier Nhs Trust,OFFICE SERVICES,Environment Housing and Neighbourhoods,Mortuary,A56079
London Borough of Sutton,02/09/2023,20057300,"77,106.09",Epsom & St Helier Nhs Trust,OFFICE SERVICES,Health and Wellbeing,Provider Contract Payments,A44290
London Borough of Sutton,05/09/2023,50396766,"2,000.00",Epsom & St Helier Nhs Trust,OFFICE SERVICES,People's Services,Predictable Needs funding,A56125
London Borough of Sutton,12/09/2023,50397345,"18,260.55",Epsom & St Helier Nhs Trust,OFFICE SERVICES,People's Services,Payment - Nursery Funding,A51056
London Borough of Sutton,12/09/2023,50399266,"1,497.30",Epsom & St Helier Nhs Trust,OFFICE SERVICES,People's Services,Payment - school supplementary grant,A51062
London Borough of Sutton,01/09/2023,50395327,"4,276.00",Equinox Care,SOCIAL SERVICES RESIDENTIAL,People's Services,Interim Placements - Ext Provider,A56102
London Borough of Sutton,13/08/2023,50394745,18.00,Escoben Care Services Ltd,SOCIAL SERVICES RESIDENTIAL,People's Services,Home Care Services,A56019
London Borough of Sutton,13/08/2023,50394745,631.97,Escoben Care Services Ltd,SOCIAL SERVICES RESIDENTIAL,People's Services,Home Care Services,A56019
London Borough of Sutton,13/08/2023,50394774,"1,143.00",Escoben Care Services Ltd,SOCIAL SERVICES RESIDENTIAL,People's Services,Home Care Services,A56019
London Borough of Sutton,13/08/2023,50394783,108.00,Escoben Care Services Ltd,SOCIAL SERVICES RESIDENTIAL,People's Services,Home Care Services,A56019
London Borough of Sutton,13/08/2023,50394783,797.90,Escoben Care Services Ltd,SOCIAL SERVICES RESIDENTIAL,People's Services,Home Care Services,A56019
London Borough of Sutton,13/08/2023,50394826,797.90,Escoben Care Services Ltd,SOCIAL SERVICES RESIDENTIAL,People's Services,Home Care Services,A56019
London Borough of Sutton,20/08/2023,50398523,18.00,Escoben Care Services Ltd,SOCIAL SERVICES RESIDENTIAL,People's Services,Home Care Services,A56019
London Borough of Sutton,20/08/2023,50398523,632.00,Escoben Care Services Ltd,SOCIAL SERVICES RESIDENTIAL,People's Services,Home Care Services,A56019
London Borough of Sutton,27/08/2023,50398525,18.00,Escoben Care Services Ltd,SOCIAL SERVICES RESIDENTIAL,People's Services,Home Care Services,A56019
London Borough of Sutton,27/08/2023,50398525,632.00,Escoben Care Services Ltd,SOCIAL SERVICES RESIDENTIAL,People's Services,Home Care Services,A56019
London Borough of Sutton,27/08/2023,50398556,"1,143.00",Escoben Care Services Ltd,SOCIAL SERVICES RESIDENTIAL,People's Services,Home Care Services,A56019
London Borough of Sutton,27/08/2023,50398561,108.00,Escoben Care Services Ltd,SOCIAL SERVICES RESIDENTIAL,People's Services,Home Care Services,A56019
London Borough of Sutton,27/08/2023,50398561,798.00,Escoben Care Services Ltd,SOCIAL SERVICES RESIDENTIAL,People's Services,Home Care Services,A56019
London Borough of Sutton,20/08/2023,50398562,540.00,Escoben Care Services Ltd,SOCIAL SERVICES RESIDENTIAL,People's Services,Home Care Services,A56019
London Borough of Sutton,20/08/2023,50398562,365.90,Escoben Care Services Ltd,SOCIAL SERVICES RESIDENTIAL,People's Services,Home Care Services,A56019
London Borough of Sutton,20/08/2023,50398609,798.00,Escoben Care Services Ltd,SOCIAL SERVICES RESIDENTIAL,People's Services,Home Care Services,A56019
London Borough of Sutton,27/08/2023,50398610,798.00,Escoben Care Services Ltd,SOCIAL SERVICES RESIDENTIAL,People's Services,Home Care Services,A56019
London Borough of Sutton,03/09/2023,50400910,859.41,Escoben Care Services Ltd,SOCIAL SERVICES RESIDENTIAL,People's Services,Home Care Services,A56019
London Borough of Sutton,03/09/2023,50400976,18.00,Escoben Care Services Ltd,SOCIAL SERVICES RESIDENTIAL,People's Services,Home Care Services,A56019
London Borough of Sutton,03/09/2023,50400976,673.47,Escoben Care Services Ltd,SOCIAL SERVICES RESIDENTIAL,People's Services,Home Care Services,A56019
London Borough of Sutton,03/09/2023,50400998,126.00,Escoben Care Services Ltd,SOCIAL SERVICES RESIDENTIAL,People's Services,Home Care Services,A56019
London Borough of Sutton,03/09/2023,50400998,859.41,Escoben Care Services Ltd,SOCIAL SERVICES RESIDENTIAL,People's Services,Home Care Services,A56019
London Borough of Sutton,03/09/2023,50401032,601.47,Escoben Care Services Ltd,SOCIAL SERVICES RESIDENTIAL,People's Services,Home Care Services,A56019
London Borough of Sutton,10/09/2023,50402556,873.00,Escoben Care Services Ltd,SOCIAL SERVICES RESIDENTIAL,People's Services,Home Care Services,A56019
London Borough of Sutton,10/09/2023,50402597,17.97,Escoben Care Services Ltd,SOCIAL SERVICES RESIDENTIAL,People's Services,Home Care Services,A56019
London Borough of Sutton,10/09/2023,50402597,632.00,Escoben Care Services Ltd,SOCIAL SERVICES RESIDENTIAL,People's Services,Home Care Services,A56019
London Borough of Sutton,10/09/2023,50402667,108.00,Escoben Care Services Ltd,SOCIAL SERVICES RESIDENTIAL,People's Services,Home Care Services,A56019
London Borough of Sutton,10/09/2023,50402667,797.90,Escoben Care Services Ltd,SOCIAL SERVICES RESIDENTIAL,People's Services,Home Care Services,A56019
London Borough of Sutton,10/09/2023,50402685,797.90,Escoben Care Services Ltd,SOCIAL SERVICES RESIDENTIAL,People's Services,Home Care Services,A56019
London Borough of Sutton,10/09/2023,50402719,559.97,Escoben Care Services Ltd,SOCIAL SERVICES RESIDENTIAL,People's Services,Home Care Services,A56019
London Borough of Sutton,17/09/2023,50406206,18.00,Escoben Care Services Ltd,SOCIAL SERVICES RESIDENTIAL,People's Services,Home Care Services,A56019
London Borough of Sutton,17/09/2023,50406206,631.97,Escoben Care Services Ltd,SOCIAL SERVICES RESIDENTIAL,People's Services,Home Care Services,A56019
London Borough of Sutton,17/09/2023,50406227,"1,143.00",Escoben Care Services Ltd,SOCIAL SERVICES RESIDENTIAL,People's Services,Home Care Services,A56019
London Borough of Sutton,17/09/2023,50406230,108.00,Escoben Care Services Ltd,SOCIAL SERVICES RESIDENTIAL,People's Services,Home Care Services,A56019
London Borough of Sutton,17/09/2023,50406230,797.90,Escoben Care Services Ltd,SOCIAL SERVICES RESIDENTIAL,People's Services,Home Care Services,A56019
London Borough of Sutton,17/09/2023,50406243,559.97,Escoben Care Services Ltd,SOCIAL SERVICES RESIDENTIAL,People's Services,Home Care Services,A56019
London Borough of Sutton,17/09/2023,50406290,797.90,Escoben Care Services Ltd,SOCIAL SERVICES RESIDENTIAL,People's Services,Home Care Services,A56019
London Borough of Sutton,14/08/2023,50397718,"25,420.00",Esland North Ltd,CHILDREN'S SERVICES - RESIDENTIAL,People's Services,Residential Care-Children,A56115
London Borough of Sutton,21/09/2023,20058440,"20,189.05",Education Software Solutions Ltd,SUNDRY SUPPLIER - ASC,Health and Wellbeing,Registration & Licence Fees Payable,A44267
London Borough of Sutton,21/09/2023,20058441,515.00,Education Software Solutions Ltd,SUNDRY SUPPLIER - ASC,Health and Wellbeing,Registration & Licence Fees Payable,A44267
London Borough of Sutton,21/09/2023,20058442,"6,863.03",Education Software Solutions Ltd,SUNDRY SUPPLIER - ASC,Health and Wellbeing,Registration & Licence Fees Payable,A44267
London Borough of Sutton,05/09/2023,50396879,"3,208.41",Ethelbert Specialist Homes Ltd,CHILDREN'S SERVICES - RESIDENTIAL,People's Services,Independent School Fees,A56002
London Borough of Sutton,05/08/2023,50397774,"14,360.40",Ethelbert Specialist Homes Ltd,CHILDREN'S SERVICES - RESIDENTIAL,People's Services,Residential Care-Children,A56115
London Borough of Sutton,05/08/2023,50397775,"4,216.58",Ethelbert Specialist Homes Ltd,CHILDREN'S SERVICES - RESIDENTIAL,People's Services,Foster Parents Support,A44110
London Borough of Sutton,05/08/2023,50397776,"4,216.58",Ethelbert Specialist Homes Ltd,CHILDREN'S SERVICES - RESIDENTIAL,People's Services,Foster Parents Support,A44110
London Borough of Sutton,05/08/2023,50397777,"4,345.67",Ethelbert Specialist Homes Ltd,CHILDREN'S SERVICES - RESIDENTIAL,People's Services,Foster Parents Support,A44110
London Borough of Sutton,05/08/2023,50397791,"21,561.99",Ethelbert Specialist Homes Ltd,CHILDREN'S SERVICES - RESIDENTIAL,People's Services,Residential Care-Children,A56115
London Borough of Sutton,31/07/2023,20056659,"6,270.95",Evolve AMS UK Limited,CONSTRUCTION INDUSTRY,Environment Housing and Neighbourhoods,Grants Given For Capital Purposes,C20004
London Borough of Sutton,20/08/2023,50398235,691.25,Exodus Health Care Services Ltd,SOCIAL SERVICES RESIDENTIAL,People's Services,Home Care Services,A56019
London Borough of Sutton,20/08/2023,50398235,105.00,Exodus Health Care Services Ltd,SOCIAL SERVICES RESIDENTIAL,People's Services,Home Care Services,A56019
London Borough of Sutton,27/08/2023,50398236,691.25,Exodus Health Care Services Ltd,SOCIAL SERVICES RESIDENTIAL,People's Services,Home Care Services,A56019
London Borough of Sutton,27/08/2023,50398236,105.00,Exodus Health Care Services Ltd,SOCIAL SERVICES RESIDENTIAL,People's Services,Home Care Services,A56019
London Borough of Sutton,20/08/2023,50398239,551.25,Exodus Health Care Services Ltd,SOCIAL SERVICES RESIDENTIAL,People's Services,Home Care Services,A56019
London Borough of Sutton,27/08/2023,50398240,551.25,Exodus Health Care Services Ltd,SOCIAL SERVICES RESIDENTIAL,People's Services,Home Care Services,A56019
London Borough of Sutton,27/08/2023,50398248,551.25,Exodus Health Care Services Ltd,SOCIAL SERVICES RESIDENTIAL,People's Services,Home Care Services,A56019
London Borough of Sutton,20/08/2023,50398266,796.25,Exodus Health Care Services Ltd,SOCIAL SERVICES RESIDENTIAL,People's Services,Home Care Services,A56019
London Borough of Sutton,27/08/2023,50398267,796.25,Exodus Health Care Services Ltd,SOCIAL SERVICES RESIDENTIAL,People's Services,Home Care Services,A56019
London Borough of Sutton,20/08/2023,50398274,551.25,Exodus Health Care Services Ltd,SOCIAL SERVICES RESIDENTIAL,People's Services,Home Care Services,A56019
London Borough of Sutton,27/08/2023,50398275,551.25,Exodus Health Care Services Ltd,SOCIAL SERVICES RESIDENTIAL,People's Services,Home Care Services,A56019
London Borough of Sutton,20/08/2023,50398279,551.25,Exodus Health Care Services Ltd,SOCIAL SERVICES RESIDENTIAL,People's Services,Home Care Services,A56019
London Borough of Sutton,27/08/2023,50398280,551.25,Exodus Health Care Services Ltd,SOCIAL SERVICES RESIDENTIAL,People's Services,Home Care Services,A56019
London Borough of Sutton,20/08/2023,50398309,122.50,Exodus Health Care Services Ltd,SOCIAL SERVICES RESIDENTIAL,People's Services,Home Care Services,A56019
London Borough of Sutton,20/08/2023,50398309,428.75,Exodus Health Care Services Ltd,SOCIAL SERVICES RESIDENTIAL,People's Services,Home Care Services,A56019
London Borough of Sutton,27/08/2023,50398310,122.50,Exodus Health Care Services Ltd,SOCIAL SERVICES RESIDENTIAL,People's Services,Home Care Services,A56019
London Borough of Sutton,27/08/2023,50398310,428.75,Exodus Health Care Services Ltd,SOCIAL SERVICES RESIDENTIAL,People's Services,Home Care Services,A56019
London Borough of Sutton,20/08/2023,50398315,52.50,Exodus Health Care Services Ltd,SOCIAL SERVICES RESIDENTIAL,People's Services,Home Care Services,A56019
London Borough of Sutton,20/08/2023,50398315,612.50,Exodus Health Care Services Ltd,SOCIAL SERVICES RESIDENTIAL,People's Services,Home Care Services,A56019
London Borough of Sutton,27/08/2023,50398316,52.50,Exodus Health Care Services Ltd,SOCIAL SERVICES RESIDENTIAL,People's Services,Home Care Services,A56019
London Borough of Sutton,27/08/2023,50398316,612.50,Exodus Health Care Services Ltd,SOCIAL SERVICES RESIDENTIAL,People's Services,Home Care Services,A56019
London Borough of Sutton,20/08/2023,50398317,52.50,Exodus Health Care Services Ltd,SOCIAL SERVICES RESIDENTIAL,People's Services,Home Care Services,A56019
London Borough of Sutton,20/08/2023,50398317,551.25,Exodus Health Care Services Ltd,SOCIAL SERVICES RESIDENTIAL,People's Services,Home Care Services,A56019
London Borough of Sutton,27/08/2023,50398318,52.50,Exodus Health Care Services Ltd,SOCIAL SERVICES RESIDENTIAL,People's Services,Home Care Services,A56019
London Borough of Sutton,27/08/2023,50398318,551.25,Exodus Health Care Services Ltd,SOCIAL SERVICES RESIDENTIAL,People's Services,Home Care Services,A56019
London Borough of Sutton,20/08/2023,50398321,551.25,Exodus Health Care Services Ltd,SOCIAL SERVICES RESIDENTIAL,People's Services,Home Care Services,A56019
London Borough of Sutton,27/08/2023,50398322,551.25,Exodus Health Care Services Ltd,SOCIAL SERVICES RESIDENTIAL,People's Services,Home Care Services,A56019
London Borough of Sutton,20/08/2023,50398329,551.25,Exodus Health Care Services Ltd,SOCIAL SERVICES RESIDENTIAL,People's Services,Home Care Services,A56019
London Borough of Sutton,27/08/2023,50398330,551.25,Exodus Health Care Services Ltd,SOCIAL SERVICES RESIDENTIAL,People's Services,Home Care Services,A56019
London Borough of Sutton,20/08/2023,50398352,612.50,Exodus Health Care Services Ltd,SOCIAL SERVICES RESIDENTIAL,People's Services,Home Care Services,A56019
London Borough of Sutton,27/08/2023,50398353,612.50,Exodus Health Care Services Ltd,SOCIAL SERVICES RESIDENTIAL,People's Services,Home Care Services,A56019
London Borough of Sutton,20/08/2023,50398377,551.25,Exodus Health Care Services Ltd,SOCIAL SERVICES RESIDENTIAL,People's Services,Home Care Services,A56019
London Borough of Sutton,27/08/2023,50398378,551.25,Exodus Health Care Services Ltd,SOCIAL SERVICES RESIDENTIAL,People's Services,Home Care Services,A56019
London Borough of Sutton,20/08/2023,50398379,288.75,Exodus Health Care Services Ltd,SOCIAL SERVICES RESIDENTIAL,People's Services,Home Care Services,A56019
London Borough of Sutton,20/08/2023,50398379,551.25,Exodus Health Care Services Ltd,SOCIAL SERVICES RESIDENTIAL,People's Services,Home Care Services,A56019
London Borough of Sutton,27/08/2023,50398380,288.75,Exodus Health Care Services Ltd,SOCIAL SERVICES RESIDENTIAL,People's Services,Home Care Services,A56019
London Borough of Sutton,27/08/2023,50398380,341.25,Exodus Health Care Services Ltd,SOCIAL SERVICES RESIDENTIAL,People's Services,Home Care Services,A56019
London Borough of Sutton,20/08/2023,50398454,520.63,Exodus Health Care Services Ltd,SOCIAL SERVICES RESIDENTIAL,People's Services,Home Care Services,A56019
London Borough of Sutton,27/08/2023,50398455,520.63,Exodus Health Care Services Ltd,SOCIAL SERVICES RESIDENTIAL,People's Services,Home Care Services,A56019
London Borough of Sutton,20/08/2023,50398458,17.52,Exodus Health Care Services Ltd,SOCIAL SERVICES RESIDENTIAL,People's Services,Home Care Services,A56019
London Borough of Sutton,20/08/2023,50398458,489.98,Exodus Health Care Services Ltd,SOCIAL SERVICES RESIDENTIAL,People's Services,Home Care Services,A56019
London Borough of Sutton,27/08/2023,50398459,17.52,Exodus Health Care Services Ltd,SOCIAL SERVICES RESIDENTIAL,People's Services,Home Care Services,A56019
London Borough of Sutton,27/08/2023,50398459,489.98,Exodus Health Care Services Ltd,SOCIAL SERVICES RESIDENTIAL,People's Services,Home Care Services,A56019
London Borough of Sutton,20/08/2023,50398463,551.25,Exodus Health Care Services Ltd,SOCIAL SERVICES RESIDENTIAL,People's Services,Home Care Services,A56019
London Borough of Sutton,27/08/2023,50398464,551.25,Exodus Health Care Services Ltd,SOCIAL SERVICES RESIDENTIAL,People's Services,Home Care Services,A56019
London Borough of Sutton,20/08/2023,50400888,551.25,Exodus Health Care Services Ltd,SOCIAL SERVICES RESIDENTIAL,People's Services,Home Care Services,A56019
London Borough of Sutton,30/07/2023,50401069,551.25,Exodus Health Care Services Ltd,SOCIAL SERVICES RESIDENTIAL,People's Services,Home Care Services,A56019
London Borough of Sutton,03/09/2023,50402010,520.63,Exodus Health Care Services Ltd,SOCIAL SERVICES RESIDENTIAL,People's Services,Home Care Services,A56019
London Borough of Sutton,10/09/2023,50402011,520.63,Exodus Health Care Services Ltd,SOCIAL SERVICES RESIDENTIAL,People's Services,Home Care Services,A56019
London Borough of Sutton,03/09/2023,50402016,17.52,Exodus Health Care Services Ltd,SOCIAL SERVICES RESIDENTIAL,People's Services,Home Care Services,A56019
London Borough of Sutton,03/09/2023,50402016,489.98,Exodus Health Care Services Ltd,SOCIAL SERVICES RESIDENTIAL,People's Services,Home Care Services,A56019
London Borough of Sutton,10/09/2023,50402017,21.90,Exodus Health Care Services Ltd,SOCIAL SERVICES RESIDENTIAL,People's Services,Home Care Services,A56019
London Borough of Sutton,10/09/2023,50402017,485.60,Exodus Health Care Services Ltd,SOCIAL SERVICES RESIDENTIAL,People's Services,Home Care Services,A56019
London Borough of Sutton,03/09/2023,50402030,551.25,Exodus Health Care Services Ltd,SOCIAL SERVICES RESIDENTIAL,People's Services,Home Care Services,A56019
London Borough of Sutton,10/09/2023,50402031,551.25,Exodus Health Care Services Ltd,SOCIAL SERVICES RESIDENTIAL,People's Services,Home Care Services,A56019
London Borough of Sutton,03/09/2023,50402071,551.25,Exodus Health Care Services Ltd,SOCIAL SERVICES RESIDENTIAL,People's Services,Home Care Services,A56019
London Borough of Sutton,10/09/2023,50402072,551.25,Exodus Health Care Services Ltd,SOCIAL SERVICES RESIDENTIAL,People's Services,Home Care Services,A56019
London Borough of Sutton,03/09/2023,50402099,691.25,Exodus Health Care Services Ltd,SOCIAL SERVICES RESIDENTIAL,People's Services,Home Care Services,A56019
London Borough of Sutton,03/09/2023,50402099,105.00,Exodus Health Care Services Ltd,SOCIAL SERVICES RESIDENTIAL,People's Services,Home Care Services,A56019
London Borough of Sutton,10/09/2023,50402100,691.25,Exodus Health Care Services Ltd,SOCIAL SERVICES RESIDENTIAL,People's Services,Home Care Services,A56019
London Borough of Sutton,10/09/2023,50402100,105.00,Exodus Health Care Services Ltd,SOCIAL SERVICES RESIDENTIAL,People's Services,Home Care Services,A56019
London Borough of Sutton,03/09/2023,50402105,551.25,Exodus Health Care Services Ltd,SOCIAL SERVICES RESIDENTIAL,People's Services,Home Care Services,A56019
London Borough of Sutton,10/09/2023,50402106,551.25,Exodus Health Care Services Ltd,SOCIAL SERVICES RESIDENTIAL,People's Services,Home Care Services,A56019
London Borough of Sutton,03/09/2023,50402109,551.25,Exodus Health Care Services Ltd,SOCIAL SERVICES RESIDENTIAL,People's Services,Home Care Services,A56019
London Borough of Sutton,10/09/2023,50402110,551.25,Exodus Health Care Services Ltd,SOCIAL SERVICES RESIDENTIAL,People's Services,Home Care Services,A56019
London Borough of Sutton,03/09/2023,50402124,551.25,Exodus Health Care Services Ltd,SOCIAL SERVICES RESIDENTIAL,People's Services,Home Care Services,A56019
London Borough of Sutton,10/09/2023,50402125,551.25,Exodus Health Care Services Ltd,SOCIAL SERVICES RESIDENTIAL,People's Services,Home Care Services,A56019
London Borough of Sutton,03/09/2023,50402126,52.50,Exodus Health Care Services Ltd,SOCIAL SERVICES RESIDENTIAL,People's Services,Home Care Services,A56019
London Borough of Sutton,03/09/2023,50402126,612.50,Exodus Health Care Services Ltd,SOCIAL SERVICES RESIDENTIAL,People's Services,Home Care Services,A56019
London Borough of Sutton,10/09/2023,50402127,52.50,Exodus Health Care Services Ltd,SOCIAL SERVICES RESIDENTIAL,People's Services,Home Care Services,A56019
London Borough of Sutton,10/09/2023,50402127,612.50,Exodus Health Care Services Ltd,SOCIAL SERVICES RESIDENTIAL,People's Services,Home Care Services,A56019
London Borough of Sutton,03/09/2023,50402128,52.50,Exodus Health Care Services Ltd,SOCIAL SERVICES RESIDENTIAL,People's Services,Home Care Services,A56019
London Borough of Sutton,03/09/2023,50402128,551.25,Exodus Health Care Services Ltd,SOCIAL SERVICES RESIDENTIAL,People's Services,Home Care Services,A56019
London Borough of Sutton,10/09/2023,50402129,52.50,Exodus Health Care Services Ltd,SOCIAL SERVICES RESIDENTIAL,People's Services,Home Care Services,A56019
London Borough of Sutton,10/09/2023,50402129,551.25,Exodus Health Care Services Ltd,SOCIAL SERVICES RESIDENTIAL,People's Services,Home Care Services,A56019
London Borough of Sutton,03/09/2023,50402150,612.50,Exodus Health Care Services Ltd,SOCIAL SERVICES RESIDENTIAL,People's Services,Home Care Services,A56019
London Borough of Sutton,10/09/2023,50402151,612.50,Exodus Health Care Services Ltd,SOCIAL SERVICES RESIDENTIAL,People's Services,Home Care Services,A56019
London Borough of Sutton,03/09/2023,50402164,796.25,Exodus Health Care Services Ltd,SOCIAL SERVICES RESIDENTIAL,People's Services,Home Care Services,A56019
London Borough of Sutton,10/09/2023,50402165,796.25,Exodus Health Care Services Ltd,SOCIAL SERVICES RESIDENTIAL,People's Services,Home Care Services,A56019
London Borough of Sutton,03/09/2023,50402170,551.25,Exodus Health Care Services Ltd,SOCIAL SERVICES RESIDENTIAL,People's Services,Home Care Services,A56019
London Borough of Sutton,10/09/2023,50402171,551.25,Exodus Health Care Services Ltd,SOCIAL SERVICES RESIDENTIAL,People's Services,Home Care Services,A56019
London Borough of Sutton,03/09/2023,50402193,551.25,Exodus Health Care Services Ltd,SOCIAL SERVICES RESIDENTIAL,People's Services,Home Care Services,A56019
London Borough of Sutton,10/09/2023,50402194,551.25,Exodus Health Care Services Ltd,SOCIAL SERVICES RESIDENTIAL,People's Services,Home Care Services,A56019
London Borough of Sutton,03/09/2023,50402197,551.25,Exodus Health Care Services Ltd,SOCIAL SERVICES RESIDENTIAL,People's Services,Home Care Services,A56019
London Borough of Sutton,10/09/2023,50402198,551.25,Exodus Health Care Services Ltd,SOCIAL SERVICES RESIDENTIAL,People's Services,Home Care Services,A56019
London Borough of Sutton,03/09/2023,50402235,122.50,Exodus Health Care Services Ltd,SOCIAL SERVICES RESIDENTIAL,People's Services,Home Care Services,A56019
London Borough of Sutton,03/09/2023,50402235,428.75,Exodus Health Care Services Ltd,SOCIAL SERVICES RESIDENTIAL,People's Services,Home Care Services,A56019
London Borough of Sutton,10/09/2023,50402236,122.50,Exodus Health Care Services Ltd,SOCIAL SERVICES RESIDENTIAL,People's Services,Home Care Services,A56019
London Borough of Sutton,10/09/2023,50402236,428.75,Exodus Health Care Services Ltd,SOCIAL SERVICES RESIDENTIAL,People's Services,Home Care Services,A56019
London Borough of Sutton,17/09/2023,50404552,612.50,Exodus Health Care Services Ltd,SOCIAL SERVICES RESIDENTIAL,People's Services,Home Care Services,A56019
London Borough of Sutton,17/09/2023,50404557,551.25,Exodus Health Care Services Ltd,SOCIAL SERVICES RESIDENTIAL,People's Services,Home Care Services,A56019
London Borough of Sutton,17/09/2023,50404583,691.25,Exodus Health Care Services Ltd,SOCIAL SERVICES RESIDENTIAL,People's Services,Home Care Services,A56019
London Borough of Sutton,17/09/2023,50404583,105.00,Exodus Health Care Services Ltd,SOCIAL SERVICES RESIDENTIAL,People's Services,Home Care Services,A56019
London Borough of Sutton,17/09/2023,50404594,551.25,Exodus Health Care Services Ltd,SOCIAL SERVICES RESIDENTIAL,People's Services,Home Care Services,A56019
London Borough of Sutton,17/09/2023,50404605,551.25,Exodus Health Care Services Ltd,SOCIAL SERVICES RESIDENTIAL,People's Services,Home Care Services,A56019
London Borough of Sutton,17/09/2023,50404618,796.25,Exodus Health Care Services Ltd,SOCIAL SERVICES RESIDENTIAL,People's Services,Home Care Services,A56019
London Borough of Sutton,17/09/2023,50404625,551.25,Exodus Health Care Services Ltd,SOCIAL SERVICES RESIDENTIAL,People's Services,Home Care Services,A56019
London Borough of Sutton,17/09/2023,50404628,52.50,Exodus Health Care Services Ltd,SOCIAL SERVICES RESIDENTIAL,People's Services,Home Care Services,A56019
London Borough of Sutton,17/09/2023,50404628,612.50,Exodus Health Care Services Ltd,SOCIAL SERVICES RESIDENTIAL,People's Services,Home Care Services,A56019
London Borough of Sutton,17/09/2023,50404629,52.50,Exodus Health Care Services Ltd,SOCIAL SERVICES RESIDENTIAL,People's Services,Home Care Services,A56019
London Borough of Sutton,17/09/2023,50404629,551.25,Exodus Health Care Services Ltd,SOCIAL SERVICES RESIDENTIAL,People's Services,Home Care Services,A56019
London Borough of Sutton,17/09/2023,50404654,551.25,Exodus Health Care Services Ltd,SOCIAL SERVICES RESIDENTIAL,People's Services,Home Care Services,A56019
London Borough of Sutton,17/09/2023,50404666,551.25,Exodus Health Care Services Ltd,SOCIAL SERVICES RESIDENTIAL,People's Services,Home Care Services,A56019
London Borough of Sutton,17/09/2023,50404667,288.75,Exodus Health Care Services Ltd,SOCIAL SERVICES RESIDENTIAL,People's Services,Home Care Services,A56019
London Borough of Sutton,17/09/2023,50404667,551.25,Exodus Health Care Services Ltd,SOCIAL SERVICES RESIDENTIAL,People's Services,Home Care Services,A56019
London Borough of Sutton,17/09/2023,50404682,551.25,Exodus Health Care Services Ltd,SOCIAL SERVICES RESIDENTIAL,People's Services,Home Care Services,A56019
London Borough of Sutton,17/09/2023,50404738,122.50,Exodus Health Care Services Ltd,SOCIAL SERVICES RESIDENTIAL,People's Services,Home Care Services,A56019
London Borough of Sutton,17/09/2023,50404738,428.75,Exodus Health Care Services Ltd,SOCIAL SERVICES RESIDENTIAL,People's Services,Home Care Services,A56019
London Borough of Sutton,17/09/2023,50404797,520.63,Exodus Health Care Services Ltd,SOCIAL SERVICES RESIDENTIAL,People's Services,Home Care Services,A56019
London Borough of Sutton,17/09/2023,50404806,39.42,Exodus Health Care Services Ltd,SOCIAL SERVICES RESIDENTIAL,People's Services,Home Care Services,A56019
London Borough of Sutton,17/09/2023,50404806,577.46,Exodus Health Care Services Ltd,SOCIAL SERVICES RESIDENTIAL,People's Services,Home Care Services,A56019
London Borough of Sutton,17/09/2023,50404811,551.25,Exodus Health Care Services Ltd,SOCIAL SERVICES RESIDENTIAL,People's Services,Home Care Services,A56019
London Borough of Sutton,29/08/2023,20056872,"2,878.57",Explore Independence Ltd,CARE LEAVERS,People's Services,Approved Lodgings,A61000
London Borough of Sutton,12/09/2023,50397229,"1,774.50",Fairlands Pre-School,GRANTS & EX GRATIA PAYMENTS,People's Services,Payment - Nursery Funding,A51056
London Borough of Sutton,12/09/2023,50397340,"6,479.55",Fairlands Pre-School,GRANTS & EX GRATIA PAYMENTS,People's Services,Payment - Nursery Funding,A51056
London Borough of Sutton,12/09/2023,50399151,813.75,Fairlands Pre-School,GRANTS & EX GRATIA PAYMENTS,People's Services,Payment - school supplementary grant,A51062
London Borough of Sutton,12/09/2023,50399261,531.30,Fairlands Pre-School,GRANTS & EX GRATIA PAYMENTS,People's Services,Payment - school supplementary grant,A51062
London Borough of Sutton,24/08/2023,50404497,"4,273.57",Family First Fostering,CHILDREN'S SERVICES - FOSTERING & ADOPTION SERVICES,People's Services,Foster Parents Support,A44110
London Borough of Sutton,14/08/2023,50404498,"2,262.85",Family First Fostering,CHILDREN'S SERVICES - FOSTERING & ADOPTION SERVICES,People's Services,Foster Parents Support,A44110
London Borough of Sutton,01/09/2023,50395354,"4,096.12",Family Star Ltd,SOCIAL SERVICES RESIDENTIAL,People's Services,Nursing Care - Ext Provider,A56025
London Borough of Sutton,01/09/2023,50395354,-878.84,Family Star Ltd,SOCIAL SERVICES RESIDENTIAL,People's Services,Nursing Care - 3rd party top up payment,A56023
